{"text_format":"1","workbook":"xlsx","n_sheets":20,"sheets":["Einführung","Seite 1","Seite 2","Seite 3","Seite3a","Seite3b","Seite 3c","Seite 4","Seite 5","Seite 6","Fehler","Projektauswahlkriterien","Anlage \"SIUK PLUS\"","Anlage STATISTIK (BUND)","AF20","AF09","AF24","Transfer","DInfo","Liste1"],"not_rendered":{"charts":0,"images":16,"macros":1,"external_links":0,"defined_names":16,"comments":5,"pivot_tables":0},"unopened":[],"bounds":{"document_bytes":16777216,"sheet_cells":100000,"rows_first":2000,"rows_last":500,"rows_between":2000,"halvings":0,"cell_chars":16384,"cell_head_chars":4096},"cells_cut":0,"cells_raw":0,"read":"whole","date_system":"1900"}

{"sheet":"Einführung","index":0,"n_rows":27,"n_cols":4,"rows_kept":27,"cut":false,"hidden":false,"merged":[[1,1,1,7],[9,1,9,7],[3,1,3,7],[7,1,7,7],[6,1,6,7],[5,1,5,7],[4,1,4,7],[23,3,23,7],[18,1,18,2],[20,3,20,7],[20,1,20,2],[14,1,14,7],[19,3,19,7],[24,1,24,2],[24,3,24,7],[27,1,27,7],[26,1,26,7],[8,1,8,7],[13,1,13,7],[22,3,22,7],[16,3,16,7],[17,3,17,7],[18,3,18,7],[21,3,21,7],[25,1,25,7],[10,1,10,7],[15,1,15,7],[12,1,12,7],[11,1,11,7]]}
[]
[null,"Methodische Vorbemerkungen zum AFP-Grundantrag"]
[]
[null,"Das Antragsformular für NRW  umfasst die Seiten 1 bis 6, die Registerkarte zu den Projektauswahlkriterien sowie die Anlagen \"SIUK PLUS\" & \"Anlage STATISTIK (BUND)\". Diese Blätter stellen ausgedruckt den offiziellen AFP-Antrag dar, der in jedem Falle unterschrieben einzureichen ist. Zu diesem AFP-Antrag ist der gesonderte Prüfvermerk der Kreisstelle zu bearbeiten (nicht integriert, von d. zust. Kreisstelle vorzunehmen). Die weiteren Tabellenblätter enthalten technische Daten, die nicht verändert werden dürfen."]
[null,"Der wesentliche Teil des Antrags wird über das Einlesen der Daten im CSV-Verfahren erfasst. Mit der Schaltfläche CSV-Dateien erstellen werden die Daten im CSV-Format abgelegt. Diese Daten gehen über das automatische Einlesen in den InVeKoS-Datenbestand ein. Jede Änderung des Antrags nach der Erstellung der CSV-Dateien erfordert eine nachträgliche Bearbeitung entweder über InVeKoS-Masken oder durch neue Ausgabe der CSV-Dateien."]
[null,"Die vom Antragsteller auszufüllenden Teile des Antrags (Antragsdaten) umfassen die Seiten 1 bis 4, die Seite 5 ohne den rechten Teil, der zum Prüfvermerk der Kreisstelle gehört sowie die Projektauswahlkriterien und bei Investitionen bzgl. d. Zuschussarten 3 & 6 lt. Seite 3, d.h. lt. 9.4.1b, c, g oder bei Investitionen lt. 9.4.1f, i die Anlage \"SIUK PLUS\". "]
[null,"Die Seite 5 enthält die Überprüfung der eingereichten Unterlagen und ist von der Kreisstelle auf dem Papier auszufüllen. Die Eintragungen der Kreisstelle werden erst mit der Erfassung des Prüfberichtes im InVeKoS-Programm gespeichert."]
[null,"Die Seite 6 enthält Informationen zur Veröffentlichung von Förderdaten im Rahmen der EU-Transparenzinitiative. Der Anhang muss den Antragstellern vor der Unterzeichnung des Antrages ausgehändigt werden."]
[null,"Bitte zu Beginn der Bearbeitung eines neuen Betriebes immer erst die enthaltenen Daten mit dem vorgesehenen Button löschen!!"]
[null,"Um Fehleingaben und Doppelerfassung zu vermeiden, ist auf 'Seite 1' die Möglichkeit eingerichtet worden, per Schaltfläche (\"IK einlesen\") Daten aus dem zugehörigen Investitionskonzept automatisch zu übernehmen. Dies ist aber nur für Daten zu den Abschnitten 1 , 3.4 und 4 des Antrages möglich. Für diesen Vorgang muss in dem gestarteten \"Öffnen-Dialog\" nur die entsprechende IK-Datei ausgewählt werden. Auch Optionen zum Speichern der Antragsdatei, zum Löschen der Eintragungen und zum Druck des Antrages stehen zur Verfügung. Es werden dabei nicht nur die sichtbaren Daten in den Antrag geschrieben. Im Hintergrund werden noch eine Fülle weiterer Daten in der Antragsdatei gespeichert. Daher sollte diese Funktion unbedingt genutzt werden. Sie erspart wesentlichen Verwaltungsaufwand."]
[null,"Nach dem Eingang des vollständigen AFP-Antrags kann die Kreisstelle anhand der zum Antrag mitgelieferten EXCEL-Antrags-Datei per Button auf \"Seite 1\" insgesamt 8 CSV-Dateien je Antrag erzeugen. Der jeweilige Name wird aus den Antragsdaten automatisch gebildet, die Dateien sollten zum Einlesen in InVeKoS im Verzeichnis C:\\Temp abgelegt werden (Dateien mit der Erweiterung \".csv\")."]
[null,"Die in diesen enthaltenen Daten des AFP-Antrags werden durch die Kreisstelle bzw. durch die Bewilligungsbehörde über eine Option des InVeKoS-Programms automatisch eingelesen. Der Prüfvermerk (rechter Teil der Seite 5) ist in einem gesonderten Modul des InVeKoS-Programms zu erfassen."]
[null,"Um möglichst viele Fehler beim Einlesen der IK-Daten zu erkennen und spätere Abbrüche des Einleseverfahren der CSV-Dateien in InVeKoS zu vermeiden, enthält die Seite \"Fehler\" eine kurze Fehlerprüfung mit entsprechenden Hinweisen auf die Fehlerquellen. Nach Korrektur von festgestellten Fehlern, kann die Erstellung der  einfach wiederholt werden."]
[null,"Um das vorgesehene Verfahren zu gewährleisten ist die Excel-Datei, die den Antrag enthält, von allen Antragstellern mit einzureichen. Anderenfalls entsteht erheblich höherer Zeitaufwand für die Erfassung und Bearbeitung."]
[null,"Für die im Antragsformular als Betriebsinhaber, Zuwendungsempfänger, Rechtsnachfolger, Vertreter oder Übernehmer bezeichneten Personen gelten die Bezeichnungen sowohl in der weiblichen als auch in der männlichen Form. Die Formulierungen in der 1. Person Singular gelten jeweils für alle Antragsteller einer Gesellschaft analog wie bei Einzelunternehmen. "]
[null,"Die Inhalte der einzelnen Seiten sind folgende:"]
[null,"Seite 1:",null,"Identifikation des Antragstellers und Angaben zum Unternehmen"]
[null,"Seite 2:",null,"Referenzeinkommen und Kurzbeschreibung der Maßnahme"]
[null,"Seite 3:",null,"Ziel der Maßnahme, Finanzierungsplan und Fördermittel"]
[null,"Seite 3a:",null,"Hinweise zu Investitionsbereichen, Umweltrelevanz und Einhaltung der Anlage 1"]
[null,"Seite 3b:",null,"Viehbesatzgrenze, Ökolog.Landbau, Investorförderung, Buchführungsauflage, Rechtsgrundlage"]
[null,"Seite 4:",null,"Erklärungen des Antragstellers zum Antragsverfahren"]
[null,"Seite 5:",null,"Anlagen zur Untermauerung des Antrages. \nJe nach Art des Antrages sind unterschiedliche Anlagen obligatorisch beizufügen (siehe Rundschreiben). Der Prüfvermerk rechts auf dieser Seite ist auf dem Papierausdruck durch die Kreisstelle auszufüllen. Dessen Ergebnisse sind im InVeKoS-Programm im Modul Prüfvermerk zu erfassen. "]
[null,"Seite 6: \nFehler:",null,"Information zur Veröffentlichung der Zahlungsempfänger (Transparenzinitiative)\n- Hinweise auf Fehler bei der automatisierten Übernahme der IK-Daten in den Antrag"]
[null,"Projektauswahlkriterien:\nAnlage \"SIUK PLUS\":\nAnl. \"STATISTIK (BUND)\":",null," - zwingend erforderliche Anlage zur Bestimmung der Bewilligungsreihenfolge (Ranking)\n - für Investitionen lt. S.3 auszufüllen (s. Kommentar neben d. Zuschussart)\n- zwingend erforderliche Anlage zur Evaluierung monitoringrelevanter Daten sowie Zuschussunterscheidung"]
[null,"Die weiteren Blätter dienen der Verwirklichung der Einleseprozeduren und sind für die Bearbeitung an der Kreisstelle nicht zugänglich."]
[null,"An die Bewilligungsbehörde sind alle IK- und Antragsdateien zu übertragen, da daraus noch weitere Unterlagen und Übersichten (z.B. für die Evaluierung) zu erstellen sind."]

{"sheet":"Seite 1","index":1,"n_rows":55,"n_cols":9,"rows_kept":55,"cut":false,"hidden":false,"merged":[[52,3,52,8],[37,2,37,3],[37,4,37,8],[39,2,39,3],[39,4,39,7],[43,3,43,5],[44,3,44,5],[41,3,41,8],[49,3,49,8],[47,3,47,8],[48,3,48,8],[29,2,29,4],[29,5,29,7],[42,3,42,8],[51,3,51,8],[46,3,46,8],[36,4,36,6],[43,7,43,8],[45,3,45,8],[33,2,33,3],[33,4,33,7],[31,2,31,4],[31,5,31,6],[27,2,27,7],[23,3,23,7],[21,2,21,6],[19,2,19,6],[4,7,4,8],[10,1,10,8],[8,7,8,8],[12,1,13,8],[17,4,17,5],[8,1,8,6],[11,5,11,6],[9,1,9,8],[15,1,15,5],[17,2,17,3],[1,1,1,6],[5,1,5,6],[7,1,7,4],[6,1,6,6],[2,1,2,6],[3,1,3,6],[4,1,4,6]]}
[]
[null,"An den"]
[null,"Direktor der Landwirtschaftskammer NRW"]
[null,"als Landesbeauftragter"]
[]
[null,"über den / die"]
[null,"Dienststellenleiter/in der Verwaltungseinheit"]
[]
[null,null,null,null,null,null,null,"Eingangsstempel der Kreisstelle"]
[null,"Antrag auf Gewährung einer Zuwendung für Investitionen in Unternehmen der Land-  wirtschaft nach den Richtlinien für das Agrarinvestitionsförderungsprogramm (AFP)    "]
[null,"nach d. Richtlinien im Rahmen des nordrhein-westfälischen Agrarinvestitionsförderungsprogramms\n(Agrarinvestitionsförderprogramm NRW - AFP) vom 28.02.2024"]
[null,null,null,null,null,"Neuantrag",null,null,"Version 2024_02"]
[]
[]
[]
[null," 1. Antragsteller/-in"]
[null,null,"Unternehmernummer:",null,"Nummer des Antrags:",null,"Kalenderjahr","Maßnahme Nr."]
[{"$f":"RIGHT(G18,2)","v":"24"},null,null,null,1,null,2024,30]
[null,null,"Name, Vorname oder Unternehmensbezeichnung:",null,null,null,null,"Geschlecht","Geb.-Tag"]
[]
[null,null,"Anschrift: Straße, Hausnummer",null,null,null,null,true,false]
[]
[null,null,"PLZ; ","Ort, Ortsteil",null,null,null,false,"Telefon:"]
[null,null,"","",null,null,null,null,""]
[null,null,"Vertretungsberechtigter, Rechtsform",null,null,null,"Rechtsform","Telefon","Unternehmernr(Vertr):"]
[null,null,"",null,null,null,"",""]
[null,null,"Ehegatte;  Name, Vorname ",null,null,null,null,null,"Geb.-Tag"]
[null,null,""]
[{"$f":"VLOOKUP(F30,Liste1!A37:B52,2,FALSE)","v":{"$error":"#N/A"}},null,"Antragst.:","Hauptberuf ",null,"Berufsausbildung Antragsteller:",null,null,"Bewirtschaftungsweise"]
[{"$f":"VLOOKUP(C30,Liste1!A34:B36,2,FALSE)","v":{"$error":"#N/A"}},null," ",null,null,"",null,null,""]
[{"$f":"VLOOKUP(F32,Liste1!A39:B54,2,FALSE)","v":{"$error":"#N/A"}},null,"Hofnachfolger*in, Name:",null,null,"Ausbildung/Beruf Nachfolger:",null,"Geb.-Tag","Alter weiterer Kinder:"]
[null," ","",null,null,"",null,null,""]
[null,null,"Antragst.:","Telefax","E-Mail-Adresse Antragst.:",null,null,null,"ZID Antragsteller"]
[null,null,""]
[null,null,"Betreuer*in: "]
[{"$f":"VLOOKUP(C36,Liste1!A56:B84,2,TRUE)","v":{"$error":"#N/A"}},null,"",null,""]
[null,null,"Bearbeiter*in / Mithilfe durch:",null,"Dienstsitz /  Adresse (der bei Antragstellung mithelf. Person)"]
[null,null,"",null,""]
[null,null,"Telefon (nur bei Mithilfe):",null,"E-Mail-Adresse (nur bei Mithilfe ausfüllen):",null,null,null,"Telefax (nur bei Mithilfe)"]
[null,null,"",null,"",null,null,null,""]
[]
[null,null,"2.","Erklärungen des Antragstellers zum Unternehmen"]
[null,null,"2.1","Das antragstellende Unternehmen ist ein Kleinst-, kleines oder mittleres Unternehmen nach Definition im Anhang I der Verordnung (EU) Nr. 2022/2472 und erreicht oder überschreitet die in § 1 Abs. 2 des Gesetzes über die Alterssicherung der Landwirte (ALG) genannte Mindestgröße. Ich bin selbstwirtschaftender Unternehmer."]
[null,null,"2.1.1","als Alleinunternehmer seit",null,null,null,"(Eingabeformat \"1.6.23\")"]
[null,null,"2.1.2","als Mitunternehmer mit ",null,null,"","seit dem "]
[null,null,"2.1.3","Ich bin Junglandwirt (zum Zeitpunkt der Antragstellung höchstens 40 Jahre alt)"]
[null,null,"2.2","Am Unternehmen ist die öffentliche Hand nicht oder zu nicht mehr als 25 v.H. des Eigenkapitals beteiligt."]
[null,null,"2.3","Meine Umsatzerlöse aus selbständiger unternehmerischer Tätigkeit, incl. Beteiligungen, werden zu mehr als 25 % aus Bodenbewirtschaftung oder durch mit Bodenbewirtschaftung verbundene Tierhaltung erzielt (bei Gesellschaften gilt die Erklärung für jeden Gesellschafter)."]
[null,null,"2.4","Der Betrieb wird von einer Körperschaft (mit Ausnahme von Gebietskörperschaften), Personen-vereinigung oder Vermögensmasse bewirtschaftet, die unmittelbar kirchliche, gemeinnützige oder mildtätige Zwecke verfolgt."]
[null,null,"2.5","Mit dem zu fördernden Betrieb habe ich innerhalb der letzten zwei Jahre erstmalig eine selbständige Existenz gemäß Nummer 8.2 der Landesrichtlinien errichtet."]
[]
[]
[]
[null,null,"Neuantrag"]
[null,null,"Änderungsantrag"]

{"sheet":"Seite 2","index":2,"n_rows":42,"n_cols":9,"rows_kept":42,"cut":false,"hidden":false,"merged":[[15,2,15,7],[10,2,10,3],[11,2,11,3],[12,2,12,3],[13,2,13,3],[41,2,41,6],[40,2,40,4],[19,2,19,5],[35,2,37,7],[38,2,38,7],[20,2,20,5],[21,2,21,5],[22,2,22,5],[23,2,23,5],[24,2,24,5],[31,2,31,5],[31,6,31,7],[26,2,26,5],[25,2,25,5]]}
[]
[]
[]
[]
[]
[null,"2.6","Erklärungen zu den Einkünften der Antragsteller*innen bzw. Gesellschafter*innen"]
[null,null,"(Die dazugehörenden Unterlagen werden mit dem Antrag vorgelegt)"]
[null,"2.6.1",null,"Ich werde zur Einkommensteuer veranlagt."]
[null,null,"Die positiven Einkünfte der Antragsteller*innen, Gesellschafter*innen und ihrer jeweiligen Ehegatten betragen:"]
[null,null,"(Negative Beträge einzelner Einkunftsarten dürfen nicht abgezogen werden)"]
[null,null,"laut ESt-Bescheid für das Jahr",null,"Antragsteller*in, Gesellschafter*in 1","Gesellschafter*in 2","Gesellschafter*in 3","Gesellschafter*in 4"]
[null,null,2020]
[null,null,{"$f":"C12+1","v":2021}]
[null,null,{"$f":"C13+1","v":2022}]
[null,null,"  Durchschnitt",null,{"$f":"SUM(E12:E14)/3","v":0},{"$f":"SUM(F12:F14)/3","v":0},{"$f":"SUM(G12:G14)/3","v":0},{"$f":"SUM(H12:H14)/3","v":0}]
[null,null,"Ich versichere hiermit, dass diesem Antrag die aktuellsten mir vorliegenden Einkommensteuerbe-scheide und  Buchführungsergebnisse beigefügt sind."]
[null,"2.6.2",null,"Ich werde nicht zur Einkommensteuer veranlagt und erkläre meine Einkünfte und die meines von mir "]
[null,null,null,"nicht dauernd getrennt lebenden Ehegatten wie folgt:"]
[]
[null,null,null,null,null,null,"Antragsteller*in","Ehegatte"]
[null,null,"aus Land- und Forstwirtschaft"]
[null,null,"aus Gewerbebetrieb"]
[null,null,"aus selbständiger Arbeit"]
[null," ","aus nicht selbständiger Arbeit"]
[null,null,"aus Kapitalvermögen"]
[null,null,"aus Vermietung und Verpachtung"]
[null,null,"sonst. Einkünfte im Sinne des § 22EStG"]
[null,null,"Summe der Positiven Einkünfte",null,null,null,{"$f":"SUM(G21:G27)","v":0},{"$f":"SUM(H21:H27)","v":0}]
[]
[null,"3.","Darstellung der Maßnahme"]
[null,"3.1","Bezeichnung",null,null,true,false,false,false]
[{"$f":"VLOOKUP(C32,Liste1!C81:D109,2,FALSE)","v":{"$error":"#N/A"}},null,"",null,null,null,null,null,true]
[null,"3.2","Beschreibung der Maßnahme"]
[null,null,"(Ausgangssituation, Art der Maßnahme, Umfang, geplantes Ergebnis)"]
[]
[null,null,"hier konkrete Beschreibung eintragen (dieselbe Maßnahmenbeschreibung wie im IK!)"]
[]
[]
[null,null,"Kurzbeschreibung! Bei mehr als 250 Zeichen bitte gesondertes Blatt beifügen"]
[]
[null," ","Geplanter Durchführungszeitraum von\n (jew. Monat und Jahr eintragen)",null,null,null,"bis"]
[null," ","Geplante Dauer der Durchführung der Maßnahme nach Beginn bzw. Bewilligung in Monaten"]

{"sheet":"Seite 3","index":3,"n_rows":37,"n_cols":10,"rows_kept":37,"cut":false,"hidden":false,"merged":[[14,9,14,10],[15,9,15,10],[16,9,16,10],[17,9,17,10],[18,9,18,10],[36,7,36,8],[35,2,35,6],[11,3,11,7],[15,3,15,7],[19,3,19,7],[12,3,12,7],[13,3,13,7],[16,3,16,7],[17,3,17,7],[18,3,18,7],[14,3,14,7],[9,9,10,10],[11,9,11,10],[12,9,12,10],[13,9,13,10],[38,2,38,8],[23,2,23,9],[31,2,31,3],[31,4,32,9],[24,2,24,9],[25,4,25,6],[25,7,25,8],[36,2,36,6],[29,2,29,9],[27,2,27,9],[28,2,28,9],[30,2,30,9]]}
[]
[]
[null,"3.3","Die Maßnahme ist bestimmt zur"]
[false]
[false]
[false]
[false]
[false]
[]
[null,"3.4","Gesamtkosten (entspr. Investitionskonzept):",null,null,null,null,null,null,"Bei Inanspruchnahme dieser Zuschussarten ist Anlage \"SIUK PLUS\" erforderlich!"]
[null,"4.","Beantragte Zuwendung"]
[null,null,null,"1. Zuschuss für Geflügel, Schweine u. Erstumstellung Milchkühe auf Laufstallhaltung lt. 9.4.1a",null,null,null,null,0]
[null,null,null,"2. Zuschuss für Investitionen in übrige Tierarten lt. 9.4.1a",null,null,null,null,0]
[null,null,null,"3. Zuschuss für Investitionen lt. 9.4.1b, c, g",null,null,null,null,0,"X"]
[null,null,null,"4.Zuschuss für Investitionen in Bewässerungsanlagen lt. 9.4.1d",null,null,null,null,0]
[null,null,null,"5. Zuschuss für Investitionen lt. 9.4.1e (mit Aufschlag f. Kälbermatten), h ",null,null,null,null,0]
[null,null,null,"6. Zuschuss für Investitionen lt. 9.4.1f, i ",null,null,null,null,0,"X"]
[null,null,null,"7. Zuschuss für sonstige Invest. lt. 9.4.1e, ohne Aufschlag ",null,null,null,null,0]
[null,null,null,"8. Junglandwirtezuschuss lt. 9.4.2",null,null,null,null,0]
[null,null,null,"Zuschussbeträge insgesamt",null,null,null,null,{"$f":"SUM(I12:I19)","v":0}]
[null,"5.","Finanzierungsplan"]
[null,null,"Siehe Investitionskonzept und die dazu vorgelegten Nachweise zur Finanzierung."]
[null,"6.","Erklärungen"]
[null,"6.1","Erhaltene Förderungen, Mitgliedschaft in einer Erzeugerorganisationen, Darlehen von Förderbank"]
[false,null,"Diesem Antrag habe ich eine Erklärung zu schon erhaltenen (ggf. v. Rechtsvorgänger*in) und auf die Förderhöchstgrenzen anzurechnenden Zuwendungen / Beihilfen beigefügt (AFP-Anlage 31)."]
[null,null,null,null,"Unternehmer-Nr. Rechtsvorgänger*in:"]
[false]
[null,null,"Ich bin Mitglied einer Erzeugerorganisation (z.B.: Erzeugerorganisation für Obst und Gemüse). Die geplante Investition wird vom Operationellen Programm der Erzeugerorganisation nicht abgedeckt. Siehe Anlage Nr. 27."]
[false,null,"Für die Maßnahme werde ich ein Darlehen der Landwirtschaftlichen Rentenbank, NRW-Bank oder der KfW-Bank in Anspruch nehmen. Die beihilferechtlichen Förderhöchstgrenzen werden dabei nicht überschritten. Nach Zuteilung des Darlehens wird unverzüglich eine Ausfertigung der Darlehensbescheinigung an die Bewilligungsbehörde übersandt."]
[null,"6.2","Beantragung eines Junglandwirtezuschusses und Begründung Härtefall:"]
[false,"6.2.1","Mit Bezug auf die Angaben unter den Ziffern 1 bis 4 dieses Antrages  bestätige ich, dass ich bisher keine Beihilfe für die erstmalige Niederlassung nach den Richtlinien zum AFP erhalten habe oder den maximal zulässigen Höchstbetrag noch nicht ausgeschöpft habe."]
[null,"6.2.2","Es liegt ein Härtefall vor.\n"]
[false,null,null,"Begründung:"]
[false]
[null,"6.3","Baugenehmigungspflicht, Umweltrelevanz und besonders tiergerechte Haltung"]
[false,"6.3.1","Die dargestellten Maßnahmen sind baugenehmigungspflichtig : ",null,null,null,null,null,{"$f":"IF(A36=TRUE,\"Ja\",\"Nein\")","v":"Nein"}]
[false,"6.3.2","Die Baugenehmigung wurde erteilt am: "]

{"sheet":"Seite3a","index":4,"n_rows":53,"n_cols":10,"rows_kept":53,"cut":false,"hidden":false,"merged":[[7,2,7,8],[10,2,10,9],[20,2,20,9],[21,2,22,9],[11,2,11,8],[12,2,12,8],[13,2,15,9],[16,2,18,9],[19,2,19,9]]}
[null,"6.3.3","Investitionsbereich"]
[false,"6.3.3.1",null,"Betrieb mit eigener Nachzucht bei Kühen bzw. mit eigener Ferkelaufzucht bei Sauen"]
[false,"6.3.3.2",null,"Umstellung von Anbindehaltung bei Milchkühen"]
[false,"6.3.3.3",null,"Verarbeitung / Aufbereitung von Obst, Gemüse, Blumen, Zierpflanzen"]
[false,"6.3.3.4",null,"Innovationspartnerschaft"]
[]
[null,"6.3.4","Investitionen mit Umweltrelevanz"]
[false,"6.3.4.1","Die Investition führt zu einer Gülle-/Jauchelager- oder Festmistlagerkapazität, die über eine Mindestlagerkapazität verfügt, die zwei Monate über die betriebsindividuellen ordnungsrechtlichen Vorgaben hinausgeht",null,null,null,null,null,null,{"$f":"IF(A8=TRUE,\"Ja\",\"Nein\")","v":"Nein"}]
[false,"6.3.4.2","Investition zur Energieeinsparung/ Emissionsminderung bei Gewächshäusern/ Hallen",null,null,null,null,null,null,{"$f":"IF(A9=TRUE,\"Ja\",\"Nein\")","v":"Nein"}]
[false,"6.3.4.3","Die Investition dient der Erstanschaffung einer Bewässerungsanlage",null,null,null,null,null,null,{"$f":"IF(A10=TRUE,\"Ja\",\"Nein\")","v":"Nein"}]
[null,null,"Die Planung einer Investition mit Umweltrelevanz (\"ja\"-Angabe) wird mit der Stellungnahme der \nBauberatung der Landwirtschaftskammer NRW zu diesem Antrag bestätigt. "]
[false,"6.3.4.4","Sonstige Investitionen in Umweltschutz, Energieeinsparung, Emissionsminderung,\nRessourceneffizienz (nur Maßnahmen gem. Katalog 'AFP-Investitionen mit Umweltrelevanz')",null,null,null,null,null,null,{"$f":"IF(A12=TRUE,\"Ja\",\"Nein\")","v":"Nein"}]
[null,null,"Genaue Beschreibung der sonstigen Maßnahmen in Umweltschutz, Energieeinsparung, Emissionsminderung, Ressourceneffizienz: "]
[]
[]
[]
[]
[]
[]
[null,null,"(Bitte zur Beschreibung nicht mehr als 250 Zeichen je Textfeld verwenden, ggf. die Beschreibung im zweiten Textfeld fortsetzen.)"]
[null,"6.3.5","Erfüllung der Anforderungen für die besonders tiergerechte Haltung gemäß Anlage 1 zu den Richtlinien"]
[false,null,"Mit den dargestellte/n Investition/en werden die baulichen und technischen Anforderungen für eine besonders tiergerechte Haltung erfüllt. Die entsprechenden Kriterien nach der Anlage 1 zu den Richtlinien wurden mir bekannt gegeben. Alle Kriterien für die besonders tiergerechte Haltung werden ab dem Abschluss der Maßnahme bis zum Ende des Zweckbindungszeitraums für den geförderten Stall erfüllt.                    "]
[]
[]
[]
[]
[]
[]
[]
[]
[]
[]
[]
[]
[]
[]
[]
[]
[]
[]
[]
[]
[]
[]
[]
[]
[]
[true]
[false]
[false]
[]
[]
[true]

{"sheet":"Seite3b","index":5,"n_rows":23,"n_cols":3,"rows_kept":23,"cut":false,"hidden":false,"merged":[[22,2,22,10],[13,2,13,10],[21,2,21,3],[20,2,20,10],[10,2,10,10],[16,2,16,10],[19,2,19,10],[11,2,11,8],[11,9,11,10],[6,2,6,10],[17,2,17,10],[14,2,14,10],[1,2,1,10],[2,2,2,10],[3,2,3,10],[9,2,9,10],[4,2,4,8],[4,9,4,10],[7,2,7,10],[5,2,5,10],[12,2,12,10]]}
[]
[null,"6.4 *)","Einhaltung der Viehbesatzgrenze (bei Investitionen in einen Tierhaltungsbereich)"]
[null,null,"Der Viehbesatzgrenze von 2,0 Großvieheinheiten (GVE) je ha landwirtschaftlich genutzter Fläche wird mindestens 5 Jahre nicht überschritten. "]
[false,null,"Die Viehbesatzgrenze von 2 GVE je ha LF wird durch die Abgabe von tierischen Exkrementen eingehalten. Dazu lege ich mit diesem Antrag entsprechende vertragliche Regelungen vor. Von den anfallenden tierischen Exkrementen werden jedoch mehr als die Hälfte auf den selbst bewirtschafteten Flächen ausgebracht. "]
[null,null,"Der reduzierte Viehbesatz im Betrieb beträgt nach Abschluss der Maßnahme"]
[null,null,"GVE je ha LNF (bei außerbetrieblicher Nährstoffverwertung siehe Anlage Nr. 29)."]
[null,null,"Bei der Berechnung des Viehbesatzes habe ich die Regelung nach der Nr. 5.2.5  der Richtlinien (Ad-  dition bei Betriebsumstrukturierungen in dem Zeitraum von 3 Jahren vor der Antragstellung und bei geplanten Umstrukturierungen) berücksichtigt. Ich verweise auf die Anlage Nr. 32."]
[null,null,"Mir ist bekannt, dass die Viehbesatzgrenze nach den Richtlinien mindestens 5 Jahre ab dem Zeitpunkt der Bewilligung einzuhalten ist und bei einer Nichteinhaltung in diesem Zeitraum eine bewilligte/gezahlte  Zuwendung ganz/teilweise zurückgefordert werden kann."]
[]
[null,"6.5 *)","Einhaltung der Tierbestand-Obergrenzen (bei Investitionen in einen Tierhaltungsbereich)"]
[null,null,"Die mit den AFP-Richtlinien festgelegten Tierbestands-Obergrenzen (incl. der Regelung für gemischte Bestände) wurden mir bekannt gegeben; die Obergrenzen werden im Unternehmen im Zieljahr nicht überschritten."]
[null,null,"Die Bestandsobergrenze/n wird/werden nach dem Abschluss der Maßnahme zu"]
[null,null,"ausgeschöpft (siehe Anlage Nr. 33). "]
[null,null,"Bei den Angaben zum Tierbestand habe ich die Regelung nach der Nr. 5.2.4 und Nr. 5.2.5 der Richtlinien (Addition der Produktionskapazitäten bei Betriebsumstrukturierungen in dem Zeitraum von 3 Jahren vor der Antragstellung und bei geplanten Umstrukturierungen; Addition der Produktions-kapazitäten beim Betrieb gemeinsamer Anlagen) berücksichtigt. Ich verweise auf die Anlage Nr. 32."]
[null,null,"Mir ist bekannt, dass die Tier-Bestandsobergrenze nach den Richtlinien mindestens 5 Jahre ab dem Zeitpunkt der Bewilligung einzuhalten ist und bei einer Überschreitung in diesem Zeitraum eine bewilligte/gezahlte Zuwendung ganz/teilweise zurückgefordert werden kann."]
[null,"*) Diese Erklärungen sind nur bei Investitionen in einen Tierhaltungsbereich relevant."]
[null,"6.6","Bewirtschaftung nach den Vorschriften der ökologischen/biologischen Produktion"]
[null,null,"Das Unternehmen wird nach den Vorschriften über die ökologische/biologische Produktion und die Kennzeichnung von ökologischen/biologischen Erzeugnissen nach der Verordnung (EU) 2018/848 des Europäischen Parlaments und des Rates vom 30. Mai 2018 bewirtschaftet. Den Vertrag mit der bescheinigenden Kontrollstelle habe ich diesem Antrag beigefügt. Falls dieses Vertragsverhältnis bei einer Förderung innerhalb des Zweckbindungszeitraums aufgelöst wird, werde ich Ihnen dies mitteilen und ggf. den direkt anschliessenden neuen Kontrollvertrag vorlegen."]
[]
[null,"6.7","Investition in ein Sonderbetriebsvermögen (\"Investorförderung\")"]
[null,null,"Die dargestellte Maßnahme erfolgt als Investition in das Sonderbetriebsvermögen eines beteiligten Gesellschafters (Investor). Eine Förderung kann nur erfolgen, wenn alle vom Antragsteller abweichenden Investoren mittels Schuldbeitritt (abzuschließender Vertrag) für eine eventuelle Rückzahlung der Investitionszuschüsse die gesamtschuldnerische Haftung übernehmen. Die Schuldbeitrittserklärung ist spätestens mit dem ersten Verwendungsnachweis vorzulegen!\nDer Investor ist im Unternehmen tätiger Mitgesellschafter. Die Summe seiner positiven Einkünfte liegt nicht über der Prosperitätsgrenze nach der Nr. 8.3 der Richtlinien."]
[]
[null,null,"Diesem Antrag ist ein Vertrag / ein Vertragsentwurf beigefügt mit dem die unter Nr. 3.2 beschriebene Anlage nach Ihrer Fertigstellung der Antrag stellenden Gesellschaft zur Nutzung überlassen wird (siehe Anlage Nr. 34). Bei der Vertragsdauer ist die Zweckbindungsdauer nach den AFP-Richtlinien (12 Jahre ab Fertigstellung) berücksichtigt."]

{"sheet":"Seite 3c","index":6,"n_rows":27,"n_cols":3,"rows_kept":27,"cut":false,"hidden":false,"merged":[[1,2,1,10],[2,2,2,10],[3,2,3,10],[17,2,17,7],[15,2,15,10],[4,2,4,10],[5,2,5,10],[6,2,6,10],[10,2,10,10],[11,2,11,10],[13,2,13,10],[14,2,14,10],[12,2,12,10],[9,2,9,10],[8,2,8,10],[7,2,7,10],[26,2,26,10],[25,2,25,10],[18,2,18,10],[19,2,19,10],[24,2,24,10],[21,2,21,10],[22,2,22,10],[23,2,23,10],[20,2,20,10]]}
[]
[null,"6.8","Buchführungsauflage"]
[null,null,"Mir / uns ist bekannt, dass eine Bewilligung mit einer Auflage zur Vorlage von Buchführungs-jahresabschlüssen erfolgen wird. Die Bestimmungen dazu,  incl. der entsprechenden Regelungen zur Vorlage von mindestens 5 Jahresabschlüssen ab dem Zeitpunkt der Bewilligung, wurden mir bekannt gegeben. Mir / uns ist bekannt, dass bei einer Nichterfüllung oder bei einer nur teilweisen Erfüllung der Buchführungsauflage die Zuwendung gekürzt und bereits gezahlte Zuschüsse zurückgefordert werden. Die Kürzung kann bis zu einer vollständigen Rückforderung und dem Widerruf der Bewilligung führen."]
[null,"6.9","Mir / uns ist bekannt, dass die Gewährung der beantragten Zuwendung auf den folgenden Rechtsgrundlagen in jeweiliger Fassung beruht:"]
[null,"s","Verordnung (EU) 2021/2115 des Europäischen Parlamentes und des Rates vom 2. Dezember 2021 mit Vorschriften für die Unterstützung der von den Mitgliedstaaten im Rahmen der Gemeinsamen Agrarpolitik zu erstellenden und durch den Europäischen Garantiefonds für die Landwirtschaft (EGFL) und den Europäischen Landwirtschaftsfonds für die Entwicklung des ländlichen Raums (ELER) zu finanzierenden Strategiepläne (GAP-Strategiepläne) und zur Aufhebung der Verordnung (EU) Nr. 1305/2013 sowie der Verordnung (EU) Nr. 1307/2013 (ABl. L 435 vom 6.12.2021, S. 1),"]
[null,"s","Delegierte Verordnung (EU) 2022/126 der Kommission vom 7. Dezember 2021 zur Ergänzung der Verordnung (EU) 2021/2115 des Europäischen Parlaments und des Rates um zusätzliche Anforderungen für bestimmte, von den Mitgliedstaaten in ihren GAP-Strategieplänen für den Zeitraum 2023 bis 2027 gemäß der genannten Verordnung festgelegte Interventionskategorien sowie um Vorschriften über den Anteil für den Standard für den guten landwirtschaftlichen und ökologischen Zustand (GLÖZ-Standard) Nr. 1 (ABl. L 20 vom 31.1.2022, S. 52),"]
[null,"s","Verordnung (EU) 2022/2472 der Kommission vom 14. Dezember 2022 zur Feststellung der Vereinbarkeit bestimmter Gruppen von Beihilfen im Agrar- und Forstsektor und in ländlichen Gebieten mit dem Binnenmarkt in Anwendung der Artikel 107 und 108 des Vertrags über die Arbeitsweise der Europäischen Union (ABl. L 327 vom 21.12.2022, S. 1) (Agrar-Gruppenstellungsfreistellungsverordnung),"]
[null,"s","Tierschutz-Nutztierhaltungsverordnung in der Fassung der Bekanntmachung vom 22. August 2006 (BGBl. I S. 2043),"]
[null,"s","GAK-Gesetz in der Fassung der Bekanntmachung vom 21. Juli 1988 (BGBl. I S. 1055),"]
[null,"s","Verordnung über genehmigungsbedürftige Anlagen in der Fassung der Bekanntmachung vom 31. Mai 2017 (BGBl. I S. 1440),"]
[null,"s","Bewertungsgesetz in der Fassung der Bekanntmachung vom 1. Februar 1991 (BGBl. I S. 230),"]
[null,"s","Gesetz über die Alterssicherung der Landwirte vom 29. Juli 1994 (BGBl. I S. 1890, 1891),"]
[null,"s","Einkommensteuergesetz in der Fassung der Bekanntmachung vom 8. Oktober 2009 (BGBl. I S. 3366, 3862),"]
[null,"s","§ 23 und 44 der Landeshaushaltsordnung in der Fassung der Bekanntmachung vom 26. April 1999 (GV. NRW. S. 158) und"]
[null,"s","Verwaltungsvorschriften zur Landeshaushaltsordnung vom 6. Juni 2022 (MBl. NRW. S. 445)."]
[null,null,"Der Wortlaut ist einsehbar über die Internetseiten der Europäischen Union (http://eur-lex.eu/ de/index.htm) bzw. des zuständigen Bundesministeriums (http://www.bmelv.de) oder bei der zuständigen Kreisstelle."]
[]
[null,"6.10","Ich bin / wir sind damit einverstanden, dass"]
[null,"6.10.1","die Buchführungsdaten des Betriebes & alle Angaben im Antragsverfahren für eine betriebswirt- schaftliche Auswertung sowie zur Evaluierung d. Fördermaßnahme verwendet werden können."]
[null,"6.10.2","die zuständige Behörde die ihr vorliegenden Unterlagen des Betriebes zur Entscheidung über diesen Antrag beiziehen kann."]
[null,"6.10.3","die Angaben dieses Antrags an die zuständigen Organe des Landes, des Bundes und der EU übermittelt werden können, alle Angaben zum Zwecke einer zügigen Bearbeitung des Antrages sowie zu statistischen Zwecken gespeichert werden können."]
[null,"6.10.4","die Angaben zur Person und zur Sache zum Zwecke einer zügigen Bearbeitung des Antrages sowie zu statistischen Zwecken gespeichert werden können."]
[null,"6.10.5","eine Investition in die Tierhaltung nur dann erfolgen kann, wenn die Kriterien der Anlage 1 erfüllt sind. Diese sind mir bekannt."]
[null,"6.10.6","eine Investition im Gartenbau nur dann bewilligt werden kann, wenn mindestens zwei Kriterien aus dem Kriterienkatalog erfüllt werden. Dieser ist mir bekannt."]
[null,"6.10.7","die Reihenfolge der Bewilligung nach einem Punkteschema erfolgt. Dies ist mir bekannt."]
[null,"6.10.8","Investitionen in Bewässerungsanlagen nur dann anerkannt werden können, wenn eine Wassereinsparung von mindestens 15 % erreicht wird."]
[null,"6.10.9","ich/wir mich/uns verpflichte/n, auf Verlangen Auskunft gegenüber dem Bund oder einer vom Bund benannten Stelle im Zusammenhang mit dem bewilligten Zuschuss zum Zwecke der Umweltberichterstattung und des Monitorings der Fördermaßnahme zu geben, im Einzelnen \n- zur Erfüllung von Anforderungen der Richtlinie (EU) 2016/2284 im Bereich der Luftreinhaltung und \n- zur Erfüllung von Anforderungen der Verordnung (EU) 2018/1999 sowie des Bundes-Klimaschutzgesetzes im Bereich der Treibhausgasemissionen und des Klimaschutzes.\n"]

{"sheet":"Seite 4","index":7,"n_rows":20,"n_cols":3,"rows_kept":20,"cut":false,"hidden":false,"merged":[[2,1,2,7],[13,1,13,7],[19,1,19,7],[0,1,0,6],[1,1,1,7],[3,1,3,7],[9,1,9,7],[11,1,11,7],[4,1,4,7],[5,1,5,7],[10,1,10,7],[7,1,7,7],[6,1,6,7],[16,1,18,7],[14,1,14,6],[12,1,12,7],[8,1,8,7]]}
["6.11","Erklärungen"]
["6.11.1","Ich bin auf die Bedeutung und Wirkung des Einverständnisses zu Nrn. 6.10.1 bis 6.10.9 sowie über dessen Widerrufbarkeit belehrt worden."]
["6.11.2","Ich habe die 'Informationen zur Veröffentlichung von Förderdaten' erhalten und mir ist deren Inhalt bekannt (siehe auch Seite 6)."]
["6.11.3","Mir ist bekannt, dass die erbetenen Angaben der Überprüfung der Voraussetzungen für eine Zuschuss- gewährung dienen und dass eine Bewilligung nur möglich ist, wenn die Angaben in diesem Antragsvordruck vollständig enthalten sind."]
["6.11.4","Mir ist bekannt, dass der Zuwendungsbescheid erlischt, wenn nicht innerhalb von 6 Monaten nach Erhalt des Zuwendungsbescheides mit der zu fördernden Maßnahme in wesentlichen Teilen begonnen wurde."]
["6.11.5","Den Beginn werde ich mittels des von der Bewilligungsstelle vorgegebenen Formulars unaufgefordert bei der ersten Einreichung eines Verwendungsnachweises und zugehörigen Auszahlungsantrags anzeigen."]
["6.11.6","Mit der Maßnahme wurde noch nicht begonnen und es wird auch nicht vor Bekanntgabe des Zuwendungs-  bescheides begonnen; als Beginn des Vorhabens ist grundsätzlich der Abschluss eines der Ausführung zuzurechnenden Lieferungs- oder Leistungsvertrages zu werten."]
["6.11.7","Mir ist bekannt, dass alle Angaben dieses Antrages, von denen die Bewilligung, Gewährung, Weitergewährung oder das Belassen der Zuwendung abhängig sind, subventionserheblich im Sinne des § 264 Strafgesetzbuch (in der Fassung der Bekanntmachung vom 13. November 1998, Fundstelle: Bundesgesetzblatt (BGBl) I, Seite 3322) sind. Das heißt unter den im § 264 Strafgesetzbuch genannten Voraussetzungen kann es unter anderem strafbar sein, falsche Angaben im Zusammenhang mit der Gewährung von Zuwendungen zu machen."]
["6.11.8","Die Einhaltung der eingegangenen Verpflichtungen sowie die Angaben im und zum Antrag können auch an Ort und Stelle durch die zuständigen Prüfungsorgane des Landes, des Bundes und der EU kontrolliert werden.   Ich oder ein Vertreter werde dem beauftragten Kontrollpersonal die geförderten Investitionen bezeichnen und es zu diesen begleiten und ich erkläre, dass ich ihm das Betretungsrecht und das Recht auf eine angemessene Verweildauer auf den Grundstücken und in den Betriebs- und Geschäftsräumen sowie die Einsichtnahme in die für die Beurteilung der Zuwendungsvoraussetzungen notwendigen betriebs-   wirtschaftlichen Unterlagen einräumen und die notwendigen Auskünfte erteilen werde."]
["6.11.9","Mir ist bekannt, dass eine Förderung von Investitionen unter dem Vorbehalt des Widerrufs für den Fall erfolgt, dass geförderte Objekt veräußert oder nicht mehr dem Zuwendungszweck entsprechend verwendet wird.\n"]
["6.11.10","Mir ist bekannt, dass Vorhaben die aus Mitteln anderer öffentlicher Förderungsprogramme gefördert werden, nicht gleichzeitig nach dem Agrarinvestitionsförderungsprogramm gefördert werden dürfen."]
["6.11.11","Mir ist bekannt, dass eine Kumulation nur mit Mitteln der Landwirtschaftlichen Rentenbank oder der Förderbanken der Länder möglich ist, dabei jedoch die beihilferechtlichen Förderhöchstgrenzen nicht überschritten werden dürfen. Die Nachweise zur Überprüfung der Einhaltung der Förderhöchstgrenzen werde ich ggf. vorlegen."]
["6.11.12","Mir ist bekannt, dass im Falle von Rückforderungen von zu Unrecht ausgezahlten Mitteln Zinsen anfallen können.","im Falle von Rückforderungen von zu Unrecht ausgezahlten Mitteln unterschiedliche Verzinsungsregelungen für EU-Mittel und nationale Kofinanzierungsmittel zur Anwendung kommen."]
["6.11.13","Mir ist bekannt, dass ich jede Veränderung der Betriebsform oder zu den Unternehmern/Gesellschaftern unverzüglich und unaufgefordert anzeigen muss. In einem jedem Falle entscheidet die Bewilligungsbe-hörde über die Zulässigkeit der Übertragung. Innerhalb der ersten 5 Jahre nach Bewilligung muss der Übernehmer alle Kriterien erfüllen, als wäre er selbst der Antragsteller. Die entstehenden Kosten für die Nachweise (z.B. Investitionskonzept) trägt der Antragsteller. Falls der Übertragung nicht zugestimmt werden kann, so kann außer in begründeten Ausnahmefällen der bereits ausgezahlte Zuschuss ganz oder teilweise zurück gefordert werden."]
["6.12","Versicherung"]
[null,"Ich versichere / Wir  versichern, dass"]
[null," - gegen mich / uns in den letzten fünf Jahren weder eine Geldbuße von wenigstens 2.500 Euro nach § 404 Abs. 2 Nr. 3 des Dritten Buches Sozialgesetzbuch rechtskräftig verhängt, noch dass ich / wir rechtskräftig nach den §§ 10, 10a oder 11 des Schwarzarbeitsbekämpfungsgesetzes zu einer Freiheitsstrafe von mehr als drei Monaten oder einer Geldstrafe von mehr als 90 Tagessätzen verurteilt wurde  / wurden.\n"]
[]
[]
[null," - die Zuwendungen nicht zur Finanzierung terroristischer Aktivitäten eingesetzt werden und dass ich/wir \nkeine terroristische Vereinigung bin/sind oder terroristische Vereinigungen unterstütze/unterstützen."]

{"sheet":"Seite 5","index":8,"n_rows":53,"n_cols":12,"rows_kept":53,"cut":false,"hidden":false,"merged":[[51,1,51,4],[41,1,41,11],[45,1,45,11],[50,1,50,11],[46,1,46,4],[42,1,42,4],[49,1,49,9],[0,10,0,11],[2,2,2,9],[1,10,2,10],[1,11,2,11],[5,7,5,9],[6,4,6,5],[6,6,6,7],[38,1,38,4],[37,1,37,11],[3,3,3,9],[9,3,9,9],[5,3,5,5],[28,3,28,9],[8,3,8,9],[17,3,17,9],[15,3,15,9],[22,3,22,9],[11,3,11,9],[7,3,7,9],[10,3,10,9],[30,3,30,9],[24,3,24,9],[26,3,26,9],[25,3,25,9],[29,3,29,9],[27,4,27,8],[23,3,23,9],[19,3,19,9],[12,3,12,9],[18,3,18,9],[21,3,21,9],[14,3,14,9],[20,3,20,9],[13,3,13,9],[16,3,16,9]]}
[null,null,null,null,null,null,null,null,null,null,"nur für Kreisstelle"]
[null,"7.","Anlagen ",null,null,null,null,null,null,null,"erfor-derlich","geprüft aner-kannt"]
[null,"Nr.","Die beigefügten und ggfls. nachgereichten Anlagen sind Bestandteil meines Antrages."]
[false,"1.",null,"Investitionskonzept (bei Investorförderung zusätzlich Investor-IK beifügen)",null,null,null,null,null,null,"X"]
[false,"2.",null,"Kopie der ESt-Bescheide für 3 Jahre:",null,null,2020,2021,2022,null,"X"]
[null,"3.",null,"betriebsw. Jahresabschluss zum WJ",null,null,"2022/2023","bei Existenzgründung: Eröffnungsbilanz",null,null,"X"]
[null,"4.",null,"ZID-Nr: 276-",null,null,"(bitte eintragen!)",null,null,null,"X"]
[null,"5.",null,"Erklärungen zur Erfüllung der Buchführungsauflage, Version ab 2024",null,null,null,null,null,null,"X"]
[null,"6.",null,"Bescheinigung/en der Alterskasse",null,null,null,null,null,null,"X"]
[null,"7.",null,"Bestätigung eines erheblichen öffentlichen Interesses (bei Aussiedlungen)"]
[null,"8.",null,"Kreditbereitschaftserklärung der Bank (bei Aufnahme von Fremdkapital)"]
[null,"9.",null,"Eigenmittelnachweis der Bank (bei > 20.000 Euro Eigenmitteln)"]
[null,"10.",null,"Steuerbescheinigungen der Bank über Kapitalerträge",null,null,null,null,null,null,"X"]
[null,"11.",null,"Stellungnahme der unteren Landschaftsbehörde"]
[null,"12.",null,"Kopie des Gesellschaftsvertrags"]
[null,"13.",null,"Baurechtliche Genehmigung/en"]
[false,"14.",null,"Baupläne "]
[null,"15.",null,"Skizze (Lageplan) des Betriebs mit bisheriger u. künftiger Nutzung der Altgebäude"]
[null,"16.",null,"Kostenvoranschläge (soweit keine baufachliche Stellungnahme verlangt)"]
[null,"17.",null,"Stellungnahme der Bauberatung der LWK NRW"]
[null,"18.",null,"Stellungnahme & Anlage der Technikberatung Gartenbau der LWK"]
[null,"19.",null,"Betreuervertrag (Kopie)/Vereinbarung mit Gebührenrechnung"]
[null,"20.",null,"Kooperationsvertrag; Aufstellung über die Beteiligung an der Kooperation"]
[null,"21.",null,"Vollmachten (bei Gesellschaften und sonst. Gemeinschaften, bei Investorförderung) "]
[null,"22.",null,"Antrag auf 'Förderunschädlichkeit des Maßnahmenbeginns'"]
[null,"23.",null,"Nachweis zum Anteil der Umsatzerlöse aus Land- und Forstwirtschaft"]
[null,"24.",null,"Kontoauszug zu vorhandenen Förderdarlehen"]
[null,"25.",null,"Sonstiges:"]
[null,"26.",null,"Anlage 26, Berechnung der bereinigten Eigenkapitalentwicklung, Version FP2023-2027"]
[null,"27.",null,"Erklärung zur Mitgliedschaft in Erzeugerorganisationen"]
[null,"28.",null,"Kreditzusage Förderdarlehen und Beihilfebescheinigung der Förderbank"]
[null,"29.",null,"Anlage 29, Anrechnung der Abgabe von Wirtschaftsdünger, Version FP2023-2027"]
[null,"30.",null,"Vertrag mit bescheinigender Kontrollstelle für ökologischen Landbau"]
[null,"31.",null,"Anlage 31, Erklärung zum Erhalt einer Zuwendung_Beihilfe, Version FP2023-2027",null,null,null,null,null,null,"X"]
[null,"32.",null,"Erklärung zu einer Unternehmenumstrukturierung / dem Betrieb einer gemeinsamen Anlage",null,null,null,null,null,null,"X"]
[null,"33.",null,"Anlage 33, Einhaltung der Bestandsobergrenzen, Version 2024"]
[null,"34.",null,"Vertrag / Vertragsentwurf zur Überlassung der Nutzung (bei Investorförderung)"]
[null,"Ich versichere, dass die Angaben in diesem Antrag (einschl. der Anlagen zum Antrag) vollständig und richtig sind."]
[null,"",null,null,null,null,""]
[null,null,null,null,null,null,"Unterschrift/en  Antragsteller/in:"]
[null,"Erklärung des Ehegatten:"]
[null,"Ich bestätige die Richtigkeit und Vollständigkeit der Angaben über meine Einkünfte und bin mit der Verwendung dieser Angaben im Rahmen des Antragsverfahrens einverstanden."]
[null,""]
[null,null,null,"Ort, Datum:",null,null,"Unterschrift/en  Ehegatte/n:"]
[null,"Erklärung der Betreuerin/des Betreuers:"]
[null,"Der Antrag enthält die für die Beurteilung erforderlichen Angaben. Mir sind keine Sachverhalte bekannt, welche wesentlichen Angaben im Antrag und in den Anlagen dazu entgegenstehen."]
[null,""]
[null,null,null,"Ort, Datum:",null,null,"Unterschrift des/der Ehegatten:"]
[null,null,null,"Ort, Datum:",null,null,"Unterschrift  Betreuer/in:"]
[null,"Erklärung der bei der Antragserstellung mithelfenden Person:"]
[null,"Mir sind keine Sachverhalte bekannt, welche wesentlichen Angaben im Antrag und in den Anlagen dazu entgegenstehen."]
[null,""]
[null,null,null,"Ort, Datum:",null,null,"Unterschrift Mithelfer/in:"]

{"sheet":"Seite 6","index":9,"n_rows":6,"n_cols":1,"rows_kept":6,"cut":false,"hidden":false,"merged":[]}
["Erklärungen und Verpflichtungen zur Antragstellung 2024 \nDer Direktor der Landwirtschaftskammer NRW als Landesbeauftragter – Der Leiter der EU-Zahlstelle; Geschäftsbereich 3;  Stand: Februar 2024 \n"]
["Informationen zur Veröffentlichung von Förderdaten "]
["Unterrichtung der Begünstigten von Mitteln aus dem Europäischen Garantiefonds für die Landwirtschaft (EGFL) und dem Europäischen Landwirtschaftsfonds für die Entwicklung des ländlichen Raums (ELER) über die Veröffentlichung und Verarbeitung ihrer Daten im Rahmen der sog. Transparenz \n\nI. Allgemeines \nDie Mitgliedstaaten der Europäischen Union (EU) sind aufgrund europarechtlicher Vorgaben verpflichtet, die Begünstigten von Mitteln aus den o. g. Agrarfonds der EU des vorangegangenen Agrar-Haushaltsjahres spätestens zum 31. Mai jedes Jahres im Internet zu veröffentlichen (sog. Transparenz). \n \nZum Zweck des Schutzes der finanziellen Interessen der EU können die Daten der Begünstigten von Rechnungsprüfungs- und Untersuchungseinrichtungen der EU, des Bundes, der Länder, Kreise und Gemeinden verarbeitet werden. \n \nMit der Veröffentlichung der Daten über die Begünstigten der o. g. Agrarfonds verfolgt die EU das Ziel, die Transparenz der Verwendung ihrer Mittel und die Öffentlichkeitswirkung und Akzeptanz der Gemeinsamen Agrarpolitik der EU zu verbessern sowie die Kontrolle der Verwendung ihrer Mittel zu verstärken. \n \nDie Veröffentlichung der Zahlungen ab dem Agrar-Haushaltsjahr 2023, das am 16. Oktober 2022 begann, enthält je nachdem, ob es sich noch um Zahlungen für Maßnahmen nach den Regelungen der alten oder bereits der neuen Förderperiode handelt, unterschiedliche Informationen. \n"]
["II. Maßnahmen der neuen Förderperiode 2023-2027 \nFür die übrigen Maßnahmen richtet sich die Veröffentlichung nach Artikel 98 Verordnung (EU) 2021/2116 in Verbindung mit Artikel 49 Absatz 3 und 4 Verordnung (EU) 2021/1060. Die Veröffentlichung enthält folgende Informationen: \na) bei natürlichen Personen Vor- und Nachnahme des Begünstigten, \nb) bei juristischen Personen oder Personenvereinigungen den Namen oder die Bezeichnung, unter der der \nBegünstigte im Rechtsverkehr auftritt, \nc) die Gemeinde, in der der Begünstigte wohnt oder seinen Sitz hat, die Postleitzahl und den Staat, \nd) im Falle der Zugehörigkeit des Begünstigten zu einer Unternehmensgruppe: Name des Mutterunterneh-mens und dessen steuerliches Identifikationsmerkmal, \ne) die Beträge der Zahlungen, die der Begünstigte in dem betreffenden Agrar-Haushaltsjahr für jede aus dem EGFL oder dem ELER finanzierte Maßnahme erhalten hat; für die ELER finanzierten Maßnahmen unter Angabe der Beteiligung der Union und der nationalen Beteiligung; ferner sind der Gesamtbetrag des jeweiligen Agrarfonds und deren Summe anzugeben, \nf) sonstige Informationen in Bezug auf die jeweilige Maßnahme: \n(1) Bezeichnung der Maßnahme, \n(2) Zweck der Maßnahme, \n(3) für bestimmte Maßnahmen: Datum des Beginns, \n(4) für bestimmte Maßnahmen: voraussichtliches oder tatsächliches Datum des Abschlusses, \n(5) das betroffene spezifische Ziel der Maßnahme. \n \nDie bereits unter II. genannte Ausnahmeregelung für Begünstigte mit einem Gesamtbetrag von maximal 1.250 € gilt gleichermaßen. \n"]
["III. Überblick über die bestehenden Rechtsvorschiften \nNachfolgend benannte Rechtsvorschriften bilden je nach betroffener Maßnahme die rechtliche Grundlage der Veröffentlichung. Es ist auf die jeweils geltende Fassung abzustellen: \n \n• Verordnung (EU) 2021/2116 des Europäischen Parlaments und des Rates vom 2. Dezember 2021 über die Finanzierung, Verwaltung und Überwachung der Gemeinsamen Agrarpolitik und zur Aufhebung der Verordnung (EU) Nr. 1306/2013 (ABl. L 435 vom 6.12.2021, S. 187), \n• Verordnung (EU) 2021/1060 des Europäischen Parlaments und des Rates vom 24. Juni 2021 mit gemeinsamen Bestimmungen für den Europäischen Fonds für regionale Entwicklung, den Europäischen Sozialfonds Plus, den Kohäsionsfonds, den Fonds für einen gerechten Übergang und den Europäischen Meeres-, Fischerei- und Aquakulturfonds sowie mit Haushaltsvorschriften für diese Fonds und für den Asyl-, Migrations- und Integrationsfonds, den Fonds für die innere Sicherheit und das Instrument für finanzielle Hilfe im Bereich Grenzverwaltung und Visumpolitik (Abl. L 231 vom 30.6.2021, S. 159), \n• Verordnung (EU) Nr. 1306/2013 des Europäischen Parlaments und des Rates vom 17. Dezember 2013 über die Finanzierung, die Verwaltung und das Kontrollsystem der Gemeinsamen Agrarpolitik (ABl. L 347 vom 20.12.2013, S. 549), \n• Durchführungsverordnung (EU) 2022/128 der Kommission vom 21. Dezember 2021 mit Durchführungsbestimmungen zur Verordnung (EU) 2021/2116 des Europäischen Parlaments und des Rates hinsichtlich der Zahlstellen und anderen Einrichtungen, der Finanzverwaltung, des Rechnungsabschlusses, der Kontrollen, der Sicherheiten und der Transparenz (ABl. L 20 vom 31.1.2022, S. 131), \n• Agrar- und Fischereifonds-Informationen-Gesetz – AFIG (BGBl. I 2008, S. 2330), •  Agrar- und Fischereifonds-Informationen-Verordnung – AFIV (eBAnz AT147 2008 V1). \n"]
["IV. Hinweis auf den Veröffentlichungsort \nDie Informationen werden auf einer speziellen – vom Bund und den Ländern gemeinsam betriebenen – Internetseite der Bundesanstalt für Landwirtschaft und Ernährung (BLE) unter der Internetadresse \n www.agrar-fischerei-zahlungen.de \n von den für die Zahlungen zuständigen Stellen des Bundes und der Länder veröffentlicht. Sie bleiben vom Zeitpunkt der ersten Veröffentlichung an zwei Jahre lang zugänglich und werden u. a. in einem offenen, maschinenlesbaren Format wie CSV oder XLSX zur Verfügung gestellt. \n \nFür die personenbezogenen Daten bleiben die Vorschriften der Verordnung (EU) 2016/679 des Europäischen Parlaments und des Rates vom 27. April 2016 zum Schutz natürlicher Personen bei der Verarbeitung personenbezogener Daten, zum freien Datenverkehr und zur Aufhebung der Richtlinie 95/46/EG (ABl. L 119 vom 4. Mai 2016, S. 1) in der jeweils geltenden Fassung sowie die nationalen Datenschutzbestimmungen des Bundes und der Länder unberührt. Auf die in diesen Rechtsvorschriften geregelten Datenschutzrechte und die Verfahren zur Ausübung dieser Rechte bei den für die betreffenden Zahlungen und den Datenschutz zuständigen Stellen des Bundes und der Länder wird verwiesen. \n \nDie Europäische Kommission hat eine zentrale Internetseite unter der Adresse \n \nhttps://agriculture.ec.europa.eu/common-agricultural-policy/financing-cap/beneficiaries_en \n eingerichtet, die auf die Veröffentlichungs-Internetseiten aller Mitgliedstaaten hinweist.  \n"]

{"sheet":"Fehler","index":10,"n_rows":1,"n_cols":10,"rows_kept":1,"cut":false,"hidden":false,"merged":[]}
["Fehlernr.","Schwere","Position 1","Position 2","Wert 1","Wert 2","Kommentar","Datum der Prüfung",1,"nicht ändern!"]

{"sheet":"Projektauswahlkriterien","index":11,"n_rows":46,"n_cols":12,"rows_kept":46,"cut":false,"hidden":false,"merged":[[0,8,1,9],[2,6,2,10],[2,11,6,11],[2,1,2,3],[28,1,28,8],[27,1,27,8],[21,1,21,8],[22,1,22,8],[17,0,17,10],[20,1,20,8],[4,10,6,10],[4,9,6,9],[23,1,23,8],[10,1,10,8],[11,1,11,8],[32,1,32,8],[33,1,33,8],[38,0,38,10],[35,1,35,8],[34,1,34,8],[29,1,29,8],[30,1,30,8],[26,0,26,10],[24,1,24,8],[31,1,31,8]]}
["Auswahlkriterien zum Agrarinvestitionsförderungsprogramm",null,null,null,null,null,null,null,"Kriterienkatalog 2024"]
["zur Ermittlung der Bewilligungsreihenfolge"]
["U.Nr:",{"$f":"TEXT('Seite 1'!C18,\"000000000\")","v":"000000000"},null,null,null,null,"wichtiger Hinweis: Nicht gekennzeichnete sowie nicht nachgewiesene Kriterienpunkte werden nicht erteilt / bewilligt!",null,null,null,null,"Anerkannt durch Kreisstelle\nJ / N"]
[]
[null,null,null,null,null,null,null,null,null,"mögliche Punkte","Nachweis/Kommentar d. AST/Betreuung\n(bei jew. Kennzeichensetzung zwingend erforderlich!)"]
["1.) Investitionsbereich Tierhaltung 1)"]
[]
[null,"Milchviehhaltung: Außenauslauf oder Sommerweidehaltung",null,null,null,null,null,null,null,4]
[null,"Milchviehhaltung: Außenauslauf und gleichzeitig Sommerweidehaltung oder ganzjährige Weidehaltung",null,null,null,null,null,null,null,6]
[null,"Vollständige Umstellung von Anbindehaltung auf Laufstallhaltung bei Milchkühen",null,null,null,null,null,null,null,4]
[null,"Modernisierungsmaßnahmen zur Umstellung der Haltung von Jung- oder Zuchtsauen (Umbau Deckzentrum oder Abferkelbereich)",null,null,null,null,null,null,null,6]
[null,"Zuchtsauenhaltung und Schweinemast: spezifische Investitionen zum Umwelt- und Klimaschutz für die Schweinehaltung nach Anlage 3 Teil B Nummer 1.2 bis 1.6 (SIUK)",null,null,null,null,null,null,null,6]
[null,"Legehennen/Junghennen: Bodenhaltung",null,null,null,null,null,null,null,2]
[null,"Legehennen/Junghennen: Freilandhaltung, Hühnermobil",null,null,null,null,null,null,null,4]
[null,"Geflügelmast",null,null,null,null,null,null,null,2]
[null,"Geflügelmast: Freilandhaltung",null,null,null,null,null,null,null,4]
[null,"Investition in Schaf-, Ziegen- oder Pferdehaltung, sonstige Rinderhaltung (außer Milchvieh)",null,null,null,null,null,null,null,2]
["2.) sonstige Investitionsbereiche"]
[null,"Verarbeitung, Direktvermarktung",null,null,null,null,null,null,null,4]
["Investitionen mit Umwelt-, Klimarelevanz"]
[null," mehr als 2 Energiesparmaßnahmen bei Gewächshäusern 2)",null,null,null,null,null,null,null,2]
[null,"mehr als 4 Energiesparmaßnahmen bei Gewächshäusern 2)",null,null,null,null,null,null,null,4]
[null,"mehr als 2 Energiesparmaßnahmen bei spezialisierten Lagerhallen für Obst, Gemüse und sonstige Sonderkulturen 2)",null,null,null,null,null,null,null,2]
[null,"Fahrsiloanlage",null,null,null,null,null,null,null,4]
[null,"sonstige Investition in Umweltschutz, Energieeinsparung, Emissionsminderung, Ressourceneffizienz 3)",null,null,null,null,null,null,null,2]
[null,"Investition nach Anlage 3",null,null,null,null,null,null,null,6]
["3.) Allgemeine Kriterien"]
[null,"Betriebsleiter/Betriebsleiterin hat eine Ausbildung im Ausbildungsberuf Landwirtschaft/Garten-, Weinbau\n(dazu zählt auch der erfolgreiche Abschluss eines Studiums der Agrarwissenschaften, Gartenbau, Weinbau)",null,null,null,null,null,null,null,2]
[null,"Betriebsleiterin/Betriebsleiter hat an einer geförderten einzelbetrieblichen Beratung/Fortbildung in den letzten 5 Jahren teilgenommen",null,null,null,null,null,null,null,2]
[null,"Betriebssitz liegt in einem anerkannten Wolfsgebiet",null,null,null,null,null,null,null,3]
[null,"Stallbau-Ersatzinvestition oder Umbau einer bestehenden Haltungseinrichtung ohne Ausweitung des Tierbestandes ",null,null,null,null,null,null,null,2]
[null,"Stallbauinvestition, Betrieb hat weniger als 2,0 GV/Ha im IST und ZIEL",null,null,null,null,null,null,null,2]
[null,"Junglandwirt nach Nr. 8.4 der Richtlinien",null,null,null,null,null,null,null,4]
[null,"Die Investition wird im Rahmen eines von einer anerkannten Europäischen Innovationspartnerschaft entwickelten Konzeptes durchgeführt. Das landwirtschaftliche Unternehmen muss Mitglied einer anerkannten Operationellen Gruppe gemäß Art. 77 bzw. Art 127 GAP-SP-VO sein.",null,null,null,null,null,null,null,4]
[null,"Härtefall, z.B. Brandfall",null,null,null,null,null,null,null,4]
[null,"Existenzgründer / Neueinsteiger nach Nr. 8.2. der Richtlinien",null,null,null,null,null,null,null,4]
[]
["1) Bei Investition in mehrere Tierhaltungsbereiche ist eine Mehrfachnennung zulässig."]
["2) Auswahl gemäß des im Rahmen der Antragstellung vorgegebenen Kriterienkatalogs"]
["3) Maßnahmen, die speziell der Emissionsminderung bzw. Einsparung von Ressourcen dienen und deutlich über dem Standard liegen gem. dem Katalog 'AFP-Investitionen mit Umweltrelevanz'."]
["   (Stellungnahme mit ausführlicher Darstellung der geplanten Maßnahme ist erforderlich)."]
[]
["Regelungen zur Anwendung der Auswahlkriterien:"]
[" - Mindestpunktzahl: Bei weniger als 2 Punkten kann keine Bewilligung erfolgen"]
[" - Bei Anträgen mit gleicher Punktzahl wird die weitere Reihenfolge an Hand des Zuschussbetrages ermittelt,"]
["   und zwar Anträge mit dem geringsten Zuschussbetrag erhalten einen Vorrang."]

{"sheet":"Anlage \"SIUK PLUS\"","index":12,"n_rows":37,"n_cols":10,"rows_kept":37,"cut":false,"hidden":false,"merged":[[2,9,4,9],[12,1,12,8],[29,1,29,8]]}
[]
["AFP-Anlage \"SIUK PLUS\"",null,null,null,null,"U.Nr:",{"$f":"TEXT('Seite 1'!C18,\"000000000\")","v":"000000000"},null,null,2024]
[null,null,null,null,null,null,null,null,null,"förderfähiges Investitionsvolumen netto"]
["SIUK-Maßnahme: Emissionsminderung in Verbindung mit Stallbauten"]
[]
[null,"Lagerstätte für flüssige Wirtschaftsdünger in Verbindung mit Stallbauten"]
[null,"Festmistlagerstätte in Verbindung mit Stallbauten"]
[]
["SIUK-Maßnahme: Emissionsminderung unabhängig von Stallbauten"]
[]
[null,"Lagerstätte für flüssige Wirtschaftsdünger unabhängig von Stallbauten "]
[null,"Festmistlagerstätten unabhängig von Stallbauten"]
[null,"Nichtproduktive Inv. in d. Nachrüstung von Abdeckungen für in Betrieb befindliche Lagerstätten für flüssige Wirtschaftsdünger"]
[]
["SIUK-Maßnahme: Emissionsminderung in Stallbauten, Nichtproduktive Investitionen"]
[]
[null,"Abluftreinigungsanlage/n"]
[]
["SIUK-Maßnahmen: Emissionsminderung in Stallbauten, Sonstige Maßnahmen"]
[]
[null,"Kot-Harn-Trennung"]
[null,"Verkleinerte Güllekanäle"]
[null,"Emissionsarme Stallböden"]
[null,"Fütterungssysteme für nährstoffreduzierte Phasenfütterung"]
[null,"Güllekühlung"]
[]
["SIUK-Maßnahmen ohne Stallbauten, Ressourcenschonende Einrichtungen zum Umweltschutz:"]
[]
[null,"geschlossene, reszirkulierende Bewässerungssysteme für Sonderkulturen insbesondere im Freiland"]
[null,"Reinigungsplätze für Pflanzenschutzgeräte mit integriertem System zur Vermeidung von Pflanzenschutzmitteleinträgen"]
[null,"\"Biobett\"-System zur Vermeidung von Pflanzenschutzmitteleinträgen"]
[]
["Maßnahmen zur Vorbeugung von Schäden durch Naturkatastrophen gleichzusetzende widrige Witterungsverhältnisse"]
[]
[null,"Frostschutzberegnung"]
[null,"Hagelschutz"]
[null,"Starkregenschutz"]

{"sheet":"Anlage STATISTIK (BUND)","index":13,"n_rows":44,"n_cols":7,"rows_kept":44,"cut":false,"hidden":false,"merged":[[42,1,42,5],[39,1,39,5],[41,1,41,5],[40,0,40,6],[33,1,33,5],[36,1,36,5],[38,1,38,5],[34,0,34,6],[37,0,37,6],[35,1,35,5],[32,0,32,6],[19,1,19,5],[20,1,20,5],[14,0,15,0],[14,1,15,6],[16,0,17,6],[2,0,2,6],[18,1,18,5],[28,1,28,5],[30,1,30,5],[31,1,31,5],[21,1,21,5],[22,1,22,5],[24,1,24,5],[26,1,26,5],[23,0,23,6],[25,0,25,6],[27,0,27,6],[29,0,29,6]]}
[]
["AFP-Anlage \"STATISTIK (BUND)\"",null,null,null,"U.Nr.",{"$f":"TEXT('Seite 1'!C18,\"000000000\")","v":"000000000"},2024]
["Flächenbindung der Tierhaltung im Agrarinvestitionsförderungsprogramm (AFP)"]
["hier: Anrechnung von Flächen im Betriebsverbund und von vertraglich vereinbarten "]
["Ausbringungsflächen (Abnahmeverträge für Wirtschaftsdünger) bei der Berechnung "]
["der Viehbesatzdichte gemäß Ziff. 1.4.4 des AFP-Förderungsgrundsatzes "]
["(GAK-Rahmenplan, Nr. 1.4.4 Flächenbindung der Tierhaltung) im Jahr 2024"]
[null,"In diesem Förderfall erfolgt die Anrechnung von Flächen"]
[null," im Betriebsverbund."]
[null,"Flächen im Betriebsverbund in ha"]
[null,"In diesem Förderfall erfolgt die Berücksichtigung von Abnahmeverträgen"]
[null," für Wirtschaftsdünger."]
[null,"GVE/ha vor Berücksichtigung d. Abnahmeverträge"]
[null,"GVE/ha nach Berücksichtigung d. Abnahmeverträge"]
[null," Es sind für diesen Fall keine Einträge bzgl. Betriebsverbund und Abnahmverträgen erforderlich (Sachverhalte nicht vorliegend)."]
[]
["Förderfähiges Investitionsvolumen (netto) bzgl. Nr. 9.4.1 d. AFP-Richtlinien"]
[]
["vorliegend","Investitionsart gemäß Nr. 9.4.1 d. RL",null,null,null,null,"ff. Inv.vol (netto) in €"]
[null,"Investition lt. 9.4.1a: Geflügel"]
[null,"Investition lt. 9.4.1a: Schweine"]
[null,"Investition lt. 9.4.1a: erstmalige Umstellung bei Milchkühen von Anbindehaltung auf Laufstallhaltung"]
[null,"Investition lt. 9.4.1a: übrige Tiere"]
[]
[null,"Investition lt. 9.4.1b (Vorbeugung v. Schäden durch Naturkatastrophen gleichz. Witterungsverhältnisse)"]
[]
[null,"Investition lt. 9.4.1c (spezifische Investitionen zum Umwelt- und Klimaschutz nach Nummer 3 in Verbindung mit Anlage 3 Teil B Nummer 2, 3.2, 3.3 und 4)"]
[]
[null,"Investition lt. 9.4.1d (Bewässerungsanlagen)"]
[]
[null,"Investition lt. 9.4.1e ohne Aufschlag"]
[null,"Investition lt. 9.4.1e mit Aufschlag (Kälbermatten)"]
[]
[null,"Investition lt. 9.4.1f (Kombinationen von Maßnahmen nach Anlage 1 mit Maßnahmen gemäß Anlage 3 Teil B Nummern 1.2 bis 1.6)"]
[]
[null,"Investition lt. 9.4.1g: Investition nach Anlage 3, Teil B, Nr. 1.1 (Abluftreinigungsanlagen)"]
[null,"Investition lt. 9.4.1g: Investition nach Anlage 3, Teil B, Nr. 3.1 (Nachrüstung Güllelagerabdeckung)"]
[]
[null,"Investition lt. 9.4.1h: Umstellung der Haltung von Jung- oder Zuchtsauen (Deckzentrum oder Abferkelbereich)"]
[null,"Investition lt. 9.4.1h: Umstellung von Anbindehaltung auf Laufstallhaltung bei Milchkühen, Aufzuchtrindern, Mastrindern oder Mutterkühen"]
[]
[null,"Investition lt. 9.4.1i: (spezifische Investitionen zum Umwelt- und Klimaschutz für die Schweinehaltung nach Nummer 4.1 in Verbindung mit Anlage 3 Teil B Nummer 1.2 bis 1.6)"]
[null,"Investition lt. 9.4.1i: (spezifische Investitionen zum Umwelt- und Klimaschutz für andere Tiere (außer Schweine) nach Nummer 4.1 in Verbindung mit Anlage 3 Teil B Nummer 1.2 bis 1.6, Auslegung MLV, 20% Fördersatz)"]
["Die Kennzeichensetzung und Einreichung dieser Anlage ist ausnahmslos verpflichtend!"]

{"sheet":"AF20","index":14,"n_rows":196,"n_cols":13,"rows_kept":196,"cut":false,"hidden":true,"merged":[]}
["1","2","3","4","5","6","7","8","9","10"]
["Feld-ID","Feldname","Feldtyp","Beschreibung/Label","K-Typ","Anzeige-Format","Länge","Nachkomma",null,"Formel","Seite, Zelle"]
["A3","AF20_ADRESSNR","Text","Adressnummer","ac","000000000",9,null,null,{"$f":"'Seite 1'!C18","v":0},"S1,C18"]
["H3","AF20_WJ","Zahl","Wirtschaftsjahr",null,null,null,null,null,{"$f":"'Seite 1'!G18","v":2024},"S1,G18"]
["C4","AF20_ANTRAGNR","Zahl","laufende Antragsnummer im WJ","ac","0000",4,0,null,{"$f":"'Seite 1'!E18","v":1},"S1,E18"]
["E8","AF20_KZ_GESELLSCHAFT","Text","KZ Gesellschaft j = ja, n = nein","chb",null,1,null,null,{"$f":"IF('Seite 1'!A25,\"J\",\"N\")","v":"N"},"S1,A25"]
["E9","AF20_VERTRETUNGSB_NAME","Text","Name des Vertretungsberechtigten bei Gesellschaften","tf",null,null,null,null,{"$f":"IF('Seite 1'!C26=\"\",\"keine Angabe\",('Seite 1'!C26))","v":"keine Angabe"},"S1,C26"]
["I9","AF20_VERTRETUNGSB_TELEFON","Text","Telefonnummer des Vertretungsberechtigten","tf",null,20,null,null,{"$f":"'Seite 1'!H26","v":""},"S1,H26"]
["E10","AF20_VERTRETUNGSB_ADRESSNR","Text","Adressnummer des Vertretungsberechtigten","tf","000000000",9,null,null,{"$f":"'Seite 1'!I26","v":0},"S1,I26"]
["E11","AF20_NR_HAUPTBERUF","Zahl","Nr. des Hauptberufes aus Schlüsseltabelle","kcb",null,1,0,null,{"$f":"'Seite 1'!A30","v":{"$error":"#N/A"}},"S1,A30"]
["E12","AF20_NR_AUSBILDUNG","Zahl","Nr. des Hauptberufes aus Schlüsseltabelle","kcb",null,1,0,null,{"$f":"'Seite 1'!A29","v":{"$error":"#N/A"}},"S1,A26"]
["E13","AF20_EMAIL_ADR","Text","E-Mail-Adresse des Antragstellers","tf",null,40,null,null,{"$f":"'Seite 1'!E34","v":0},"S1,E34"]
["E15","AF20_NR_BETREUER","Zahl","Nr. des Betreuers / Mithilfe aus Schlüssseltabelle","kcb","##0",3,0,null,{"$f":"'Seite 1'!A36","v":{"$error":"#N/A"}},"S1,A36"]
["E16","AF20_MITHILFE_NAME","Text","Name des Bearbeiters, der Mithilfe geleistet hat","tf",null,40,null,null,{"$f":"IF('Seite 1'!C38=\"\",\"keine Angabe\",('Seite 1'!C38))","v":"keine Angabe"},"S1,C38"]
["E17","AF20_MITHILFE_ANSCHRIFT","Text","Anschrift des Bearbeiters, der Mithilfe geleistet hat","tf",null,80,null,null,{"$f":"IF('Seite 1'!E38=\"\",\"keine Angabe\",('Seite 1'!E38))","v":"keine Angabe"},"S1,E38"]
["E18","AF20_MITHILFE_TELEFON","Text","Telefonnummer des Bearbeiters, der Mithilfe geleistet hat","tf",null,15,null,null,{"$f":"'Seite 1'!C40","v":""},"S1,C40"]
["G18","AF20_MITHILFE_FAX","Text","Faxnummer des Bearbeiters, der Mithilfe geleistet hat","tf",null,15,null,null,{"$f":"IF('Seite 1'!I40=\"\",\"keine\",('Seite 1'!I40))","v":"keine"},"S1,I40"]
["I18","AF20_MITHILFE_EMAIL","Text","E-Mail-Adresse des Bearbeiters, der Mithilfe geleistet hat","tf",null,40,null,null,{"$f":"IF('Seite 1'!E40=\"\",\"keine\",('Seite 1'!E40))","v":"keine"},"Seite 1'!E40=ODER(\"\";\" \");"]
["A28","AF20_KZ_ALLEINUNTERNEHMER","Text","Kennzeichen Alleinunternehmer, j = ja, n=nein","chb",null,1,null,null,{"$f":"IF('Seite 1'!A44,\"J\",\"N\")","v":"N"},"S1,A44"]
["E28","AF20_DAT_ALLEINUNTERNEHMER","Datum","Datum für 'Alleinunternehmer seit …'","mtf","dd.mm.yyyy",null,null,null,{"$f":"'Seite 1'!G44","v":"00:00:00"},"S1,G44"]
["A29","AF20_KZ_MITUNTERNEHMER","Text","Kennzeichen Mitunternehmer, j = ja, n=nein","chb",null,1,null,null,{"$f":"IF('Seite 1'!A45,\"J\",\"N\")","v":"N"},"S1,A45"]
["E29","AF20_NAME_MITUNTERNEHMER","Text","Name des Mitunternehmers","tf",null,30,null,null,{"$f":"IF('Seite 1'!G45=\"\",\"keine Angabe\",('Seite 1'!G45))","v":"keine Angabe"},"S1,G45"]
["H29","AF20_DAT_MITUNTERNEHMER","Datum","Datum für 'Mitunternehmer seit …'","mtf","dd.mm.yyyy",null,null,null,{"$f":"'Seite 1'!I45","v":"00:00:00"},"S1,I45"]
["A30","AF20_KZ_JUNGLANDWIRT","Text","Kennzeichen Junglandwirt, j = ja, n = nein","chb",null,1,null,null,{"$f":"IF('Seite 1'!A46,\"J\",\"N\")","v":"N"},"S1,A46"]
["A31","AF20_KZ_GEWERBE","Text","Kennzeichen Gewerbebetrieb, j = ja, n = nein","chb",null,1,null,null,{"$f":"IF('Seite 1'!A48,\"J\",\"N\")","v":"N"},"S1,A48"]
["A32","AF20_KZ_KIRCHL_GEMEINN","Text","Kennzeichen für kirchliche/gemeinnützige Zwecke, j = ja, n = nein","chb",null,1,null,null,{"$f":"IF('Seite 1'!A49,\"J\",\"N\")","v":"N"},"S1,A49"]
["A33","AF20_KZ_EXISTENZGRUEND","Text","Kennzeichen für Existenzgründung, j=ja, n=nein","chb",null,1,null,null,{"$f":"IF('Seite 1'!A50,\"J\",\"N\")","v":"N"},"S1,A50"]
["A35","AF20_KZ_VERANL_EINKOMMENST","Text","Kennzeichen für Veranlagung zur Einkommensteuer, j=ja, n=nein","chb",null,1,null,null,{"$f":"IF('Seite 2'!A8,\"J\",\"N\")","v":"N"},"S2, A8"]
["G36","AF20_EUR_EINK_STB1","Zahl","Höhe der positiven Einkünfte laut Antragsteller / Gesellschafter 2 in EUR","mtf","#,###,###",7,0,null,{"$f":"'Seite 2'!E15","v":0},"S2,E15"]
["J36","AF20_EUR_EINK_STB2","Zahl","Höhe der positiven Einkünfte laut Steuerbescheide Gesellschafter 2 in EUR","mtf","#,###,###",7,0,null,{"$f":"'Seite 2'!F15","v":0},"S2,F15"]
["G37","AF20_EUR_EINK_STB3","Zahl","Höhe der positiven Einkünfte laut Steuerbescheide Gesellschafter 3 in EUR","mtf","#,###,###",7,0,null,{"$f":"'Seite 2'!G15","v":0},"S2,G15"]
["J37","AF20_EUR_EINK_STB4","Zahl","Höhe der positiven Einkünfte laut Steuerbescheide Gesellschafter 4 in EUR","mtf","#,###,###",7,0,null,{"$f":"'Seite 2'!H15","v":0},"S2, H15"]
["A38","AF20_KZ_NICHT_VERANL","Text","Kennzeichen für Nicht-Veranlagung zur Einkommensteuer, j=ja, n=nein","chb",null,1,null,null,{"$f":"IF('Seite 2'!A17,\"J\",\"N\")","v":"N"},"S2,A17"]
["E39","AF20_EUR_EINK_ERKL_ANTRAGST","Zahl","Höhe der erklärten Einkünfte des Antragstellers in EUR","mtf","#,###,###",7,0,null,{"$f":"'Seite 2'!G28","v":0},"S2,G28"]
["H39","AF20_EUR_EINK_ERKL_EHEG","Zahl","Höhe der erklärten Einkünfte des Ehegatten","mtf","#,###,###",7,0,null,{"$f":"'Seite 2'!H28","v":0},"S2,H28"]
["C48","AF20_NR_BEZEICHNUNG","Zahl","Nummer der Maßnahmenbezeichnung aus Schlüsseltabelle","kcb","##0",3,0,null,{"$f":"IF(ISNA('Seite 2'!A32),0,('Seite 2'!A32))","v":0},"S2,A32"]
["C49","AF20_TEXT_BESCHREIBUNG","Text","Kommentar zur Beschreibung der Maßnahme","tf",null,250,null,null,{"$f":"'Seite 2'!C36","v":"hier konkrete Beschreibung eintragen (dieselbe Maßnahmenbeschreibung wie im IK!)"},"S2,C36"]
["D53","AF20_DAT_DURCHF_VOM","Datum","Datum Beginn des Durchführungszeitraums","mtf","dd.mm.yyyy",null,null,null,{"$f":"'Seite 2'!F41","v":"00:00:00"},"S2,F41"]
["F53","AF20_DAT_DURCHF_BIS","Datum","Datum Ende des Durchführungszeitraums","mtf","dd.mm.yyyy",null,null,null,{"$f":"'Seite 2'!H41","v":"00:00:00"},"S2,H41"]
["A55","AF20_KZ_ZIEL_VERB_PROD_BED","Text","Kennzeichen für Maßnahmenziel Verbesserung der Produktionsbedingungen, j=ja, n=nein","chb",null,1,null,null,{"$f":"IF('Seite 3'!A4,\"J\",\"N\")","v":"N"},"S3, A4"]
["A56","AF20_KZ_ZIEL_RATIONALISIERUNG","Text","Kennzeichen für Maßnahmenziel Rationalisierung, j=ja, n=nein","chb",null,1,null,null,{"$f":"IF('Seite 3'!A5,\"J\",\"N\")","v":"N"},"S3, A5"]
["A57","AF20_KZ_ZIEL_ERHOEH_WERTSCH","Text","Kennzeichen für Maßnahmenziel Erhöhung der Wertschöpfung, j=ja, n=nein","chb",null,1,null,null,{"$f":"IF('Seite 3'!A6,\"J\",\"N\")","v":"N"},"S3, A6"]
["A58","AF20_KZ_ZIEL_DIREKTVERM","Text","Kennzeichen für Maßnahmenziel Direktvermarktung, j=ja, n=nein","chb",null,1,null,null,{"$f":"IF('Seite 3'!A7,\"J\",\"N\")","v":"N"},"S3, A7"]
["A59","AF20_ZIEL_ARTG_TIERHALTUNG","Text","Kennzeichen für Maßnahmenziel artgerechte Tierhaltung, j=ja, n=nein","chb",null,1,null,null,{"$f":"IF('Seite 3'!A8,\"J\",\"N\")","v":"N"},"S3, A8"]
["G68","AF20_EUR_GESAMTKOSTEN","Zahl","Höhe der Gesamtkosten in EUR","mtf","#,###,###.##",7,0,null,{"$f":"'Seite 3'!G10","v":0},"S3, G10"]
["G71","AF20_EUR_ZUSCHUSS_WETTB","Zahl","Höhe des Zuschuss für die Verbesserung der Wettbewerbsfähigkeit in EUR","mtf","#,###,###.##",7,0,null,null,"leer"]
["G72","AF20_EUR_ZUSCHUSS_BES_ANF","Zahl","Höhe des Zuschuss für die Erfüllung besonderer Anforderungen in EUR","mtf","#,###,###.##",7,0,null,null,"leer"]
["G73","AF20_ZUSCHUSS_ERSCHL","Zahl","Höhe des Zuschuss für Erschliessung in EUR","mtf","#,###,###.##",7,0,null,{"$f":"'Seite 3'!I14","v":0},"S3,I14"]
["G74","AF20_ZUSCHUSS_JUNGLANDW","Zahl","Höhe des Zuschuss für Junglandwirte in EUR","mtf","#,###,###.##",7,0,null,{"$f":"'Seite 3'!I16","v":0},"S3,I15"]
["K76","AF20_KZ_VORFOERDERUNG","Text","bereits AFP-Förderung erhalten, j=ja, n=nein","chb",null,1,null,null,{"$f":"IF('Seite 3'!A25,\"J\",\"N\")","v":"N"},"S3, A22"]
["K77","AF20_KZ_BEIHILFE_JUNGLANDW","Text","Kennzeichen, dass bisher keine Beihilfe für die erstmalige Niederlassung als Junglandwirt erhalten wurde; J=ja, N=nein","chb",null,1,null,null,{"$f":"IF('Seite 3'!A31,\"J\",\"N\")","v":"N"},"S3, A30"]
["K78","AF20_KZ_BAUGENEHMIGUNG","Text","Kennzeichen für Baugenehmigungspflicht, j=ja, n=nein","chb",null,1,null,null,{"$f":"IF('Seite 3'!A36,\"J\",\"N\")","v":"N"},"S3,A33"]
["A90","AF20_KZ_ANL_IKONZEPT_B","Text","Kennzeichen für 'Investitionskonzept beigefügt', j=ja,n=nein","chb",null,1,null,null,{"$f":"IF('Seite 5'!A4,\"J\",\"N\")","v":"N"},"S5,A4"]
["A91","AF20_KZ_ANL_EKSTBESCHEID_B","Text","Kennzeichen für 'Einkommensteuerbescheide beigefügt', j=ja,n=nein","chb",null,1,null,null,{"$f":"IF('Seite 5'!A5,\"J\",\"N\")","v":"N"},"S5,A5"]
["F91","AF20_JAHR_EINKSTBESCHEID1","Zahl","Jahr des 1. Einkommensteuerbescheides","mtf","0000",4,0,null,{"$f":"'Seite 5'!G5","v":2020},"S5,G5"]
["G91","AF20_JAHR_EINKSTBESCHEID2","Zahl","Jahr des 2. Einkommensteuerbescheides","mtf","0000",4,0,null,{"$f":"'Seite 5'!H5","v":2021},"S5,H5"]
["H91","AF20_JAHR_EINKSTBESCHEID3","Zahl","Jahr des 3. Einkommensteuerbescheides","mtf","0000",4,0,null,{"$f":"'Seite 5'!I5","v":2022},"S5,I5"]
["A92","AF20_KZ_ANL_ABSCHLUSS_B","Text","Kennzeichen für 'Jahresabschluss beigefügt', j=ja,n=nein","chb",null,1,null,null,{"$f":"IF('Seite 5'!A6,\"J\",\"N\")","v":"N"},"S5,A6"]
["F92","AF20_ANL_WIRTSCHAFTSJAHR","Text","Wirtschaftsjahr des vorgelegten Jahresabschlusses","tf",null,9,null,null,{"$f":"'Seite 5'!G6","v":"2022/2023"},"S5,G6"]
["A93","AF20_KZ_ANL_ZIDRE_B","Text","Kennzeichen für 'aktuelles ZID-Register' beigefügt, j=ja,n=nein","chb",null,1,null,null,{"$f":"IF('Seite 5'!A7,\"J\",\"N\")","v":"N"},"S5,A7"]
["A94","AF20_KZ_ANL_BUCHF_AUFL_B","Text","Kennzeichen für 'Erklärungen zur Erfüllung der Buchführungsauflage' beigefügt, j=ja,n=nein","chb",null,1,null,null,{"$f":"IF('Seite 5'!A8,\"J\",\"N\")","v":"N"},"S5,A8"]
["A95","AF20_KZ_ANL_BESCH_ALTERSK_B","Text","Kennzeichen für 'Bescheinigung der Alterskasse' beigefügt, j=ja,n=nein","chb",null,1,null,null,{"$f":"IF('Seite 5'!A9,\"J\",\"N\")","v":"N"},"S5,A9"]
["A96","AF20_KZ_ANL_OEFF_INT_B","Text","Kennzeichen für 'erhebliches öffentliches Interesse' beigefügt, j=ja,n=nein","chb",null,1,null,null,{"$f":"IF('Seite 5'!A10,\"J\",\"N\")","v":"N"},"S5,A10"]
["A97","AF20_KZ_ANL_KREDITB_B","Text","Kennzeichen für 'Kreditbereitschaftserklärung' beigefügt, j=ja,n=nein","chb",null,1,null,null,{"$f":"IF('Seite 5'!A11,\"J\",\"N\")","v":"N"},"S5,A11"]
["A98","AF20_KZ_ANL_EIGENM_B","Text","Kennzeichen für 'Eigenmittelnachweis' beigefügt, j=ja,n=nein","chb",null,1,null,null,{"$f":"IF('Seite 5'!A12,\"J\",\"N\")","v":"N"},"S5,A12"]
["A110","AF20_KZ_ANL_MILCHREF_B","Text","Kennzeichen für 'Steuerbescheinigung der Bank über Kapitalerträge' beigefügt, j=ja,n=nein","chb",null,1,null,null,{"$f":"IF('Seite 5'!A13,\"J\",\"N\")","v":"N"},"S5,A13"]
["A111","AF20_KZ_ANL_ST_UNT_LA_BEH__B","Text","Kennzeichen für 'Stellungnahme der Unteren Landschaftsbehörde' beigefügt, j=ja,n=nein","chb",null,1,null,null,"N","***"]
["A112","AF20_KZ_ANL_GESELLSCH_VERTR_B","Text","Kennzeichen für 'Gesellschaftsvertrag' beigefügt, j=ja,n=nein","chb",null,1,null,null,{"$f":"IF('Seite 5'!A15,\"J\",\"N\")","v":"N"},"S5,A15"]
["A113","AF20_KZ_ANL_BAUGENEHMIGUNG_B","Text","Kennzeichen für 'Baugenehmigung' beigefügt, j=ja,n=nein","chb",null,1,null,null,{"$f":"IF('Seite 5'!A16,\"J\",\"N\")","v":"N"},"S5,A16"]
["A114","AF20_KZ_ANL_BAUPLAENE_B","Text","Kennzeichen für 'Baupläne' beigefügt, j=ja,n=nein","chb",null,1,null,null,{"$f":"IF('Seite 5'!A17,\"J\",\"N\")","v":"N"},"S5,A17"]
["A115","AF20_KZ_ANL_LAGEPLAN_B","Text","Kennzeichen für 'Lageplan' beigefügt, j=ja,n=nein","chb",null,1,null,null,{"$f":"IF('Seite 5'!A18,\"J\",\"N\")","v":"N"},"S5,A18"]
["A116","AF20_KZ_ANL_KOSTENVOR_B","Text","Kennzeichen für 'Kostenvoranschläge' beigefügt, j=ja,n=nein","chb",null,1,null,null,{"$f":"IF('Seite 5'!A19,\"J\",\"N\")","v":"N"},"S5,A19"]
["A117","AF20_KZ_ANL_ST_BAUBER_B","Text","Kennzeichen für 'Stellungnahme der Bauberatung' beigefügt, j=ja,n=nein","chb",null,1,null,null,{"$f":"IF('Seite 5'!A20,\"J\",\"N\")","v":"N"},"S5,A20"]
["A118","AF20_KZ_ANL_ST_TECHNIKB_B","Text","Kennzeichen für 'Stellungnahme der Technikberatung Gartenbau' beigefügt, j=ja,n=nein","chb",null,1,null,null,{"$f":"IF('Seite 5'!A21,\"J\",\"N\")","v":"N"},"S5,A21"]
["A130","AF20_KZ_ANL_BETREUERVERTR_B","Text","Kennzeichen für 'Betreuervertrag / Mithilfevereinbarung' beigefügt, j=ja,n=nein","chb",null,1,null,null,{"$f":"IF('Seite 5'!A22,\"J\",\"N\")","v":"N"},"S5,A22"]
["A131","AF20_KZ_ANL_KOOPERATIONSVER_B","Text","Kennzeichen für 'Kooperationsvertrag / Aufstellung der Beteiligten' beigefügt, j=ja,n=nein","chb",null,1,null,null,{"$f":"IF('Seite 5'!A23,\"J\",\"N\")","v":"N"},"S5,A23"]
["A132","AF20_KZ_ANL_VOLLMACHT_B","Text","Kennzeichen für 'Vollmacht' beigefügt, j=ja,n=nein","chb",null,1,null,null,{"$f":"IF('Seite 5'!A24,\"J\",\"N\")","v":"N"},"S5,A24"]
["A133","AF20_KZ_ANL_ANTR_FOERDERUN_B","Text","Kennzeichen für 'Antrag auf Förderunschädlichkeit' beigefügt, j=ja,n=nein","chb",null,1,null,null,{"$f":"IF('Seite 5'!A25,\"J\",\"N\")","v":"N"},"S5,A25"]
["A134","AF20_KZ_ANL_UMSATZANTEIL_B","Text","Kennzeichen für 'Nachweis Umsatzanteil' beigefügt, j=ja,n=nein","chb",null,1,null,null,{"$f":"IF('Seite 5'!A26,\"J\",\"N\")","v":"N"},"S5,A26"]
["A135","AF20_KZ_ANL_KONTOAUSZUG_B","Text","Kennzeichen für 'Kontoauszug' beigefügt, j=ja,n=nein","chb",null,1,null,null,"N","***"]
["A136","AF20_KZ_ANL_SONST_B","Text","Kennzeichen für 'sonstige Anlage' beigefügt, j=ja,n=nein","chb",null,1,null,null,{"$f":"IF('Seite 5'!A28,\"J\",\"N\")","v":"N"},"S5,A28"]
["B136","AF20_ANL_SONST_NAME","Text","Name der sonstigen Anlage","tf",null,30,null,null,{"$f":"'Seite 5'!E28","v":0},"S5,E28"]
["I90","AF20_KZ_ANL_IKONZEPT_E","Text","Kennzeichen für 'Investitionskonzept erforderlich', j=ja,n=nein","chb",null,1,null,null,"J","***"]
["J90","AF20_KZ_ANL_IKONZEPT_A","Text","Kennzeichen für 'Investitionskonzept anerkannt', j=ja,n=nein","chb",null,1,null,null,"N","***"]
["I91","AF20_KZ_ANL_EKSTBESCHEID_E","Text","Kennzeichen für 'Einkommensteuerbescheide erforderlich', j=ja,n=nein","chb",null,1,null,null,"J","***"]
["J91","AF20_KZ_ANL_EKSTBESCHEID_A","Text","Kennzeichen für 'Einkommensteuerbescheide anerkannt', j=ja,n=nein","chb",null,1,null,null,"N","***"]
["I92","AF20_KZ_ANL_ABSCHLUSS_E","Text","Kennzeichen für 'Jahresabschluss erforderlich', j=ja,n=nein","chb",null,1,null,null,"J","***"]
["J92","AF20_KZ_ANL_ABSCHLUSS_A","Text","Kennzeichen für 'Jahresabschluss anerkannt', j=ja,n=nein","chb",null,1,null,null,"N","***"]
["I93","AF20_KZ_ANL_ZIDRE_E","Text","Kennzeichen für 'aktuelles ZID-Register' erforderlich, j=ja,n=nein","chb",null,1,null,null,"J","***"]
["J93","AF20_KZ_ANL_ZIDRE_A","Text","Kennzeichen für 'aktuelles ZID-Register' anerkannt, j=ja,n=nein","chb",null,1,null,null,"N","***"]
["I94","AF20_KZ_ANL_BUCHF_AUFL_E","Text","Kennzeichen für 'Erklärungen zur Erfüllung der Buchführungsauflage' erforderlich, j=ja,n=nein","chb",null,1,null,null,"J","***"]
["J94","AF20_KZ_ANL_BUCHF_AUFL_A","Text","Kennzeichen für 'Erklärungen zur Erfüllung der Buchführungsauflage' anerkannt, j=ja,n=nein","chb",null,1,null,null,"N","***"]
["I95","AF20_KZ_ANL_BESCH_ALTERSK_E","Text","Kennzeichen für 'Bescheinigung der Alterskasse' erforderlich, j=ja,n=nein","chb",null,1,null,null,"J","***"]
["J95","AF20_KZ_ANL_BESCH_ALTERSK_A","Text","Kennzeichen für 'Bescheinigung der Alterskasse' anerkannt, j=ja,n=nein","chb",null,1,null,null,"N","***"]
["I96","AF20_KZ_ANL_OEFF_INT_E","Text","Kennzeichen für 'erhebliches öffentliches Interesse' erforderlich, j=ja,n=nein","chb",null,1,null,null,"N","***"]
["J96","AF20_KZ_ANL_OEFF_INT_A","Text","Kennzeichen für 'erhebliches öffentliches Interesse' anerkannt, j=ja,n=nein","chb",null,1,null,null,"N","***"]
["I97","AF20_KZ_ANL_KREDITB_E","Text","Kennzeichen für 'Kreditbereitschaftserklärung' erforderlich, j=ja,n=nein","chb",null,1,null,null,"N","***"]
["J97","AF20_KZ_ANL_KREDITB_A","Text","Kennzeichen für 'Kreditbereitschaftserklärung' anerkannt, j=ja,n=nein","chb",null,1,null,null,"N","***"]
["I98","AF20_KZ_ANL_EIGENM_E","Text","Kennzeichen für 'Eigenmittelnachweis' erforderlich, j=ja,n=nein","chb",null,1,null,null,"N","***"]
["J98","AF20_KZ_ANL_EIGENM_A","Text","Kennzeichen für 'Eigenmittelnachweis' anerkannt, j=ja,n=nein","chb",null,1,null,null,"N","***"]
["I110","AF20_KZ_ANL_MILCHREF_E","Text","Kennzeichen für 'Milch-Referenzmengen-bescheinigung' erforderlich, j=ja,n=nein","chb",null,1,null,null,"N","***"]
["J110","AF20_KZ_ANL_MILCHREF_A","Text","Kennzeichen für 'Milch-Referenzmengen-bescheinigung' anerkannt, j=ja,n=nein","chb",null,1,null,null,"N","***"]
["I111","AF20_KZ_ANL_ST_UNT_LA_BEH__E","Text","Kennzeichen für 'Stellungnahme der Unteren Landschaftsbehörde' erforderlich, j=ja,n=nein","chb",null,1,null,null,"N","***"]
["J111","AF20_KZ_ANL_ST_UNT_LA_BEH__A","Text","Kennzeichen für 'Stellungnahme der Unteren Landschaftsbehörde' anerkannt, j=ja,n=nein","chb",null,1,null,null,"N","***"]
["I112","AF20_KZ_ANL_GESELLSCH_VERTR_E","Text","Kennzeichen für 'Gesellschaftsvertrag' erforderlich, j=ja,n=nein","chb",null,1,null,null,"N","***"]
["J112","AF20_KZ_ANL_GESELLSCH_VERTR_A","Text","Kennzeichen für 'Gesellschaftsvertrag' anerkannt, j=ja,n=nein","chb",null,1,null,null,"N","***"]
["I113","AF20_KZ_ANL__BAUGENEHMIGUNG_E","Text","Kennzeichen für 'Baugenehmigung' erforderlich, j=ja,n=nein","chb",null,1,null,null,"N","***"]
["J113","AF20_KZ_ANL__BAUGENEHMIGUNG_A","Text","Kennzeichen für 'Baugenehmigung' anerkannt, j=ja,n=nein","chb",null,1,null,null,"N","***"]
["I114","AF20_KZ_ANL_BAUPLAENE_E","Text","Kennzeichen für 'Baupläne' erforderlich, j=ja,n=nein","chb",null,1,null,null,"N","***"]
["J114","AF20_KZ_ANL_BAUPLAENE_A","Text","Kennzeichen für 'Baupläne' anerkannt, j=ja,n=nein","chb",null,1,null,null,"N","***"]
["I115","AF20_KZ_ANL_LAGEPLAN_E","Text","Kennzeichen für 'Lageplan' erforderlich, j=ja,n=nein","chb",null,1,null,null,"N","***"]
["J115","AF20_KZ_ANL_LAGEPLAN_A","Text","Kennzeichen für 'Lageplan' anerkannt, j=ja,n=nein","chb",null,1,null,null,"N","***"]
["I116","AF20_KZ_ANL_KOSTENVOR_E","Text","Kennzeichen für 'Kostenvoranschläge' erforderlich, j=ja,n=nein","chb",null,1,null,null,"N","***"]
["J116","AF20_KZ_ANL_KOSTENVOR_A","Text","Kennzeichen für 'Kostenvoranschläge' anerkannt, j=ja,n=nein","chb",null,1,null,null,"N","***"]
["I117","AF20_KZ_ANL_ST_BAUBER_E","Text","Kennzeichen für 'Stellungnahme der Bauberatung' erforderlich, j=ja,n=nein","chb",null,1,null,null,"N","***"]
["J117","AF20_KZ_ANL_ST_BAUBER_A","Text","Kennzeichen für 'Stellungnahme der Bauberatung' anerkannt, j=ja,n=nein","chb",null,1,null,null,"N","***"]
["I118","AF20_KZ_ANL_ST_TECHNIKB_E","Text","Kennzeichen für 'Stellungnahme der Technikberatung Gartenbau' erforderlich, j=ja,n=nein","chb",null,1,null,null,"N","***"]
["J118","AF20_KZ_ANL_ST_TECHNIKB_A","Text","Kennzeichen für 'Stellungnahme der Technikberatung Gartenbau' anerkannt, j=ja,n=nein","chb",null,1,null,null,"N","***"]
["I130","AF20_KZ_ANL_BETREUERVERTR_E","Text","Kennzeichen für 'Betreuervertrag / Mithilfevereinbarung' erforderlich, j=ja,n=nein","chb",null,1,null,null,"N","***"]
["J130","AF20_KZ_ANL_BETREUERVERTR_A","Text","Kennzeichen für 'Betreuervertrag / Mithilfevereinbarung' anerkannt, j=ja,n=nein","chb",null,1,null,null,"N","***"]
["I131","AF20_KZ_ANL_KOOPERATIONSVER_E","Text","Kennzeichen für 'Kooperationsvertrag / Aufstellung der Beteiligten' erforderlich, j=ja,n=nein","chb",null,1,null,null,"N","***"]
["J131","AF20_KZ_ANL_KOOPERATIONSVER_A","Text","Kennzeichen für 'Kooperationsvertrag / Aufstellung der Beteiligten' anerkannt, j=ja,n=nein","chb",null,1,null,null,"N","***"]
["I132","AF20_KZ_ANL_VOLLMACHT_E","Text","Kennzeichen für 'Vollmacht' erforderlich, j=ja,n=nein","chb",null,1,null,null,"N","***"]
["J132","AF20_KZ_ANL_VOLLMACHT_A","Text","Kennzeichen für 'Vollmacht' anerkannt, j=ja,n=nein","chb",null,1,null,null,"N","***"]
["I133","AF20_KZ_ANL_ANTR_FOERDERUN_E","Text","Kennzeichen für 'Antrag auf Förderunschädlichkeit' erforderlich, j=ja,n=nein","chb",null,1,null,null,"N","***"]
["J133","AF20_KZ_ANL_ANTR_FOERDERUN_A","Text","Kennzeichen für 'Antrag auf Förderunschädlichkeit' anerkannt, j=ja,n=nein","chb",null,1,null,null,"N","***"]
["I134","AF20_KZ_ANL_UMSATZANTEIL_E","Text","Kennzeichen für 'Nachweis Umsatzanteil' erforderlich, j=ja,n=nein","chb",null,1,null,null,"N","***"]
["J134","AF20_KZ_ANL_UMSATZANTEIL_A","Text","Kennzeichen für 'Nachweis Umsatzanteil' anerkannt, j=ja,n=nein","chb",null,1,null,null,"N","***"]
["I135","AF20_KZ_ANL_KONTOAUSZUG_E","Text","Kennzeichen für 'Kontoauszug' erforderlich, j=ja,n=nein","chb",null,1,null,null,"N","***"]
["J135","AF20_KZ_ANL_KONTOAUSZUG_A","Text","Kennzeichen für 'Kontoauszug' anerkannt, j=ja,n=nein","chb",null,1,null,null,"N","***"]
["I136","AF20_KZ_ANL_SONST_E","Text","Kennzeichen für 'sonstige Anlage' erforderlich, j=ja,n=nein","chb",null,1,null,null,"N","***"]
["J136","AF20_KZ_ANL_SONST_A","Text","Kennzeichen für 'sonstige Anlage' anerkannt, j=ja,n=nein","chb",null,1,null,null,"N","***"]
[null,"AF20_NAME_BEARB","Text","Name des letzten Bearbeiters: aus Einleseproc","le",null,30,null,null,"Willebrand, Christiane","***"]
[null,"AF20_DAT_BEARB","Datum","Datum der letzten Bearbeitung aus Einleseproc","le",null,null,null,null,"2015-09-26T22:17:32","***"]
["A52","KZ_Milchviehhaltung","Text","Angabe ob die Investition der Milchviehhaltung dient.","chb",null,0,null,null,null,"leer"]
[null,"AF20_GESCHLECHT",null,"Geschlecht des Antragstellers (M=Maennlich, W= weiblich, J=entfällt)","chb",null,1,null,null,{"$f":"IF('Seite 1'!H23=FALSE,IF('Seite 1'!H21=TRUE,\"M\",\"W\"),\"J\")","v":"M"},"multi"]
[null,"AF20_KZ_INVESTORFOERD",null,"Investorförderung ? J=Ja N=Nein","chb",null,2,null,null,{"$f":"IF(Seite3b!A21=TRUE,\"J\",\"N\")","v":"N"},"S3b,A21"]
[null,"AF20_DAUER_DURCHF",null,"Dauer der Durchführung in Monaten","chb",null,3,null,null,{"$f":"'Seite 2'!H42","v":0},"S2,H32"]
[null,"AF20_MITGLIED_EO",null,"Mitglied einer Erzeugerorganisation ? J=Ja   N=Nein","chb",null,4,null,null,{"$f":"IF('Seite 3'!A28=TRUE,\"J\",\"N\")","v":"N"},"S3,A25"]
[null,"AF20_KZ_FOERDERDARLEHEN",null,"Kennzeichen Förderdarlehen (J oder N)","chb",null,1,null,null,{"$f":"IF('Seite 3'!A29=TRUE,\"J\",\"N\")","v":"N"},"S3, A26"]
[null,"AF20_KZ_ANL_NACHW_EIGENKAP_B",null,"Kennzeichen für 'Nachweis Eigenkapitalveränderung' beigefügt (J oder N)","chb",null,1,null,null,{"$f":"IF('Seite 5'!A29=TRUE,\"J\",\"N\")","v":"N"},"S5,A29"]
[null,"AF20_KZ_ANL_NACHW_EIGENKAP_E",null,"Kennzeichen für 'Nachweis Eigenkapitalveränderung' erforderlich (J oder N)","chb",null,1,null,null,{"$f":"IF('Seite 5'!A32=TRUE,\"J\",\"N\")","v":"N"},"S5,A32"]
[null,"AF20_KZ_ANL_NACHW_EIGENKAP_A",null,"Kennzeichen für 'Nachweis Eigenkapitalveränderung' anerkannt (J oder N)","chb",null,1,null,null,"N"]
[null,"AF20_KZ_ANL_ERKL_EO_B",null,"Kennzeichen für 'Erklärung zu Mitgliedschaft in EO' beigefügt (J oder N)","chb",null,1,null,null,{"$f":"IF('Seite 5'!A30=TRUE,\"J\",\"N\")","v":"N"},"S5, A30"]
[null,"AF20_KZ_ANL_ERKL_EO_E",null,"Kennzeichen für 'Erklärung zu Mitgliedschaft in EO' erforderlich (J oder N)","chb",null,1,null,null,"N"]
[null,"AF20_KZ_ANL_ERKL_EO_A",null,"Kennzeichen für 'Erklärung zu Mitgliedschaft in EO' anerkannt (J oder N)","chb",null,1,null,null,"N"]
[null,"AF20_KZ_ANL_ZUSAGE_FOERDERDARL_B",null,"Kennzeichen für 'Zusage Förderdarlehen' beigefügt (J oder N)","chb",null,1,null,null,{"$f":"IF('Seite 5'!A31=TRUE,\"J\",\"N\")","v":"N"},"S5,A31"]
[null,"AF20_KZ_ANL_ZUSAGE_FOERDERDARL_E",null,"Kennzeichen für 'Zusage Förderdarlehen' erforderlich (J oder N)","chb",null,1,null,null,"N"]
[null,"AF20_KZ_ANL_ZUSAGE_FOERDERDARL_A",null,"Kennzeichen für 'Zusage Förderdarlehen' anerkannt (J oder N)","chb",null,1,null,null,"N"]
[null,"AF20_ADRESSNR_RECHTSV",null,"Adressnummer des Rechtsvorgängers","tf",null,9,null,null,{"$f":"'Seite 3'!H26","v":0},"S3, H23"]
[null,"AF20_RECHTSFORM",null,"Rechtsform des Unternehmens","kcb",null,2,null,null,{"$f":"Liste1!B319","v":{"$error":"#N/A"}},"Liste1, B319"]
[null,"AF20_BEWIRTSCHAFTUNG",null,"Bewirtschaftungsweise","kcb",null,1,null,null,{"$f":"'AF09'!J29","v":"K"},"AF09,F29"]
[null,"AF20_HÄRTEFALL",null,"Härtefall - Priorität (J oder N)","chb",null,1,null,null,{"$f":"IF('Seite 3'!A33=FALSE,\"N\",\"J\")","v":"N"},"S3, A32"]
[null,"AF20_HAERTEGRUND",null,"Härtefall - Begründung","txt",null,255,null,null,{"$f":"'Seite 3'!E32","v":0},"S3, E29"]
[null,"AF20_BAUGEN_DATUM",null,"Datum der Baugenehmigung","mtf",null,10,null,null,{"$f":"IF('Seite 3'!H37=0,\"0\",'Seite 3'!H37)","v":"0"},"S3,H34",null,{"$f":"VALUE(J155)","v":0}]
[null,"AF20_LAGERKAPAZ-9M",null,"Lagerkapazität Gülle-Jauche über 9 Monate (J oder N)","opt",null,1,null,null,{"$f":"IF(Seite3a!A8=FALSE,\"N\",\"J\")","v":"N"},"S3a,A8"]
[null,"AF20_ENERGIEEINSP",null,"Energieeinsparungsziel Gewächshäuser und Hallen (J oder N)","opt",null,1,null,null,{"$f":"IF(Seite3a!A9=FALSE,\"N\",\"J\")","v":"N"},"S3a.A9"]
[null,"AF20_EMISSIONSMIND",null,"Emissionsminderungsziel (J oder N)","opt",null,1,null,null,null,"leer"]
[null,"AF20_KZ_Umstellung_Laufstall",null,"Umstellung von Anbindehaltung auf Laufstall","opt",null,1,null,null,{"$f":"IF(Seite3a!A3=TRUE,\"J\",\"N\")","v":"N"},"S3a,A3"]
[null,"AF20_KZ_Kenntnis_Anl1",null,"Kenntnis der Anlage 1 bestätigt","opt",null,1,null,null,{"$f":"IF(Seite3a!A22=TRUE,\"J\",\"N\")","v":"N"},"S3a, A22"]
[null,"AF20_KZ_Erklärung_GVE-Grenze",null,"Erklärung zur Einhaltungd er GVE-Grenze ","opt",null,1,null,null,{"$f":"IF(Seite3b!A4=TRUE,\"J\",\"N\")","v":"N"},"S3b,A4"]
[null,"AF20_KZ_Erklärung_Öko-Landbau",null,"Erklärung zur zur Ökologischen Wirtschaftsweise","opt",null,1,null,null,{"$f":"IF(Seite3b!A18=TRUE,\"J\",\"N\")","v":"N"},"S3b,A18"]
[null,"AF20_KZ_ANL_Gülleabgabe_B",null,"Kennzeichen für 'Nachweis Gülleabgabe' ist beigefügt (J oder N)","chb",null,1,null,null,{"$f":"IF('Seite 5'!A32=TRUE,\"J\",\"N\")","v":"N"},"S5, A32"]
[null,"AF20_KZ_ANL_Gülleabgabe_E",null,"Kennzeichen für Nachweis Gülleabgabe ist erforderlich (J oder N)","chb",null,1,null,null,"N","***"]
[null,"AF20_KZ_ANL_Gülleabgabe_A",null,"Kennzeichen für Nachweis Gülleabgabe ist anerkannt (J oder N)","chb",null,1,null,null,"N","***"]
[null,"AF20_KZ_Zertifikat_Öko_B",null,"Kennzeichen für Ökozertifikat ist beigefügt (J oder N)","chb",null,1,null,null,{"$f":"IF('Seite 5'!A33=TRUE,\"J\",\"N\")","v":"N"},"S5,A33"]
[null,"AF20_KZ_Zertifikat_Öko_E",null,"Kennzeichen für Ökozertifikat ist erforderlich (J oder N)","chb",null,1,null,null,"N","***"]
[null,"AF20_KZ_Zertifikat_Öko_A",null,"Kennzeichen für Ökozertifikat ist anerkannt (J oder N)","chb",null,1,null,null,"N","***"]
[null,"AF20_EUR_ZUSCHUSS_UMSTELL",null,"Höhe des Zuschuss für Umstellung auf Laufstallhaltung in EUR",null,null,2,null,null,null,"leer"]
[null,"AF20_GVE_NACH_ABGABE",null,"Viehbesatz nach Nährstoffabgabe",null,null,2,null,null,{"$f":"Seite3b!J5","v":0},"S3b,J5"]
[null,"AF20_PROZ_BEST_OBERGRENZE",null,"Ausschöpfung der Bestandsobergrenze lt. BImSchVO",null,null,2,null,null,{"$f":"Seite3b!J12*100","v":0},"S3b,J12"]
[null,"AF20_KZ_ANL_ERHALT_ZUW_B",null,"Kennzeichen für 'Erklärung zum Erhalt einer Zuwendung / Beihilfe ist beigefügt (J oder N)","chb",null,1,null,null,{"$f":"IF('Seite 5'!A34=TRUE,\"J\",\"N\")","v":"N"},"S5,A34"]
[null,"AF20_KZ_ANL_ERHALT_ZUW_E",null,"Kennzeichen für 'Erklärung zum Erhalt einer Zuwendung / Beihilfe ist erforderlich (J oder N)","chb",null,1,null,null,"J","***"]
[null,"AF20_KZ_ANL_ERHALT_ZUW_A",null,"Kennzeichen für 'Erklärung zum Erhalt einer Zuwendung / Beihilfe ist anerkannt (J oder N)","chb",null,1,null,null,"N","***"]
[null,"AF20_KZ_ANL_UMSTRUKTUR_B",null,"Kennzeichen für Erklärung zu einer Unternehmenumstrukturierung ist beigefügt (J oder N)","chb",null,1,null,null,{"$f":"IF('Seite 5'!A35=TRUE,\"J\",\"N\")","v":"N"},"S5, A35"]
[null,"AF20_KZ_ANL_UMSTRUKTUR_E",null,"Kennzeichen für Erklärung zu einer Unternehmenumstrukturierung ist erforderlich (J oder N)","chb",null,1,null,null,"N","***"]
[null,"AF20_KZ_ANL_UMSTRUKTUR_A",null,"Kennzeichen für Erklärung zu einer Unternehmenumstrukturierung ist anerkannt (J oder N)","chb",null,1,null,null,"N","***"]
[null,"AF20_KZ_ANL_BEST_OBERGR_B",null,"Kennzeichen für Formblatt 'Einhaltung der Bestandsobergrenzen' ist beigefügt (J oder N)","chb",null,1,null,null,{"$f":"IF('Seite 5'!A36=TRUE,\"J\",\"N\")","v":"N"},"S5, A36"]
[null,"AF20_KZ_ANL_BEST_OBERGR_E",null,"Kennzeichen für Formblatt 'Einhaltung der Bestandsobergrenzen' ist erforderlich (J oder N)","chb",null,1,null,null,"N","***"]
[null,"AF20_KZ_ANL_BEST_OBERGR_A",null,"Kennzeichen für Formblatt 'Einhaltung der Bestandsobergrenzen' ist anerkannt (J oder N)","chb",null,1,null,null,"N","***"]
[null,"AF20_KZ_ANL_UEBERLASS_B",null,"Kennzeichen für Vertrag zur Nutzungsüberlassung ist beigefügt (J oder N)","chb",null,1,null,null,{"$f":"IF('Seite 5'!A37=TRUE,\"J\",\"N\")","v":"N"},"S5,A37"]
[null,"AF20_KZ_ANL_UEBERLASS_E",null,"Kennzeichen für Vertrag zur Nutzungsüberlassung ist erforderlich (J oder N)","chb",null,1,null,null,"N","***"]
[null,"AF20_KZ_ANL_UEBERLASS_A",null,"Kennzeichen für Vertrag zur Nutzungsüberlassung ist anerkannt (J oder N)","chb",null,1,null,null,"N ","***"]
[null,"AF20_KZ_VERARB_OBST",null,"Kennzeichen für Investition zur Verarbeitung von Obst, Gemüse oder Zierpflanzen ","opt",null,1,null,null,{"$f":"IF(Seite3a!A4=TRUE,\"J\",\"N\")","v":"N"},"S3a,A4"]
[null,"AF20_KZ_HAGELSCHUTZNETZ",null,"Kennzeichen für Anschaffung eines Hagelschutznetzes","opt",null,1,null,null,null,"leer"]
[null,"AF20_EUR_ZUSCHUSS_MILCHKUH","Zahl","Erweiterung 2014: Höhe des Zuschuss für Milchkühe in EUR","mtf","#,###,###.##",7,0,null,{"$f":"'Seite 3'!I13","v":0},"S3,I13"]
[null,"AF20_KZ_INNOVATIONSPARTNERS",null,"Erweiterung 2014: Kennzeichen für Anschaffung Maßnahme in Rahmen Innovationspartnerschaft","opt",null,1,null,null,{"$f":"IF(Seite3a!A5=TRUE,\"J\",\"N\")","v":"N"},"S3a,A5"]
[null,"AF20_KZ_BEWAESSERUNGSANLAGE ",null,"Erweiterung 2014: Kennzeichen für Investition in die Erstanschaffung Bewässerungsanlage (J oder N)","opt",null,1,null,null,{"$f":"IF(Seite3a!A10=FALSE,\"N\",\"J\")","v":"N"},"S3a,A10"]
[null,"AF20_EUR_ZUSCHUSS_SAUEN","Zahl","Erweiterung 2014: Höhe des Zuschuss für Zuchtsauen in EUR","mtf","#,###,###.##",7,0,null,{"$f":"'Seite 3'!I17","v":0},"S3,I16"]
[null,"AF20_EUR_ZUSCHUSS_GEFL_MS","Zahl","Erweiterung 2014: Höhe des Zuschuss für Geflügel und Mastschweine in EUR","mtf","#,###,###.##",7,0,null,{"$f":"'Seite 3'!I18","v":0},"S3,I17"]
[null,"AF20_EUR_ZUSCHUSS_UEBRIGE","Zahl","Erweiterung 2014: Höhe des Zuschuss für übrige Tierarten in EUR","mtf","#,###,###.##",7,0,null,{"$f":"'Seite 3'!I19","v":0},"S3,I18"]
[null,"AF20_EUR_ZUSCHUSS_SONST","Zahl","Erweiterung 2014: Höhe des Zuschuss für sonstige Investitionen in EUR","mtf","#,###,###.##",7,0,null,{"$f":"'Seite 3'!I12","v":0},"S3,I12"]
[null,"AF20_KZ_NACHZUCHT","Text","Erweiterung 2014: Angabe ob Nachzucht im eigenen Betrieb verbleibt","chb",null,0,null,null,{"$f":"IF(Seite3a!A2,\"J\",\"N\")","v":"N"},"S3a,A2"]
[null,"AF20_UMWSCH_ENERGIE_EMISSION",null,"Erweiterung 2015: Sonst. Investition Umweltschutz, Energieeinsparung, Emissionsminderung, Ressourceneffizienz","opt",null,1,null,null,{"$f":"IF(Seite3a!A12=FALSE,\"N\",\"J\")","v":"N"},"S3a,A12"]
[null,"AF20_TEXT_BESCHREIBUNG","Text","Erweiterung 2015: Kommentar Beschreibung Umweltschutz, Energie-, Emissionsminderungsmaßnahme","tf",null,250,null,null,{"$f":"Seite3a!C14","v":0},"S3a,C14"]
[null,"AF20_TEXT_BESCHREIBUNG","Text","Erweiterung 2015: Kommentar Beschreibung Umweltschutz, Energie-, Emissionsminderungsmaßnahme","tf",null,250,null,null,{"$f":"Seite3a!C17","v":0},"S3a,C15"]

{"sheet":"AF09","index":15,"n_rows":100,"n_cols":10,"rows_kept":100,"cut":false,"hidden":true,"merged":[[1,6,1,7]]}
["AF09","Investitionskonzept"]
["COL_ID","COL_NAME","LENGTH","BESCHREIBUNG",null,null,"POSITION"]
[null,"AF09",null,null,null,null,null,"IK-Seite","Feld","Inhalt"]
[1,"AF09_ADRESSNR",9,"Adressnummer (PK)",null,null,4,"Inhalt","G5",190524250]
[2,"AF09_WJ",22,"Wirtschaftsjahr (PK)",null,null,5,"Inhalt","I5",2014]
[3,"AF09_ANTRAGNR",22,"laufende Nummer Antrag (PK)",null,null,6,1,null,1]
[4,"AF09_DATUM_ERSTELLUNG",7,"Erstellungsdatum des Investitionskonzeptes (M)",null,null,7,"Inhalt","I9","2013-07-05"]
[5,"AF09_DATUM_ERGAENZUNG",7,"Ergänzungsdatum des Investitionskonzeptes (M)",null,null,8,"Inhalt","C10","2013-08-22"]
[6,"AF09_AUSBILDUNG_NR_1",22,"Nr. der 1. Ausbildung des Antragsstellers, LK11-Schlüsselart = 35 (M)",null,null,9,null,"leer",0]
[7,"AF09_AUSBILDUNG_NR_2",22,"Nr. der 2. Ausbildung des Antragsstellers, LK11-Schlüsselart = 35 (K)",null,null,10,null,"leer",0]
[8,"AF09_BETR_ZUSAMMENSCHLUSS",0,"KZ Betriebszusammenschluß: 0 = nein, 1 = teilweiser Zusammenschluß 2 = vollständiger Zusammenschluß (M)",null,null,11,"Inhalt","D15",0]
[9,"AF09_ABSCHLUSS_STICHTAG",7,"Abschlußstichtag des letzten Bilanzjahres (K)",null,null,12,"Inhalt","C13","30.6.2012"]
[10,"AF09_BUCHSTELLE_NR",22,"Buchstellennummer (K)",null,null,13,"Inhalt","C12",80]
[11,"AF09_BUCHSTELLE_BETR_NR",22,"Betriebsnummer der Buchstelle (K)",null,null,14,"Inhalt","G12"]
[12,"AF09_VERBUCHUNG",1,"Art der Verbuchung",null,null,15,"Inhalt","G13",0]
[13,"AF09_AUSSIEDLUNG",1,"KZ Aussiedlung: 0 = Nein, 1 = Vollaussiedlung, 2 = Teilaussiedlung, 3 = Betriebszweigaussiedlung (M)",null,null,16,"Inhalt","G17",0]
[14,"AF09_BERATUNGSSTELLE",22,"Beratungsstelle",null,null,17,"Inhalt","E24"]
[15,"AF09_BERATER",22,"Nummer des Beraters: LK11-Schlüsselart = 38 (M)",null,null,18,"Inhalt","C24",1]
[16,"AF09_BETRIEBSZWEIG",22,"Nummer des Betriebszweiges: LK11-Schlüsselart = 36 (M)",null,null,19,"1 KaP","B12",2]
[17,"AF09_LANDSCHAFTSSCHUTZGEB",1,"KZ Landschaftsschutzgebiet: N = nein, J = ja (M)",null,null,20,"Inhalt","C21","N"]
[18,"AF09_NATURA2000",1,"KZ Natura 2000: N = nein, J = ja (M)",null,null,21,"Inhalt","F21","N"]
[19,"AF09_NATURSCHUTZGEB",1,"KZ Naturschutzgebiet: N = nein, J = ja (M)",null,null,22,"Inhalt","C22","N"]
[20,"AF09_WASSERSCHUTZGEB",1,"KZ Wasserschutzgebiet: N = nein, J = ja (M)",null,null,23,"Inhalt","F22","N"]
[21,"AF09_LF_BENACH_GEBIET",1,"KZ LF in benachteiligtem Gebiet; N = nein, J = ja (M)",null,null,24,"1 KaP","F43","N"]
[22,"AF09_REGIERUNGSBEZIRK",22,"Nr. des Regierungsbezirkes: LK11-Schlüsselart = 43 (M)",null,null,25,"??","leer",0]
[23,"AF09_KREIS_NR",3,"Nummer des Kreises aus der Tabelle KREIS (M)",null,null,26,"??","leer",0]
[24,"AF09_GEMEINDE_NR",3,"Gemeinde-Nummer (M)",null,null,27,"??","leer",0]
[25,"AF09_PRODUKTIONSRICHTUNG",22,"Nr. der Produktionsrichtung: LK11-Schlüsselart = 31 (M)",null,null,28,"1 KaP","B12",2]
[26,"AF09_BEWIRTSCHAFTUNGSFORM",1,"KZ Bewirtschaftungsform: K = Konventionell, Ö = Ökologisch, U = Ökologisch in Umstellung (M)",null,null,29,"Aus Antrag 'Seite 1'!I30",null,{"$f":"IF('Seite 1'!I30 = \"Ökologisch\", \"O\",IF('Seite 1'!I30 = \"In Umstellung\", \"U\", \"K\"))","v":"K"}]
[27,"AF09_UMST_OEK_JAHR",22,"Umstellungsjahr auf ökologischen Anbau (M, wenn KZ Bewirtschaftungsform = U)",null,null,30,"1 KaP","D18",0]
[28,"AF09_INV_MASSNAHME",22,"Nr. der Investitionsmaßnahme: LK11-Schlüsselart = 37 (M)",null,null,31,"1 KaP","????",0]
[29,"AF09_INV_VORHABEN",255,"Beschreibung des Investitionsvorhabens (M)",null,null,32,"1 KaP","B20","Bau Boxenlaufstall für 90 Kühe incl. Melktechnik und Fütterungs-roboter. Erw. Fahrsiloanlage & Bau Güllebehälter mit Technik. Notw. Zuwegung/ Befestigung für alle Bauwerke."]
[30,"AF09_RECHTSFORM",22,"Nr. der Rechtsform: LK11-Schlüsselart = 34 (M)",null,null,33,"1 KaP","B25",2]
[31,"AF09_GEBIETSART",22,"Nr. der Gebietsart: LK11-Schlüsselart = 32 (M)",null,null,34,"1 KaP","F43",1]
[32,"AF09_IST_JAHR",22,"Ist - Jahr des Investitionskonzeptes (M)",null,null,35,"Inhalt","I5",2013]
[33,"AF09_IST_UMSATZST_SYS",1,"Umsatzsteuersystem im Ist - Jahr (M)",null,null,36,"1 KaP","F9",2]
[34,"AF09_IST_AK_TAETIG",22,"Im Ist - Jahr tätige Arbeitskräfte (M)",null,null,37,"1 KaP","L24",1.5]
[35,"AF09_IST_MILCH_REF",22,"Im Ist-Jahr lieferbare Milch-Referenzmenge (K)",null,null,38,"1 KaP","F49",229513]
[36,"AF09_IST_MILCH_REF_PACHT",22,"Im Ist-Jahr gepachtete Milch-Referenzmenge (K)",null,null,39,"1 KaP","F50"]
[37,"AF09_IST_VIEHBESATZ_GVE",22,"Viehbesatz im Ist - Jahr (GVE / ha LF) (K)",null,null,40,"1 KaP","H100",2.2200000000000002]
[38,"AF09_IST_KREDIT_ALT",22,"Valuta der Alt-Kredite im Ist - Jahr (K)",null,null,41,"4 Kredite","K64",161741]
[39,"AF09_IST_KREDIT_PRIV",22,"Private und sonst. Kredite im Ist - Jahr (K)",null,null,42,"4 Kredite","K61+K62",0]
[40,"AF09_IST_KREDIT_INSGESAMT",22,"Kapitaldienst insgesamt im Ist - Jahr (K)",null,null,43,"4 Kredite","M64",31026]
[41,"AF09_IST_AUSGLEICHSLEISTUNG",22,"Prämien und Ausgleichszahlung im Ist - Jahr (K)",null,null,44,"5 Präm","F67",19969]
[42,"AF09_IST_AK_BEDARF",22,"Arbeitskräftebedarf lt. Produktionsprogramm im IST - Jahr (M)",null,null,45,"7 Prod","J142",1.5]
[43,"AF09_IST_GEWINN",22,"Gewinn im Ist - Jahr (M)",null,null,46,"8 GeKDGr","H47",14633]
[44,"AF09_IST_EIGENKAP_VERAEND",22,"bereinigte Eigenkapitalveränderung im Ist - Jahr (M)",null,null,47,"8 GeKDGr","H63",-2690]
[45,"AF09_IST_KAP_DIENST_GRENZE",22,"langfristige Kapitaldienstgrenze im Ist - Jahr (M)",null,null,48,"8 GeKDGr","H65",4895]
[46,"AF09_ZIEL_JAHR",22,"Ziel - Jahr des Investitionskonzeptes (M)",null,null,49,"1 KaP","K5",2015]
[47,"AF09_ZIEL_UMSATZST_SYS",1,"Umsatzsteuersystem im Ziel - Jahr (M)",null,null,50,"1 KaP","J9",2]
[48,"AF09_ZIEL_AK_TAETIG",22,"Im Ziel - Jahr tätige Arbeitskräfte (M)",null,null,51,"1 KaP","M24",2.56]
[49,"AF09_ZIEL_MILCH_REF",22,"Im Ziel-Jahr lieferbare Milch-Referenzmenge  (K)",null,null,52,"1 KaP","J49",1287000]
[50,"AF09_ZIEL_MILCH_REF_PACHT",22,"Im Ziel-Jahr gepachtete Milch-Referenzmenge (K)",null,null,53,"1 KaP","J50",0]
[51,"AF09_ZIEL_VIEHBESATZ_GVE",22,"Viehbesatz im Ziel - Jahr (GVE / ha LF) (K)",null,null,54,"1 KaP","L100",3.68]
[52,"AF09_ZIEL_KREDIT_ALT",22,"Valuta der Alt-Kredite im Ziel - Jahr (K)",null,null,55,"4 Kredite","L58",111770]
[53,"AF09_ZIEL_KREDIT_NEU",22,"Valuta der Neu-Kredite im Ziel - Jahr (K)",null,null,56,"4 Kredite","L59",164350]
[54,"AF09_ZIEL_KREDIT_PRIV",22,"Private und sonst. Kredite im Ziel - Jahr (K)",null,null,57,"4 Kredite","L61+L62",0]
[55,"AF09_ZIEL_KREDIT_INSGESAMT",22,"Kapitaldienst insgesamt im Ziel - Jahr (K)",null,null,58,"4 Kredite","O64",44054]
[56,"AF09_ZIEL_AUSGLEICHSLEISTUNG",22,"Prämien und Ausgleichszahlung im Ziel - Jahr (K)",null,null,59,"5 Präm","J67",18647]
[57,"AF09_ZIEL_AK_BEDARF",22,"Ziel-AK (wie oben)",null,null,60,"7 Prod","S142",2.56]
[58,"AF09_ZIEL_GEWINN",22,"Gewinn im Ziel - Jahr (M)",null,null,61,"8 GeKDGr","M47",44853]
[59,"AF09_ZIEL_EIGENKAP_VERAEND",22,"Eigenkapitalveränderung im Ziel",null,null,62,"8 GeKDGr","M63",25461]
[60,"AF09_ZIEL_KAP_DIENST_GRENZE",22,"langfristige Kapitaldienstgrenze im Ziel - Jahr (M)",null,null,63,"8 GeKDGr","M65",36153]
[61,"AF09_AUSG_OHNE_BES_ANF_NETTO",22,"Ausgaben ohne besondere Anforderungen an die Landwirtschaft Netto (K)",null,null,64,null,"leer",317674.99]
[62,"AF09_AUSG_MIT_BES_ANF_NETTO",22,"Ausgaben mit besonderen Anforderungen an die Landwirtschaft Netto (K)",null,null,65,null,"leer",1237946.48]
[63,"AF09_UNBARE_EIGENLEISTUNG",22,"Betrag für unbare Eigenleistungen (K)",null,null,66,0,null,0]
[64,"AF09_SUBVENTIONSWERT_PROZ",22,"Subventionswert der Förderung in Prozent (M)",null,null,67,"3 FinPlan","L47",35]
[65,"AF09_ZUSCHUSS_BES_ANF_PROZ",22,"Prozentsatz für den Zuschuss für die Erfüllung besonderer Anforderungen (K)",null,null,68,null,"leer",25]
[66,"AF09_BEM_GRUNDLAGE",22,"Bemessungsgrundlage für Zuschussberechnung (K)",null,null,69,null,"leer",261451.99]
[67,"AF09_ZINSZUSCHUSS_PROZ",22,"Prozentsatz Zinszuschuss (K)",null,null,70,null,"leer",15]
[68,"AF09_NAME_BEARB",20,"Name des Bearbeiters der letzten Bearbeitung (M)",null,null,71,"CSV_Transfer",null,"Willebrand, Christiane"]
[69,"AF09_DAT_BEARB",7,"Datum der letzten Bearbeitung (M)",null,null,72,"Now",null,"2014-07-21T15:59:52"]
[70,"AF09_EUR_BER_EIG_KAP_VER_WJ_T2",22,"Bereinigte EK-Bildung lt Buchf. Im Jahr - 2",null,null,"73","9 G-N-P","K130",7240]
[71,"AF09_EUR_BER_EIG_KAP_VER_WJ_T1",22,"Bereinigte EK-Bildung lt Buchf. Im Jahr - 1",null,null,"74","9 G-N-P","M130",21312]
[72,"AF09_EUR_BER_EIG_KAP_VER_WJ_T3",null,"Bereinigte EK-Bildung lt Buchf. Im Jahr - 3",null,null,75,"9 G-N-P","I130",0]
[73,"AF09_EUR_BER_EIG_KAP_VER_WJ_DS",null,"Bereinigte EK-Bildung lt Buchf. Im Durchschnitt",null,null,76,"10 G-N-P","O130",14276]
[74,"AF09_BEREIN_GEWINN_WJ_T3",null,"Bereinigter Gewinn im Jahr - 3 (Bfg)",null,null,77,"9 G-N-P","I104",0]
[75,"AF09_BEREIN_GEWINN_WJ_T2",22,"Bereinigter Gewinn im Jahr - 2 (Bfg)",null,null,78,"9 G-N-P","K104",22192]
[76,"AF09_BEREIN_GEWINN_WJ_T1",22,"Bereinigter Gewinn im Vorjahr (Bfg)",null,null,79,"9 G-N-P","M104",31746]
[77,"AF09_EUR_IST_KAP_DIENST",22,"Kapitaldienst in der Ist-Situation",null,null,80,"8 GeKDGr","H67",31026]
[78,"AF09_EUR_ZIEL_KAP_DIENST",22,"Kapitaldienst in der Ziel-Situation",null,null,81,"8 GeKDGr","M67",44054]
[79,"AF09_EUR_BRUTTOWERTSCH_WJ_T3",22,"Bruttowertschöpfung im Jahr -3 (Bfg)",null,null,"82","I_2","E69",0]
[80,"AF09_EUR_BRUTTOWERTSCH_WJ_T2",22,"Bruttowertschöpfung im Jahr -2 (Bfg)",null,null,"83","I_2","F69",57933]
[81,"AF09_EUR_BRUTTOWERTSCH_WJ_T1",22,"Bruttowertschöpfung im Jahr -1 (Bfg)",null,null,"84","I_2","G69",64890]
[82,"AF09_EUR_BRUTTOWERTSCH_MITTEL",22,"Bruttowertschöpfung im Durchschnitt (Bfg)",null,null,"85","I_2","H69",61412]
[83,"AF09_EUR_BRUTTOWERTSCH_IST",22,"Bruttowertschöpfung lt. Plan im Istjahr",null,null,"86","I_2","I69",49289]
[84,"AF09_EUR_BRUTTOWERTSCH_ZIEL",22,"Bruttowertschöpfung lt. Plan im Zieljahr",null,null,"87","I_2","J69",196029]
[85,"AF09_KZ_MON_BETRIEBSART",22,"Kennung für Betriebsart nach KOM-Vorgabe",null,null,88,"Monitoring","I4","A"]
[86,"AF09_KZ_MON_NEUE_PRODUKTION",22,"Kennung für neue Verfahren / neue Produktionsstruktur",null,null,89,"Monitoring","I8","A"]
[87,"AF09_AUSG_SONST_INV_NETTO",22,"Ausgaben sonstige Investitionen Netto (K)",null,null,90,"2 InvBed","I69",0]
[88,"AF09_AUSG_KUEHE_NETTO",22,"Ausgaben Milchkühe Netto (K)",null,null,91,"2 InvBed","I70",0]
[89,"AF09_AUSG_ZUCHTSAUEN_NETTO",22,"Ausgaben Zuchtsauen Netto (K)",null,null,92,"2 InvBed","I71",0]
[90,"AF09_AUSG_GEFL_U_MASTSCH_NETTO",22,"Ausgaben Geflügel und Mastschweine Netto (K)",null,null,93,"2 InvBed","I72",0]
[91,"AF09_AUSG_UEBRIGE_TIERE_NETTO",22,"Ausgaben Übrige Tierarten Netto (K)",null,null,94,"2 InvBed","I73",0]
[89,"AF09_ZUSCHUSS_KUEHE_PROZ",22,"Prozentsatz für den Zuschuss für Kühe (K)",null,null,95,"3 FinPlan","I30",35]
[90,"AF09_BEM_GRUNDL_SONST_INVEST",22,"Bemessungsgrundlage für Zuschussberechnung sonstige Investitionen (K)",null,null,96,"3 FinPlan","H29",0]
[91,"AF09_SONST_INV_PROZ",22,"Prozentsatz sonstige Investitionen (K)",null,null,97,"3 FinPlan","I29",15]
[92,"AF09_SAUEN_PROZ",22,"Prozentsatz Zuchtsauen (K)",null,null,98,"3 FinPlan","I33",15]
[93,"AF09_GEFL_U_MS_PROZ",22,"Prozentsatz Geflügel und Mastschweine (K)",null,null,99,"3 FinPlan","I34",15]
[94,"AF09_UEBR_TIERE_PROZ",22,"Prozentsatz übrige Tierarten (K)",null,null,100,"3 FinPlan","I35",15]

{"sheet":"AF24","index":16,"n_rows":69,"n_cols":10,"rows_kept":69,"cut":false,"hidden":true,"merged":[[0,0,0,3]]}
["AF24 Finanzierungsplan"]
["Feld-ID","Feldname","Feldtyp","Beschreibung/Label","K-Typ","Länge","Zeile","Quelle","Position"]
["1","AF24_ADRESSNR","Text","Adressnummer","ac",9,3,"Inhalt","G5"]
["2","AF24_WJ","Zahl","Wirtschaftsjahr","ac",4,4,"Inhalt","I5",2014]
["3","AF24_ANTRAGNR","Zahl","laufende Antragsnummer im WJ","tf",3,5,1,null,1]
["4","AF24_EUR_EIGENMITTEL","Zahl","Summe Eigenmittel","mtf",2,6,"3 FinPlan","J27",0]
["5","AF24_EUR_ZUSCHUSS_WETTB_ZUW_FAEH","Text","Investitionssumme Wettbewerbszuschuss","mtf",50,7,null,"leer",0]
["6","AF24_ZUSCHUSS_WETTB_PROZENTSATZ","Zahl","Fördersatz Wettbewerbszuschuss","mtf",11,8,null,"leer",0]
["7","AF24_EUR_ZUSCHUSS_WETTB_BETRAG","Zahl","Betrag Wettbewerbszuschuss","mtf",11,9,null,"leer",0]
["8","AF24_EUR_ZUSCHUSS_BES_ANF_ZUW_FAEH","Zahl","Investitionssumme besondere Anf","mtf",11,10,null,"leer",0]
["9","AF24_ZUSCHUSS_BES_ANF_PROZENT","Zahl","Fördersatz besondere Anf","mtf",11,11,null,"leer",0]
["10","AF24_EUR_ZUSCHUSS_BES_ANF_BETRAG","Zahl","Betrag besondere Anf","mtf",11,12,null,"leer",0]
["11","AF24_EUR_ZUSCHUSS_ERSCHL_ZUW_FAEH","Zahl","Erschließung Zusch.Invest.","mtf",11,13,"3 FinPlan","H31",0]
["12","AF24_ZUSCHUSS_ERSCHL_PROZENTSATZ","Zahl","Fördersatz Erschließ.-Zusch. ","mtf",11,14,"3 FinPlan","I31",0]
["13","AF24_EUR_ZUSCHUSS_ERSCHL_BETRAG","Zahl","Betrag Erschließungszusch.","mtf",11,15,"3 FinPlan","J31",0]
["14","AF24_ZUSCHUSS_JUNGLANDW_ZUW_FAEH","Zahl","Junglandwirte Zusch.Invest.","mtf",11,16,"3 FinPlan","H32",0]
["15","AF24_ZUSCHUSS_JUNGLANDW_PROZENTSATZ","Zahl","Fördersatz Junglandwirte.-Zusch. ","mtf",11,17,"3 FinPlan","I32",0]
["16","AF24_EUR_ZUSCHUSS_JUNGLANDW_BETRAG","Zahl","Betrag Junglandw-zusch.","mtf",11,18,"3 FinPlan","J32",0]
["17","AF24_EUR_ZUSCHUSS_SUMME","Zahl","Summe Zuschüsse","mtf",11,19,"3 FinPlan","J36",0]
["18","AF24_EUR_DARLEHEN_SUMME","Zahl","Summe Darlehen","mtf",11,20,"3 FinPlan","J45",0]
["19","AF24_EUR_SUMME_FIN_MITTEL","Zahl","Finanzierungsmittel","mtf",11,21,"3 FinPlan","J46",0]
["20","AF24_PROZ_SUB_WERT","Zahl","Finanzierungsmittel in %","mtf",11,22,"3 FinPlan","L47",0]
["21","AF24_EUR_BAUKOSTEN_SUMME","Zahl","Summe Baukosten Ausgaben","mtf",11,23,"2 InvBed","I44",0]
["22","AF24_EUR_BAUKOSTEN_FOERD","Zahl","Summe Baukosten förderfähig","mtf",11,24,"2 InvBed","L44",0]
["23","AF24_EUR_BEM_GRUNDL_ALLG_AUFW","Zahl","Bemessungsgrundlage allgemein","mtf",11,25,"2 InvBed","I57",0]
["24","AF24_EUR_BEM_GRUNDL_FOERD","Zahl","Bemessung föderfähig","mtf",11,26,"2 InvBed","L57",0]
["25","AF24_EUR_AUSG_WETTB","Zahl","Ausgaben Wettbewerb","mtf",11,27,null,"leer",0]
["26","AF24_EUR_AUSG_WETTB_FOERD","Zahl","förderfähige Ausg Wettbewerb","mtf",11,28,null,"leer",0]
["27","AF24_EUR_AUSG_BES_ANF","Zahl","Ausgaben Bes.Anf. ","mtf",11,29,null,"leer",0]
["28","AF24_EUR_AUSG_BES_ANF_FOERD","Zahl","förderfähiger Ausg Bes.Anf. ","mtf",11,30,null,"leer",0]
["29","AF24_EUR_AUSG_GES","Zahl","gesamte Ausgaben","mtf",11,31,"2 InvBed","I74",0]
["30","AF24_EUR_AUSG_GES_FOERD","Zahl","förderfähig Ausgaben gesamt ","mtf",11,32,"2 InvBed","L74",0]
["31","AF24_EUR_NOCH_FOEH_FAEH","Zahl","noch ff Höchstbetrag","mtf",11,33,"2 InvBed","L77",0]
["32","AF24_EUR_BEM_GRUNDL_OHNE_ER","Zahl","Bemessung Zuschuss ohne Erschließung","mtf",11,34,"2 InvBed","L78",0]
["33","AF24_EUR_JULA_FOERD_ERH","Zahl","bereits erhalten JULA-Förderung","mtf",11,35,"2 InvBed","L79",0]
["34","AF24_NAME_BEARB","Text","Name des letzten Bearbeiters","le",30,36,"CSV_Transfer",null,"Willebrand, Christiane"]
["35","AF24_DAT_BEARB","Datum","Datum der letzten Bearbeitung","le","A",37,"Now",null,"2014-07-21T16:00:02"]
["36","AF24_EUR_LEISTUNGEN_DRITTER","Zahl","Eigenmittel-Leistungen Dritter","mtf",11,38,"3 FinPlan","J26",0]
["37","AF24_EUR_FOERD_DARL","Zahl","Förderdarlehen","mtf",11,39,"3 FinPlan","J40",0]
["38","AF24_EUR_FOERD_DARL_BEIH_WERT","Zahl","Beihilfewert des Förderdarlehens €","mtf",11,40,"3 FinPlan","L40",0]
["39","AF24_PROZ_SUB_WERT_MIT_DARL","Zahl","Subventionswert mit Förderdarlehen in %","mtf",11,41,"3 FinPlan","L49",0]
["40","AF24_EUR_ZUSCH_UMSTELL_ZUW_FAE","Zahl","Umstellung Zusch.Invest.","mtf",11,42,null,"leer",0]
["41","AF24_PROZ_ZUSCH_UMSTELL","Zahl","Fördersatz Umstellung.-Zusch. ","mtf",11,43,null,"leer",0]
["42","AF24_EUR_ZUSCH_UMSTELL_BETRAG","Zahl","Betrag Umstellung-zusch.","mtf",11,44,null,"leer",0]
["43","AF24_EUR_SUMME_SONST_INVEST","Text","Erweiterung 2014: Investitionssumme Sonstige Investitionen","mtf",50,45,"3 FinPlan","H29",0]
["44","AF24_PROZ_SONST_INVEST","Zahl","Erweiterung 2014: Fördersatz Sonstige Investitionen","mtf",11,46,"3 FinPlan","I29",0]
["45","AF24_EUR_SONST_INVEST","Zahl","Erweiterung 2014: Betrag Sonstige Investitionen","mtf",11,47,"3 FinPlan","J29",0]
["46","AF24_EUR_SUMME_MILCH_INVEST","Zahl","Erweiterung 2014: Investitionssumme Milchkühe","mtf",11,48,"3 FinPlan","H30",0]
["47","AF24_PROZ_MILCH_INVEST","Zahl","Erweiterung 2014: Fördersatz Milchkühe","mtf",11,49,"3 FinPlan","I30",0]
["48","AF24_EUR_MILCH_INVEST","Zahl","Erweiterung 2014: Betrag Milchkühe","mtf",11,50,"3 FinPlan","J30",0]
["49","AF24_EUR_SUMME_GEFLMS_INVEST","Zahl","Erweiterung 2014: Geflügel und Mastschweine Zusch.Invest.","mtf",11,51,"3 FinPlan","H34",0]
["50","AF24_PROZ_GEFLMS_INVEST","Zahl","Erweiterung 2014: Fördersatz Geflügel und Mastschweine","mtf",11,52,"3 FinPlan","I34",0]
["51","AF24_EUR_GEFLMS_INVEST","Zahl","Erweiterung 2014: Betrag Geflügel und Mastschweine","mtf",11,53,"3 FinPlan","J34",0]
["52","AF24_EUR_SUMME_UEBRTIE_INVEST","Zahl","Erweiterung 2014: übrige Tierarten Zusch.Invest.","mtf",11,54,"3 FinPlan","H35",0]
["53","AF24_PROZ_UEBRTI_INVEST","Zahl","Erweiterung 2014: Fördersatz übrige Tierarten","mtf",11,55,"3 FinPlan","I35",0]
["54","AF24_EUR_UEBRTI_INVEST","Zahl","Erweiterung 2014: Betrag übrige Tierarten","mtf",11,56,"3 FinPlan","J35",0]
["55","AF24_EUR_SUMME_ZUCHTS_INVEST","Zahl","Erweiterung 2014: Zuchtsauen Zusch.Invest.","mtf",11,57,"3 FinPlan","H33",0]
["56","AF24_PROZ_ZUCHTS_INVEST","Zahl","Erweiterung 2014: Fördersatz Zuchtsauen","mtf",11,58,"3 FinPlan","I33",0]
["57","AF24_EUR_ZUCHTS_INVEST","Zahl","Erweiterung 2014: Betrag Zuchtsauen","mtf",11,59,"3 FinPlan","J33",0]
["52","AF24_EUR_AUSG_GEFL_MASTSCHW","Zahl","Erweiterung 2014: förderfähiger Ausg Geflügel und Mastschweine","mtf",11,60,"2 InvBed","L72",0]
["54","AF24_EUR_AUSG_UEBR_TIERART","Zahl","Erweiterung 2014: förderfähiger Ausg übrige Tierarten","mtf",11,61,"2 InvBed","L73",0]
["50","AF24_EUR_AUSG_ZUCHTS","Zahl","Erweiterung 2014: förderfähige Ausg Zuchtsauen","mtf",11,62,"2 InvBed","L71",0]
["62","AF24_EUR_AUSG_SONST_INVEST","Zahl","Erweiterung 2014: förderfähige Ausg sonstige Investition","mtf",11,63,"2 InvBed","L69",0]
["64","AF24_EUR_AUSG_MILCH","Zahl","Erweiterung 2014: förderfähiger Ausg Milchkühe","mtf",11,64,"2 InvBed","L70",0]
["52","AF24_EUR_GEFL_MASTSCHW_GES","Zahl","Erweiterung 2014: Ausgaben insgesamt Geflügel und Mastschweine","mtf",11,60,"2 InvBed","I72",0]
["54","AF24_EUR_UEBR_TIERART_GES","Zahl","Erweiterung 2014: Ausgaben insgesamt übrige Tierarten","mtf",11,61,"2 InvBed","I73",0]
["50","AF24_EUR_ZUCHTS_GES","Zahl","Erweiterung 2014: Ausgaben insgesamt Zuchtsauen","mtf",11,62,"2 InvBed","I71",0]
["62","AF24_EUR_SONST_INVEST_GES","Zahl","Erweiterung 2014: Ausgaben insgesamt sonstige Investition","mtf",11,63,"2 InvBed","I69",0]
["64","AF24_EUR_MILCH_GES","Zahl","Erweiterung 2014: Ausgaben insgesamt Milchkühe","mtf",11,64,"2 InvBed","I70",0]

{"sheet":"Transfer","index":17,"n_rows":275,"n_cols":65,"rows_kept":275,"cut":false,"hidden":true,"merged":[[206,0,206,3],[220,0,220,3],[79,6,79,7],[152,0,152,3],[168,0,168,3]]}
[null,null,null,null,null,null,null,null,null,"Wert"]
["Feld-ID","Feldname","Feldtyp","Beschreibung/Label","K-Typ","E/A","M/S/K","C/K/D","Eingabe-Format"]
["A3","AF20_ADRESSNR","Text","Adressnummer","ac","E","M","C",null,{"$f":"'Seite 1'!C18","v":0}]
["H3","AF20_AUSZAHLWJ","Zahl","Wirtschaftsjahr","ac","E","M","C",null,{"$f":"'Seite 1'!G18","v":2024}]
["F5","AF20_ANTRAGNR","Zahl","laufende Antragsnummer im WJ","tf","E","M","C",null,{"$f":"'Seite 1'!E18","v":1}]
[]
[]
[]
[]
[]
[]
[]
[]
[]
[]
[]
[]
[]
[]
[null,null,"Winter GbR",null,null,null,null,null,"6/19/1949"]
[]
[null,null,"Grenzweg 2"]
[]
[null,null,"59302","Oelde"]
[]
[null,null,"Winter",null,null,null,null,4]
[]
[null,null,null,null,null,null,null,null,"4/28/1958"]
[]
[]
[]
[]
[]
[]
[]
[null,null,"LUB"]
[]
[null,null,"Selhorst",null,"Warendorf"]
[]
[null,null,"02581/6379-59"]
[]
[]
[]
[]
[]
[]
[]
[]
[]
[]
[]
[]
[]
[]
[]
[]
[]
[]
[]
[]
[]
[]
[]
[]
[]
[]
[]
[]
[]
[]
[]
[]
[]
[]
[]
[]
[]
[]
["AF09","Investitionskonzept"]
["COL_ID","COL_NAME","LENGTH","BESCHREIBUNG",null,null,"POSITION"]
[null,"AF09",null,null,null,null,null,"IK-Seite","Feld"]
[1,"AF09_ADRESSNR",9,"Adressnummer (PK)",null,null,82,"Inhalt","G5"]
[2,"AF09_WJ",22,"Wirtschaftsjahr (PK)",null,null,83,"Inhalt","I5"]
[3,"AF09_ANTRAGNR",22,"laufende Nummer Antrag (PK)",null,null,84,1]
[4,"AF09_DATUM_ERSTELLUNG",7,"Erstellungsdatum des Investitionskonzeptes (M)",null,null,85,"Inhalt","I9"]
[5,"AF09_DATUM_ERGAENZUNG",7,"Ergänzungsdatum des Investitionskonzeptes (M)",null,null,86,"Inhalt","C10"]
[6,"AF09_AUSBILDUNG_NR_1",22,"Nr. der 1. Ausbildung des Antragsstellers, LK11-Schlüsselart = 35 (M)",null,null,87,null,"leer",0]
[7,"AF09_AUSBILDUNG_NR_2",22,"Nr. der 2. Ausbildung des Antragsstellers, LK11-Schlüsselart = 35 (K)",null,null,88,null,"leer",0]
[8,"AF09_BETR_ZUSAMMENSCHLUSS",0,"KZ Betriebszusammenschluß: 0 = nein, 1 = teilweiser Zusammenschluß 2 = vollständiger Zusammenschluß (M)",null,null,89,"Inhalt","D15"]
[9,"AF09_ABSCHLUSS_STICHTAG",7,"Abschlußstichtag des letzten Bilanzjahres (K)",null,null,90,"Inhalt","C13"]
[10,"AF09_BUCHSTELLE_NR",22,"Buchstellennummer (K)",null,null,91,"Inhalt","C12"]
[11,"AF09_BUCHSTELLE_BETR_NR",22,"Betriebsnummer der Buchstelle (K)",null,null,92,"Inhalt","G12"]
[12,"AF09_VERBUCHUNG",1,"Art der Verbuchung",null,null,93,"Inhalt","G13"]
[13,"AF09_AUSSIEDLUNG",1,"KZ Aussiedlung: 0 = Nein, 1 = Vollaussiedlung, 2 = Teilaussiedlung, 3 = Betriebszweigaussiedlung (M)",null,null,94,"Inhalt","G17"]
[14,"AF09_BERATUNGSSTELLE",22,"Beratungsstelle",null,null,95,"Inhalt","E24"]
[15,"AF09_BERATER",22,"Nummer des Beraters: LK11-Schlüsselart = 38 (M)",null,null,96,"Inhalt","C24"]
[16,"AF09_BETRIEBSZWEIG",22,"Nummer des Betriebszweiges: LK11-Schlüsselart = 36 (M)",null,null,97,"1 KaP","B12"]
[17,"AF09_LANDSCHAFTSSCHUTZGEB",1,"KZ Landschaftsschutzgebiet: N = nein, J = ja (M)",null,null,98,"Inhalt","C21"]
[18,"AF09_NATURA2000",1,"KZ Natura 2000: N = nein, J = ja (M)",null,null,99,"Inhalt","F21"]
[19,"AF09_NATURSCHUTZGEB",1,"KZ Naturschutzgebiet: N = nein, J = ja (M)",null,null,100,"Inhalt","C22"]
[20,"AF09_WASSERSCHUTZGEB",1,"KZ Wasserschutzgebiet: N = nein, J = ja (M)",null,null,101,"Inhalt","F22"]
[21,"AF09_LF_BENACH_GEBIET",1,"KZ LF in benachteiligtem Gebiet; N = nein, J = ja (M)",null,null,102,"1 KaP","F43"]
[22,"AF09_REGIERUNGSBEZIRK",22,"Nr. des Regierungsbezirkes: LK11-Schlüsselart = 43 (M)",null,null,103,"??","leer",0]
[23,"AF09_KREIS_NR",3,"Nummer des Kreises aus der Tabelle KREIS (M)",null,null,104,"??","leer",0]
[24,"AF09_GEMEINDE_NR",3,"Gemeinde-Nummer (M)",null,null,105,"??","leer",0]
[25,"AF09_PRODUKTIONSRICHTUNG",22,"Nr. der Produktionsrichtung: LK11-Schlüsselart = 31 (M)",null,null,106,"1 KaP","B12"]
[26,"AF09_BEWIRTSCHAFTUNGSFORM",1,"KZ Bewirtschaftungsform: K = Konventionell, Ö = Ökologisch, U = Ökologisch in Umstellung (M)",null,null,107,"Aus Antrag 'Seite 1'!I30"]
[27,"AF09_UMST_OEK_JAHR",22,"Umstellungsjahr auf ökologischen Anbau (M, wenn KZ Bewirtschaftungsform = U)",null,null,108,"1 KaP","D18"]
[28,"AF09_INV_MASSNAHME",22,"Nr. der Investitionsmaßnahme: LK11-Schlüsselart = 37 (M)",null,null,109,"1 KaP","????",0]
[29,"AF09_INV_VORHABEN",255,"Beschreibung des Investitionsvorhabens (M)",null,null,110,"1 KaP","B20"]
[30,"AF09_RECHTSFORM",22,"Nr. der Rechtsform: LK11-Schlüsselart = 34 (M)",null,null,111,"1 KaP","B25"]
[31,"AF09_GEBIETSART",22,"Nr. der Gebietsart: LK11-Schlüsselart = 32 (M)",null,null,112,"1 KaP","F43"]
[32,"AF09_IST_JAHR",22,"Ist - Jahr des Investitionskonzeptes (M)",null,null,113,"Inhalt","I5"]
[33,"AF09_IST_UMSATZST_SYS",1,"Umsatzsteuersystem im Ist - Jahr (M)",null,null,114,"1 KaP","F9"]
[34,"AF09_IST_AK_TAETIG",22,"Im Ist - Jahr tätige Arbeitskräfte (M)",null,null,115,"1 KaP","L24"]
[35,"AF09_IST_MILCH_REF",22,"Im Ist-Jahr lieferbare Milch-Referenzmenge (K)",null,null,116,"1 KaP","F49"]
[36,"AF09_IST_MILCH_REF_PACHT",22,"Im Ist-Jahr gepachtete Milch-Referenzmenge (K)",null,null,117,"1 KaP","F50"]
[37,"AF09_IST_VIEHBESATZ_GVE",22,"Viehbesatz im Ist - Jahr (GVE / ha LF) (K)",null,null,118,"1 KaP","H100"]
[38,"AF09_IST_KREDIT_ALT",22,"Valuta der Alt-Kredite im Ist - Jahr (K)",null,null,119,"4 Kredite","K64"]
[39,"AF09_IST_KREDIT_PRIV",22,"Private und sonst. Kredite im Ist - Jahr (K)",null,null,120,"4 Kredite","K61+K62"]
[40,"AF09_IST_KREDIT_INSGESAMT",22,"Kapitaldienst insgesamt im Ist - Jahr (K)",null,null,121,"4 Kredite","M64"]
[41,"AF09_IST_AUSGLEICHSLEISTUNG",22,"Prämien und Ausgleichszahlung im Ist - Jahr (K)",null,null,122,"5 Präm","F67"]
[42,"AF09_IST_AK_BEDARF",22,"Arbeitskräftebedarf lt. Produktionsprogramm im Ziel - Jahr (M)",null,null,123,"1 KaP","M24"]
[43,"AF09_IST_GEWINN",22,"Gewinn im Ist - Jahr (M)",null,null,124,"8 GeKDGr","H47"]
[44,"AF09_IST_EIGENKAP_VERAEND",22,"bereinigte Eigenkapitalveränderung im Ist - Jahr (M)",null,null,125,"8 GeKDGr","H63"]
[45,"AF09_IST_KAP_DIENST_GRENZE",22,"langfristige Kapitaldienstgrenze im Ist - Jahr (M)",null,null,126,"8 GeKDGr","H65"]
[46,"AF09_ZIEL_JAHR",22,"Ziel - Jahr des Investitionskonzeptes (M)",null,null,127,"1 KaP","K5"]
[47,"AF09_ZIEL_UMSATZST_SYS",1,"Umsatzsteuersystem im Ziel - Jahr (M)",null,null,128,"1 KaP","J9"]
[48,"AF09_ZIEL_AK_TAETIG",22,"Im Ziel - Jahr tätige Arbeitskräfte (M)",null,null,129,"1 KaP","M24"]
[49,"AF09_ZIEL_MILCH_REF",22,"Im Ziel-Jahr lieferbare Milch-Referenzmenge  (K)",null,null,130,"1 KaP","J49"]
[50,"AF09_ZIEL_MILCH_REF_PACHT",22,"Im Ziel-Jahr gepachtete Milch-Referenzmenge (K)",null,null,131,"1 KaP","J50"]
[51,"AF09_ZIEL_VIEHBESATZ_GVE",22,"Viehbesatz im Ziel - Jahr (GVE / ha LF) (K)",null,null,132,"1 KaP","L100"]
[52,"AF09_ZIEL_KREDIT_ALT",22,"Valuta der Alt-Kredite im Ziel - Jahr (K)",null,null,133,"4 Kredite","L58"]
[53,"AF09_ZIEL_KREDIT_NEU",22,"Valuta der Neu-Kredite im Ziel - Jahr (K)",null,null,134,"4 Kredite","L59"]
[54,"AF09_ZIEL_KREDIT_PRIV",22,"Private und sonst. Kredite im Ziel - Jahr (K)",null,null,135,"4 Kredite","L61+L62"]
[55,"AF09_ZIEL_KREDIT_INSGESAMT",22,"Kapitaldienst insgesamt im Ziel - Jahr (K)",null,null,136,"4 Kredite","O64"]
[56,"AF09_ZIEL_AUSGLEICHSLEISTUNG",22,"Prämien und Ausgleichszahlung im Ziel - Jahr (K)",null,null,137,"5 Präm","J67"]
[57,"AF09_ZIEL_AK_BEDARF",22,"Ziel-AK (wie oben)",null,null,138,"1 KaP","M24"]
[58,"AF09_ZIEL_GEWINN",22,"Gewinn im Ziel - Jahr (M)",null,null,139,"8 GeKDGr","M47"]
[59,"AF09_ZIEL_EIGENKAP_VERAEND",22,"Eigenkapitalveränderung im Ziel",null,null,140,"8 GeKDGr","M63"]
[60,"AF09_ZIEL_KAP_DIENST_GRENZE",22,"langfristige Kapitaldienstgrenze im Ziel - Jahr (M)",null,null,141,"8 GeKDGr","M65"]
[61,"AF09_AUSG_OHNE_BES_ANF_NETTO",22,"Ausgaben ohne besondere Anforderungen an die Landwirtschaft Netto (K)",null,null,142,"2 InvBed","I69"]
[62,"AF09_AUSG_MIT_BES_ANF_NETTO",22,"Ausgaben mit besonderen Anforderungen an die Landwirtschaft Netto (K)",null,null,143,"2 InvBed","I70"]
[63,"AF09_UNBARE_EIGENLEISTUNG",22,"Betrag für unbare Eigenleistungen (K)",null,null,144,0]
[64,"AF09_SUBVENTIONSWERT_PROZ",22,"Subventionswert der Förderung in Prozent (M)",null,null,145,"3 FinPlan","L47"]
[65,"AF09_ZUSCHUSS_BES_ANF_PROZ",22,"Prozentsatz für den Zuschuss für die Erfüllung besonderer Anforderungen (K)",null,null,146,"3 FinPlan","I30"]
[66,"AF09_BEM_GRUNDLAGE",22,"Bemessungsgrundlage für Zuschussberechnung (K)",null,null,147,"3 FinPlan","H29"]
[67,"AF09_ZINSZUSCHUSS_PROZ",22,"Prozentsatz Zinszuschuss (K)",null,null,148,"3 FinPlan","I29"]
[68,"AF09_NAME_BEARB",20,"Name des Bearbeiters der letzten Bearbeitung (M)",null,null,150,"CSV_Transfer"]
[69,"AF09_DAT_BEARB",7,"Datum der letzten Bearbeitung (M)",null,null,149,"Now"]
[70,"AF09_berEKBildung t-2",22,"Bereinigte EK-Bildung lt Buchf. Im Jahr -2",null,null,151,"9 G-N-P","K130",58157]
[]
["AF23 Investitionsbedarf"]
["Feld-ID","Feldname","Feldtyp","Beschreibung/Label","K-Typ","Länge","Zeile XLS"]
["A3","AF23_ADRESSNR","Text","Adressnummer","ac",9,155,"Inhalt","G5",{"$f":"J3","v":0},null,null,null,null,null,null,null,null,null,null,null,null,null,null,null,null,null,null,null,null,null,null,null,null,null,null,null,null,null,null,null,null,null,null,null,null,null,null,null,null,null,null,null,null,null,null,null,null,null,null,null,null,null,null,170244225]
["H3","AF23_WJ","Zahl","Wirtschaftsjahr","ac",4,156,"Inhalt","I5",{"$f":"J4","v":2024},null,null,null,null,null,null,null,null,null,null,null,null,null,null,null,null,null,null,null,null,null,null,null,null,null,null,null,null,null,null,null,null,null,null,null,null,null,null,null,null,null,null,null,null,null,null,null,null,null,null,null,2013,2013,2013,2008]
["F5","AF23_ANTRAGNR","Zahl","laufende Antragsnummer im WJ","tf",3,157,1,null,{"$f":"J5","v":1},null,null,null,null,null,null,null,null,null,null,null,null,null,null,null,null,null,null,null,null,null,null,null,null,null,null,null,null,null,null,null,null,null,null,null,null,null,null,null,null,null,null,null,null,null,null,null,null,null,null,null,1,1,1,1]
["F8","AF23_NR_FORMULARZ","Zahl","Nummer der Formularzeile im Investitionskonzept","tf",2,158,"2 InvBed","Spalte A","von Zeile bis Zeile",null,null,null,null,null,null,null,null,null,null,null,null,null,null,null,null,null,null,null,null,null,null,null,null,null,null,null,null,null,null,null,null,null,null,null,null,null,null,null,null,null,null,null,null,null,null,null,null,null,null,null,51,52,53,53]
["F10","AF23_MASSNAHME_BEZEICHNUNG","Text","Name der Maßnahme","tf",50,159,"2 InvBed","Spalte B","13 - 43",null,null,null,null,null,null,null,null,null,null,null,null,null,null,null,null,null,null,null,null,null,null,null,null,null,null,null,null,null,null,null,null,null,null,null,null,null,null,null,null,null,null,null,null,null,null,null,null,null,null,null,"Ablösung von Verbindlichkeiten","Finanzierungskosten","Sonstiges","Sonstiges"]
["F12","AF23_MASSNAHME_KAPAZITÄT","Zahl","Umfang / Kapazität der Investition (bei Neubauten):","mtf",11,160,"2 InvBed","Spalte F","45-48",null,null,null,null,null,null,null,null,null,null,null,null,null,null,null,null,null,null,null,null,null,null,null,null,null,null,null,null,null,null,null,null,null,null,null,null,null,null,null,null,null,null,null,null,null,null,null,null,null,null,null,"01.01.1900","01.01.1900","01.01.1900",0]
["F14","AF23_AUSGABEN_BRUTTO","Zahl","Höhe Ausgaben brutto:","mtf",11,161,"2 InvBed","Spalte I","54-56",null,null,null,null,null,null,null,null,null,null,null,null,null,null,null,null,null,null,null,null,null,null,null,null,null,null,null,null,null,null,null,null,null,null,null,null,null,null,null,null,null,null,null,null,null,null,null,null,null,null,null,12556,2330,1256,1256]
["F16","AF23_AUSGABEN_ZUW_FAEH","Zahl","Höhe der zuwendungsfähigen Ausgaben ","mtf",11,162,"2 InvBed","Spalte L","58-68",null,null,null,null,null,null,null,null,null,null,null,null,null,null,null,null,null,null,null,null,null,null,null,null,null,null,null,null,null,null,null,null,null,null,null,null,null,null,null,null,null,null,null,null,null,null,null,null,null,null,null,0,0,0,0]
["F18","AF23_KZ_ARTGER_TIERH","Text","Kennzeichen für Maßnahme für die besonders artgerechten Tierhaltung; j=ja, n=nein","chb",1,163,"2 InvBed","Spalte M",null,null,null,null,null,null,null,null,null,null,null,null,null,null,null,null,null,null,null,null,null,null,null,null,null,null,null,null,null,null,null,null,null,null,null,null,null,null,null,null,null,null,null,null,null,null,null,null,null,null,null,null,"N","N","N","N"]
[null,"AF23_NAME_BEARB","Text","Name des letzten Bearbeiters","le",30,164,"CSV_Transfer",null,null,null,null,null,null,null,null,null,null,null,null,null,null,null,null,null,null,null,null,null,null,null,null,null,null,null,null,null,null,null,null,null,null,null,null,null,null,null,null,null,null,null,null,null,null,null,null,null,null,null,null,null,"Müller-List, Robert","Müller-List, Robert","Müller-List, Robert","Robert Müller-List"]
[null,"AF23_DAT_BEARB","Datum","Datum der letzten Bearbeitung","le","A",165,"Now",null,null,null,null,null,null,null,null,null,null,null,null,null,null,null,null,null,null,null,null,null,null,null,null,null,null,null,null,null,null,null,null,null,null,null,null,null,null,null,null,null,null,null,null,null,null,null,null,null,null,null,null,null,"2013-02-06T13:46:09","2013-02-06T13:46:09","2013-02-06T13:46:09","2008-02-27T10:38:06"]
[]
[]
[]
["AF24 Finanzierungsplan"]
["Feld-ID","Feldname","Feldtyp","Beschreibung/Label","K-Typ","Länge",null,"Quelle","Position"]
["A3","AF24_ADRESSNR","Text","Adressnummer","ac",9,171,"Inhalt","G5"]
["H3","AF24_WJ","Zahl","Wirtschaftsjahr","ac",4,172,"Inhalt","I5"]
["F5","AF24_ANTRAGNR","Zahl","laufende Antragsnummer im WJ","tf",3,173,1]
["F8","AF24_EUR_EIGENMITTEL","Zahl","Summe Eigenmittel","mtf",2,174,"3 FinPlan","J27"]
["F10","AF24_EUR_ZUSCHUSS_SONST_ZUW_FAEH","Text","Investitionssumme Sonstige Investition","mtf",50,175,"3 FinPlan","H29"]
["F12","AF24_ZUSCHUSS_SONST_PROZENTSATZ","Zahl","Fördersatz Sonstige Investition","mtf",11,176,"3 FinPlan","I29"]
["J12","AF24_EUR_ZUSCHUSS_SONST_INV","Zahl","Betrag Sonstige Investition","mtf",11,177,"3 FinPlan","J29"]
["F14","AF24_EUR_ZUSCHUSS_KUEHE_ZUW_FAEH","Zahl","Investitionssumme Milchkühe","mtf",11,178,"3 FinPlan","H30"]
["H14","AF24_ZUSCHUSS_KUEHE_PROZENT","Zahl","Fördersatz Milchkuehe","mtf",11,179,"3 FinPlan","I30"]
["J14","AF24_EUR_ZUSCHUSS_KUEHE_BETRAG","Zahl","Betrag Milchkühe","mtf",11,180,"3 FinPlan","J30"]
["F16","AF24_EUR_ZUSCHUSS_ERSCHL_ZUW_FAEH","Zahl","Erschließung Zusch.Invest.","mtf",11,181,"3 FinPlan","H31"]
["H16","AF24_ZUSCHUSS_ERSCHL_PROZENTSATZ","Zahl","Fördersatz Erschließ.-Zusch. ","mtf",11,182,"3 FinPlan","I31"]
["J16","AF24_EUR_ZUSCHUSS_ERSCHL_BETRAG","Zahl","Betrag Erschließungszusch.","mtf",11,183,"3 FinPlan","J31"]
["F18","AF24_ZUSCHUSS_JUNGLANDW_ZUW_FAEH","Zahl","Junglandirte Zusch.Invest.","mtf",11,184,"3 FinPlan","H32"]
["H18","AF24_ZUSCHUSS_JUNGLANDW_PROZENTSATZ","Zahl","Fördersatz Junglandwirte.-Zusch. ","mtf",11,185,"3 FinPlan","I32"]
["J18","AF24_EUR_ZUSCHUSS_JUNGLANDW_BETRAG","Zahl","Betrag Junglandw-zusch.","mtf",11,186,"3 FinPlan","J32"]
["F20","AF24_EUR_ZUSCHUSS_SUMME","Zahl","Summe Zuschüsse","mtf",11,187,"3 FinPlan","J36"]
["F31","AF24_EUR_DARLEHEN_SUMME","Zahl","Summe Darlehen","mtf",11,188,"3 FinPlan","J45"]
["F33","AF24_EUR_SUMME_FIN_MITTEL","Zahl","Finanzierungsmittel","mtf",11,189,"3 FinPlan","J46"]
["F35","AF24_PROZ_SUB_WERT","Zahl","Finanzierungsmittel in %","mtf",11,190,"3 FinPlan","L47"]
[null,"AF24_EUR_BAUKOSTEN_SUMME","Zahl","Summe Baukosten Ausgaben","mtf",11,191,"2 InvBed","I44"]
[null,"AF24_EUR_BAUKOSTEN_FOERD","Zahl","Summe Baukosten förderfähig","mtf",11,192,"2 InvBed","L44"]
[null,"AF24_EUR_BEM_GRUNDL_ALLG_AUFW","Zahl","Bemessungsgrundlage allgemein","mtf",11,193,"2 InvBed","I57"]
[null,"AF24_EUR_BEM_GRUNDL_FOERD","Zahl","Bemessung föderfähig","mtf",11,194,"2 InvBed","L57"]
[null,"AF24_EUR_AUSG_SONST","Zahl","Ausgaben Sonstige Investition","mtf",11,195,"2 InvBed","I69"]
[null,"AF24_EUR_AUSG_SONST_FOERD","Zahl","förderfähige Ausg Sonst Inv","mtf",11,196,"2 InvBed","L69"]
[null,"AF24_EUR_AUSG_KUEHE","Zahl","Ausgaben Milchkühe","mtf",11,197,"2 InvBed","I70"]
[null,"AF24_EUR_AUSG_KUEHE_FOERD","Zahl","förderfähiger Milchkühe","mtf",11,198,"2 InvBed","L70"]
[null,"AF24_EUR_AUSG_GES","Zahl","gesamte Ausgaben","mtf",11,199,"2 InvBed","I74"]
[null,"AF24_EUR_AUSG_GES_FOERD","Zahl","förderfähig Ausgaben gesamt ","mtf",11,200,"2 InvBed","L74"]
[null,"AF24_EUR_NOCH_FOEH_FAEH","Zahl","noch ff Höchstbetrag","mtf",11,201,"2 InvBed","L77"]
[null,"AF24_EUR_BEM_GRUNDL_OHNE_ER","Zahl","Bemessung Zuschuss ohne Erschließung","mtf",11,202,"2 InvBed","L78"]
[null,"AF24_EUR_JULA_FOERD_ERH","Zahl","bereits erhalten JULA-Förderung","mtf",11,203,"2 InvBed","L80"]
[null,"AF24_NAME_BEARB","Text","Name des letzten Bearbeiters","le",30,204,"CSV_Transfer"]
[null,"AF24_DAT_BEARB","Datum","Datum der letzten Bearbeitung","le","A",205,"Now"]
[]
["AF21 Tierangaben (alt AF11)"]
["Feld-ID","Feldname","Feldtyp"]
["A3","AF21_ADRESSNR","Text","Adressnummer","ac",9,209,"Inhalt","G5",{"$f":"J3","v":0}]
["H3","AF21_WJ","Zahl","Wirtschaftsjahr","ac",4,210,"Inhalt","I5",{"$f":"J4","v":2024}]
["F5","AF21_ANTRAGNR","Zahl","laufende Antragsnummer im WJ","tf",3,211,1,null,{"$f":"J5","v":1}]
["F8","AF21_NR_PROD_VER","Zahl","Nummer des Produktionsverfahrens","tf",2,212,"1 KaP","Spalte B","von Zeile bis Zeile"]
["F10","F21_TIERART","Text","Produktionsverfahren","tf",50,213,"1 KaP","Spalte C"]
["F12","F21_ANZ_IST","Zahl","Umfang IST","mtf",11,214,"1 KaP","Spalte F","60:98"]
["F14","F21_ANZ_ZIEL","Zahl","Umfang ZIEL","mtf",11,215,"1 KaP","Spalte J"]
[null,"AF21_NAME_BEARB","Text","Name des letzten Bearbeiters","le",30,216,"CSV_Transfer"]
[null,"AF21_NAME_BEARB","Datum","Datum der letzten Bearbeitung","le","A",217,"Now"]
[]
[]
[]
["AF25 Betriebsflächenangaben  (alt AF10)"]
["Feld-ID","Feldname","Feldtyp"]
[null,"AF25_ADRESSNR","Text","Adressnummer","ac",9,223,"Inhalt","G5"]
[null,"AF25_WJ","Zahl","Wirtschaftsjahr","ac",4,224,"Inhalt","I5"]
[null,"AF25_ANTRAGNR","Zahl","laufende Antragsnummer im WJ","tf",3,225,1]
[null,null,"Zahl"," Acker IST","tf",3,226,"1 KaP","I29"]
[null,null,"Zahl"," Acker ZIEL","tf",3,227,"1 KaP","M29"]
[null,null,"Zahl"," Dauergrünland IST","tf",3,228,"1 KaP","I31"]
[null,null,"Text"," Dauergrünland ZIEL","tf",3,229,"1 KaP","M31"]
[null,null,"Zahl"," Obstbau-, Hopfenflächen  IST","tf",3,230,"1 KaP","I32"]
[null,null,"Zahl"," Obstbau-, Hopfenflächen ZIEL","tf",3,231,"1 KaP","M32"]
[null,null,"Zahl"," Gartenbau  IST","tf",3,232,"1 KaP","I33"]
[null,null,"Zahl"," Gartenbau ZIEL","tf",3,233,"1 KaP","M33"]
[null,null,"Zahl"," dav. Gewächshausfläche qm  IST","tf",3,234,"1 KaP","I34"]
[null,null,"Zahl"," dav. Gewächshausfläche qm ZIEL","tf",3,235,"1 KaP","M34"]
[null,null,"Zahl"," Sonstige LF  IST","tf",3,236,"1 KaP","I36"]
[null,null,"Zahl"," Sonstige LF ZIEL","tf",3,237,"1 KaP","M36"]
[null,null,"Zahl"," LF ingesamt  IST","tf",3,238,"1 KaP","I37"]
[null,null,"Zahl"," LF ingesamt ZIEL","tf",3,239,"1 KaP","M37"]
[null,null,"Zahl","LF Eigentum  IST","tf",3,240,"1 KaP","F37"]
[null,null,"Zahl","LF Eigentum ZIEL","tf",3,241,"1 KaP","J37"]
[null,null,"Zahl","LF verpachtet  IST","tf",3,242,"1 KaP","G37"]
[null,null,"Zahl","LF verpachtet ZIEL","tf",3,243,"1 KaP","K37"]
[null,null,"Zahl","LF zugepachtet  IST","tf",3,244,"1 KaP","H37"]
[null,null,"Zahl","LF zugepachtet ZIEL","tf",3,245,"1 KaP","L37"]
[null,null,"Zahl"," Forst IST","tf",3,246,"1 KaP","I39"]
[null,null,"Zahl"," Forst ZIEL","tf",3,247,"1 KaP","M39"]
[null,null,"Zahl"," Sonstige Betriebsflächen  IST","tf",3,248,"1 KaP","I40"]
[null,null,"Zahl"," Sonstige Betriebsflächen ZIEL","tf",3,249,"1 KaP","M40"]
[null,null,"Zahl"," Betriebsfläche  IST","tf",3,250,"1 KaP","I41"]
[null,null,"Zahl"," Betriebsfläche ZIEL","tf",3,251,"1 KaP","M41"]
[null,null,"Text","Name des letzten Bearbeiters","le",30,252,"CSV_Transfer"]
[null,null,"Datum","Datum der letzten Bearbeitung","le","A",253,"Now"]
[]
["AF22 Gesellschafter"]
[1,2,3,4,5,6,7,8,9,10,11,12,13,14,15]
["A3","AF22_ADRESSNR","Text","Adressnummer","ac",9,257,"AdrNum",null,{"$f":"J3","v":0}]
["H3","AF22_WJ","Zahl","Wirtschaftsjahr","ac",4,258,"Jahr",null,{"$f":"J4","v":2024}]
["F5","AF22_ANTRAGNR","Zahl","laufende Antragsnummer im WJ","tf",3,259,"AntrNum",null,{"$f":"J5","v":1}]
["C9","AF22_NACHNAME","Text","Nachname des Gesellschafters","tf",30,260,"Inhalt","C29","29, 35, 41, 47"]
["H9","AF22_VORNAME","Text","Vorname des Gesellschafters","tf",30,261,"Inhalt","F29","29, 35, 41, 47"]
["C10","AF22_ADR_STRASSE","Text","Adressangabe Straße","tf",30,262,"Inhalt","C30","30, 36, 42, 48"]
["C11","AF22_ADR_PLZ","Text","Adressangabe Postleitzahl","tf",30,263,"Inhalt","C31","31, 37, 43, 49"]
["H11","AF22_ADR_ORT","Text","Ort","tf",30,264,"Inhalt","E31","31, 37, 43, 49"]
["C13","AF22_AUSBILDUNG","Text","Ausbildung:","tf",30,265,"Inhalt","H32","32, 38, 44, 50"]
["C14","AF22_FAMILIENSTAND","Text","Familienstand","tf",20,266,"Inhalt","H29","29, 35, 41, 47"]
["C15","AF22_TELEFONNUMMER","Text","Telefonnummer:","tf",15,267,"Inhalt","I31","31, 37, 43, 49"]
["H15","AF22_FAXNUMMER","Text","Faxnummer:","tf",15,268,"Inhalt","C32","32, 38, 44, 50"]
["C17","AF22_EUR_EINKÜNFTE","Zahl","Höhe der positiven Einkünfte","mtf",11,269,"Inhalt","C33","33, 39, 45, 51"]
["C18","AF22_KZ_HAUPTBERUFLICH","Text","Kennzeichen für hauptberuflich in der Gesellschaft tätig, j=ja, n=nein","chb",1,270,"Inhalt","F33","33, 39, 45, 51"]
["H18","AF22_PROZ_KAPITALANTEIL","Zahl","Kapitalanteil des Gesellschafters","mtf",4,271,"Inhalt","H33","33, 39, 45, 51"]
[null,null,null,"Letzter Bearbeiter",null,null,272,"CSV_Transfer"]
[null,null,null,"Datum der Bearbeitung",null,null,273,"Now"]
[null,"AF22_GEB_DAT","Datum","Gesellschafter-Geburtstag","mtf",null,274,"Inhalt","I30","30, 36, 42, 48"]
[null,"AF22_KZ_INVESTOR","Text","Investorförderung (J/N)","chb",null,275,"KZ","B29","29, 35, 41, 47",null,"J","N","N","N"]

{"sheet":"DInfo","index":18,"n_rows":10,"n_cols":10,"rows_kept":10,"cut":false,"hidden":true,"merged":[]}
[1,2,3,4,5,6,7,8,9,"10"]
["Feld-ID",null,null,null,null,null,null,null,null,"Inhalt"]
["AF29_ADRESSNR",null,null,null,null,null,null,null,null,{"$f":"'Seite 1'!C18","v":0}]
["AF29_WJ",null,null,null,null,null,null,null,null,{"$f":"'Seite 1'!G18","v":2024}]
["AF29_ANTRAGNR",null,null,null,null,null,null,null,null,{"$f":"'Seite 1'!E18","v":1}]
["AF29Version_Antrag",null,null,null,null,null,null,null,null,3]
["AF29_Letzt_Druck_Ant",null,null,null,null,null,null,null,null,"2015-09-26T21:48:35"]
["AF29_CSV_Dat",null,null,null,null,null,null,null,null,"2015-09-26T22:17:32"]
["AF29_Stand_IK",null,null,null,null,null,null,null,null,"2013-10-07T15:59:02"]
["AF29_Letzt_NameAntrag",null,null,null,null,null,null,null,null,"Willebrand, Christiane"]

{"sheet":"Liste1","index":19,"n_rows":328,"n_cols":8,"rows_kept":328,"cut":false,"hidden":true,"merged":[]}
["Aachen","VE Düren",{"$f":"IF(RIGHT(A1)=\" \",\"Fehler\",\"o.k.\")","v":"o.k."},{"$f":"IF(RIGHT(B1)=\" \",\"Fehler\",\"o.k.\")","v":"o.k."},"Brakel"]
["Borken","VE Borken",{"$f":"IF(RIGHT(A2)=\" \",\"Fehler\",\"o.k.\")","v":"o.k."},{"$f":"IF(RIGHT(B2)=\" \",\"Fehler\",\"o.k.\")","v":"o.k."},"Coesfeld"]
["Coesfeld","VE Coesfeld","o.k.","o.k.","Kleve"]
["Düren","VE Düren","o.k.","o.k.","Köln"]
["Euskirchen","VE Düren","o.k.","o.k.","Meschede"]
["Gütersloh","VE Warendorf","o.k.","o.k.","Saerbeck"]
["Heinsberg","VE Viersen","o.k.","o.k."]
["Herford-Bielefeld","Köln","o.k.","o.k."]
["Hochsauerland","VE Meschede","o.k.","o.k."]
["Höxter","VE Brakel","o.k.","o.k."]
["Kleve","VE Kleve","o.k.","o.k."]
["Lippe","VE Brakel","o.k.","o.k."]
["Märkischer Kreis/Ennepe-Ruhr","VE Unna","o.k.","o.k."]
["Mettmann","VE Lindlar","o.k.","o.k."]
["Minden-Lübbecke","VE Lübbecke","o.k.","o.k."]
["Münster","VE Warendorf","o.k.","o.k."]
["Oberbergischer Kreis","VE Lindlar","o.k.","o.k."]
["Olpe","VE Meschede","o.k.","o.k."]
["Paderborn","VE Brakel","o.k.","o.k."]
["Recklinghausen","VE Coesfeld","o.k.","o.k."]
["Rhein-Erft-Kreis","VE Köln-Auweiler","o.k.","o.k."]
["Rheinisch-Bergischer-Kreis","VE Lindlar","o.k.","o.k."]
["Rhein-Kreis Neuss","VE Köln-Auweiler","o.k.","o.k."]
["Rhein-Sieg-Kreis","VE Köln-Auweiler","o.k.","o.k."]
["Ruhr-Lippe","VE Unna","o.k.","o.k."]
["Siegen-Wittgenstein","VE Meschede","o.k.","o.k."]
["Soest","VE Soest","o.k.","o.k."]
["Steinfurt","VE Steinfurt","o.k.","o.k."]
["Viersen","VE Viersen","o.k.","o.k."]
["Warendorf","VE Warendorf","o.k.","o.k."]
["Wesel","VE Kleve","o.k.","o.k."]
[]
[]
["Landwirt/-in",1,{"$f":"IF(RIGHT(A34)=\" \",\"Fehler\",\"o.k.\")","v":"o.k."}]
["Gärtner/-in",2,{"$f":"IF(RIGHT(A35)=\" \",\"Fehler\",\"o.k.\")","v":"o.k."}]
["anderer Beruf",3,"LUM - Herr Erkelenz"]
[]
[]
["ohne",1,{"$f":"IF(RIGHT(A39)=\" \",\"Fehler\",\"o.k.\")","v":"o.k."}]
["Landwirt/-in",{"$f":"B39+1","v":2},"o.k."]
["Landwirt mit Fachschulabschluss",{"$f":"B40+1","v":3},"o.k."]
["Gärtner/-in",4,"o.k."]
["staatl. gepr. Wirtschafter/-in",5,"o.k."]
["staatl. gepr. Landwirt/-in",6,"o.k."]
["Landwirtschaftsmeister/-in",7,"o.k."]
["Gärtnermeister/-in",8,"o.k."]
["Agraringenieur/-in (FH)",9,"o.k."]
["Gartenbauingenieur/-in (FH)",10,"o.k."]
["Agraringenieur-in (UNI)",11,"o.k."]
["Gartenbauingenieur/-in (UNI)",12,"o.k."]
["Landbautechniker/-in",13,"o.k."]
["Gartenbautechniker/-in",14,"o.k."]
["außerlandwirtschaftlich",15,"o.k."]
["Sonstige",16,"o.k."]
["ohne Betreuer",0,"o.k."]
["GVAgrar West - Herr Kemmerling",1,"Bergmann, LWK",50]
["LBB - Herr Dreimann",2,"Brunsiek, LUB",15]
["LUB NRW GmbH  - Herr Fry",5,"Beaupoil, LUB",26]
["LUB NRW GmbH  - Frau Beaupoil",26,"Chudalla, LUB",21]
["Herr Weifels",8,"Nagelschmitz, LUB",24]
["LUB NRW GmbH  - Frau Biermann",37,"Dreimann, LBB",2]
["LUB NRW GmbH - Herr Kersting",9,"Erkelenz, LUM",31]
["Karbstein, ThüBeLa mbH",68,"Fry, LUB",5]
["LUB NRW GmbH - Herr Bernsmann",69,"Hoffmann, B., LUB",7]
["LUB NRW GmbH - Herr Mester",67,"Herr Weifels",8]
["LUB NRW GmbH - Herr Krane",66,"Kemmerling, GVAgrar West ",1]
["MNVV GmbH",65,"Kersting, LUB",9]
["LUB NRW GmbH - Herr Uhlenbrock",51,"Lauschner, LUB",22]
["LUB NRW GmbH  - Herr Nagelschmitz",24,"LBB Brandenburg",30]
["Sonstige",99,"LUB",36]
[null,null,"LUB - Herr Ostermann",28]
[null,null,"LUB - Herr Schütte",29]
[null,null,"LUB - Herr Siegenbrink",27]
[null,null,"Sonstige",37]
[null,null,"Stelten, LUB",13]
[null,null,"Weifels",34]
[null,null,"Willebrand, LUB",17]
[]
[]
[null,null,"Investitionsmaßnahme"]
[null,null,"Stallgebäude / Anlage für sonstige Rinderhaltung",1]
[null,null,"Stallgebäude / Anlage für Milchkühe",14]
[null,null,"Stallumbau Jung- oder Zuchtsauen (Deckzentrum o. Abferkelbereich) lt. 9.4.1h",31]
[null,null,"spez. Inv. Umwelt- und Klimaschutz nach Anlage 3 Teil B Nr .1.2 bis 1.6 lt. 9.4.1i",32]
[null,null,"sonstige Investition/en lt. 9.4.1e mit Aufschlag (Kälbermatten)",33]
[null,null,"ausschl. Emissionsminderung lt. Anlage 3 Teil B 1.",13]
[null,null,"Anlage z. Naturkatastrophenvorbeugung lt. 9.4.1b",11]
[null,null,"Direktvermarktung(seinrichtung)",10]
[null,null,"Nachrüstung Güllelagerabdeckung",7]
[null,{"$f":"VLOOKUP('Seite 2'!$C$32,C81:D110,2,1)","v":{"$error":"#N/A"}},"Gerät zur mechanischen Unkrautbekämpfung",8]
[null,null,"Gewächshaus",4]
[null,null,"Bewässerungsanlage lt. 9.4.1d",17]
[null,null,"Pflanzenschutztechnik",6]
[null,null,"ausschließlich Bau Festmistlagerstätte",34]
[null,null,"AMS / Melktechnik",9]
[null,null,"sonstige Investition/en lt. 9.4.1e (ohne Aufschlag)",18]
[null,null,"Sonstiger Stallbau",3]
[null,null,"Sonstiges landw. Gebäude",5]
[null,null,"Stallgebäude / Anlage für Legehennen Bodenhaltung",20]
[null,null,"Stallgebäude / Anlage für Mastgeflügel",21]
[null,null,"Stallgebäude / Anlage für Legehennen Freilandhaltung",22]
[null,null,"Hühnermobil(e)",23]
[null,null,"Stallgebäude / Anlage für Schafhaltung",24]
[null,null,"Stallgebäude / Anlage für Ziegenhaltung",25]
[null,null,"Stallgebäude / Anlage für Pferdehaltung",26]
[null,null,"spezialisierte Lagerhalle für Obst, Gemüse, Sonst. Sonderkulturen",27]
[null,null,"ausschließlich Güllelager mit fester Abdeckung",28]
["Konventionell",1,"Ressourcenschonende Einrichtung zum Umweltschutz lt. Anlage 3 B 4.",29]
["In Umstellung",2,"ausschließlich Bau Fahrsiloanlage",30]
["Ökologisch",3,"ausschließlich Abluftreinigungsanlage/n",16]
[null,"Schlüssel 31 Produktionsrichtung"]
["Milchviehhaltung",{"$f":"VLOOKUP(A112,C112:D122,2,1)","v":2},"Ackerbau",1,{"$f":"IF(RIGHT(C112)=\" \",\"Fehler\",\"o.k.\")","v":"o.k."}]
[null,null,"Fleischrinderhaltung",3,{"$f":"IF(RIGHT(C113)=\" \",\"Fehler\",\"o.k.\")","v":"o.k."}]
[null,null,"Forstwirtschaft",10,"o.k."]
[null,null,"Gartenbau",7,"o.k."]
[null,null,"Geflügelhaltung",5,"o.k."]
[null,null,"Milchviehhaltung",2,"o.k."]
[null,null,"Obstbau",9,"o.k."]
[null,null,"Schweinehaltung",4,"o.k."]
[null,null,"Sonst. Tierhaltung",6,"o.k."]
[null,null,"Sonstiges",11,"o.k."]
[null,null,"Weinbau",8,"o.k."]
[null,"Schlüssel 37 Investitionsmaßnahme"]
["Sonstiges landw. Gebäude",{"$f":"VLOOKUP(A124,C124:D144,2,1)","v":8},"Anlage zur Emissionsminderung",20,{"$f":"IF(RIGHT(C124)=\" \",\"Fehler\",\"o.k.\")","v":"o.k."}]
[null,null,"Anlage zur Energieeinsparung",16,{"$f":"IF(RIGHT(C125)=\" \",\"Fehler\",\"o.k.\")","v":"o.k."}]
[null,null,"Berherbergungsbereich",14,"o.k."]
[null,null,"Bewegungshalle für Pferde",4,"o.k."]
[null,null,"Biomasseanlage",17,"o.k."]
[null,null,"Direktvermarktungseinrichtung",13,"o.k."]
[null,null,"Düngegerät",10,"o.k."]
[null,null,"Gewächshaus / - anlage",7,"o.k."]
[null,null,"Pferdestall",3,"o.k."]
[null,null,"Pferdestall und Bewegungshalle",5,"o.k."]
[null,null,"Pflanzenschutztechnik",9,"o.k."]
[null,null,"Rinderstall",1,"o.k."]
[null,null,"Schweinestall",2,"o.k."]
[null,null,"Solaranlage",18,"o.k."]
[null,null,"sonst. Anlage zur Energieumstellung",19,"o.k."]
[null,null,"sonst. Gerät / Maschine",12,"o.k."]
[null,null,"sonst. Gerät / Maschine zur umweltgerechten Ausric",11,"o.k."]
[null,null,"sonstige Einrichtung zur Diversifizierung",15,"o.k."]
[null,null,"sonstige Investition",50,"o.k."]
[null,null,"Sonstiger Stallbau",6,"o.k."]
[null,null,"Sonstiges landw. Gebäude",8,"o.k."]
[]
[null,"Schlüssel 34: Rechtsform"]
["Familien-GbR",{"$f":"VLOOKUP(A147,C147:D156,2,1)","v":2},"Aktiengesellschaft",7,"o.k."]
[null,null,"Einzelunternehmen",1,"o.k."]
[null,null,"Familien-GbR",2,"o.k."]
[null,null,"Fremd-GbR",3,"o.k."]
[null,null,"Genossenschaft",6,"o.k."]
[null,null,"GmbH",5,"o.k."]
[null,null,"GmbH & Co",4,"o.k."]
[null,null,"juristische Person (aus BVPlan)",22,"o.k."]
[null,null,"sonstige Personengesellschaft (aus BVPlan)",21,"o.k."]
[null,null,"Sonstiges",8,"o.k."]
[null,null,null,null,"o.k."]
[null,"Schlüssel 32: Gebietsart",null,null,"o.k."]
["Normalgebiet",{"$f":"VLOOKUP(A159,C159:D162,2,1)","v":1},"Bergebiet",2,"o.k."]
[null,null,"Gebiet mit spezifischen Nachteilen",4,"o.k."]
[null,null,"Normalgebiet",1,"o.k."]
[null,null,"Sonst. benachteiligtes Gebiet",3,"o.k."]
[null,null,null,null,"o.k."]
[null,null,null,null,"o.k."]
[null,"Schlüsselart 39 Beratungsstellen",null,null,"o.k."]
[null,{"$f":"VLOOKUP(A166,C166:D201,2,1)","v":{"$error":"#N/A"}},"Bonn-Roleber",1,"o.k."]
[null,null,"Borken",13,"o.k."]
[null,null,"Brakel",19,"o.k."]
[null,null,"Coesfeld",14,"o.k."]
[null,null,"Düren",2,"o.k."]
[null,null,"Erndtebrück",28,"o.k."]
[null,null,"GBZ Essen",3,"o.k."]
[null,null,"GBZ Köln-Auweiler",4,"o.k."]
[null,null,"GBZ Münster-Wolbeck",36,"o.k."]
[null,null,"GBZ Straelen",5,"o.k."]
[null,null,"Haus Düsse",35,"o.k."]
[null,null,"Herford",17,"o.k."]
[null,null,"Herford (BfG)",34,"o.k."]
[null,null,"Kleve, Haus Riswick",6,"o.k."]
[null,null,"Köln-Auweiler",7,"o.k."]
[null,null,"Lage",20,"o.k."]
[null,null,"Lindlar",8,"o.k."]
[null,null,"Lübbecke",22,"o.k."]
[null,null,"Lüdenscheid",21,"o.k."]
[null,null,"Meschede",18,"o.k."]
[null,null,"Mettmann",9,"o.k."]
[null,null,"Münster (Nevinghoff)",23,"o.k."]
[null,null,"Olpe",24,"o.k."]
[null,null,"Paderborn",25,{"$f":"IF(RIGHT(C189)=\" \",\"Fehler\",\"o.k.\")","v":"o.k."}]
[null,null,"Recklinghausen",26,"o.k."]
[null,null,"Rheda-Wiedenbrück",16,"o.k."]
[null,null,"Saerbeck",30,"o.k."]
[null,null,"Soest",29,"o.k."]
[null,null,"Steinfurt",32,"o.k."]
[null,null,"Straelen",10,"o.k."]
[null,null,"Unna (BfA)",27,"o.k."]
[null,null,"Unna (BfG)",33,"o.k."]
[null,null,"Viersen",11,"o.k."]
[null,null,"Warendorf",31,"o.k."]
[null,null,"Warendorf",15,"o.k."]
[null,null,"Wesel",12,"o.k."]
[]
["Betriebszweig","Schlüsselart 36"]
["Schweinehaltung",{"$f":"VLOOKUP(A204,C204:D216,2,1)","v":8},"Ackerbau",1,"o.k."]
[null,null,"Fleischrinderhaltung",7,"o.k."]
[null,null,"Forstbetrieb bzw. gemischter Land- und Forstbetr.",12,"o.k."]
[null,null,"Gartenbau",2,"o.k."]
[null,null,"Geflügelhaltung",9,"o.k."]
[null,null,"Milchviehhaltung",6,"o.k."]
[null,null,"Obstbau",4,"o.k."]
[null,null,"Pferdehaltung",10,"o.k."]
[null,null,"Schweinehaltung",8,"o.k."]
[null,null,"Sonstige Betriebe (einschl. Mischbetriebe)",5,"o.k."]
[null,null,"sonstige Tierhaltungsarten",11,"o.k."]
[null,null,"Stromerzeugung",13,"o.k."]
[null,null,"Weinbau",3,"o.k."]
["Hauptproduktionsrichtung","Schlüsselart 31"]
["Milchviehhaltung",{"$f":"VLOOKUP(A218,C218:D228,2,1)","v":2},"Ackerbau",1,"o.k."]
[null,null,"Fleischrinderhaltung",3,"o.k."]
[null,null,"Forstwirtschaft",10,"o.k."]
[null,null,"Gartenbau",7,"o.k."]
[null,null,"Geflügelhaltung",5,"o.k."]
[null,null,"Milchviehhaltung",2,"o.k."]
[null,null,"Obstbau",9,"o.k."]
[null,null,"Schweinehaltung",4,"o.k."]
[null,null,"Sonst. Tierhaltung",6,"o.k."]
[null,null,"Sonstiges",11,"o.k."]
[null,null,"Weinbau",8,"o.k."]
[]
["Investsitionsmaßnahme","Schlüsselart 37"]
["Düngegerät",{"$f":"VLOOKUP(A231,C231:D251,2,1)","v":10}]
[null,null,"Anlage zur Energieeinsparung",16,"o.k."]
[null,null,"Berherbergungsbereich",14,"o.k."]
[null,null,"Bewegungshalle für Pferde",4,"o.k."]
[null,null,"Biomasseanlage",17,"o.k."]
[null,null,"Direktvermarktungseinrichtung",13,"o.k."]
[null,null,"Düngegerät",10,"o.k."]
[null,null,"Gewächshaus / - anlage",7,"o.k."]
[null,null,"Pferdestall",3,"o.k."]
[null,null,"Pferdestall und Bewegungshalle",5,"o.k."]
[null,null,"Pflanzenschutztechnik",9,"o.k."]
[null,null,"Rinderstall",1,"o.k."]
[null,null,"Schweinestall",2,"o.k."]
[null,null,"Solaranlage",18,"o.k."]
[null,null,"sonst. Anlage zur Energieumstellung",19,"o.k."]
[null,null,"sonst. Gerät / Maschine",12,"o.k."]
[null,null,"sonst. Gerät / Maschine zur umweltgerechten Ausric",11,"o.k."]
[null,null,"sonstige Einrichtung zur Diversifizierung",15,"o.k."]
[null,null,"sonstige Investition",50,"o.k."]
[null,null,"Sonstiger Stallbau",6,"o.k."]
[null,null,"Sonstiges landw. Gebäude",8,"o.k."]
[]
[null,"Schlüssel Benachteiligtes Gebiet"]
["Normalgebiet",{"$f":"VLOOKUP(A254,C254:D259,2,1)","v":1},"Benacht. Gebiet",0,{"$f":"IF(RIGHT(C254)=\" \",\"Fehler\",\"o.k.\")","v":"o.k."}]
[null,null,"Berggebiet",2,"o.k."]
[null,null,"Gebiet mit spez. Nachteilen",4,"o.k."]
[null,null,"nicht definiert",5,"o.k."]
[null,null,"Normalgebiet",1,"o.k."]
[null,null,"Sonst. ben. Gebiet",3,"o.k."]
[null,"Indexnummer",null,null,null,"Zeilennr"]
[null,1,"Futtersilos",{"$f":"F261-B261","v":12},null,13," Futtersilos",1]
[null,"2","Heu- / Einstreulager",12,null,{"$f":"F261+1","v":14}," Heu- / Einstreulager",{"$f":"H261+1","v":2}]
[null,"3","Wi-Dunglager flüssig",12,null,{"$f":"F262+1","v":15}," Wi-Dunglager ",{"$f":"H262+1","v":3}]
[null,"4","Wi-Dunglager fest",12,null,16,null,4]
[null,"5","Milchkuhstall",12,null,17," Milchkuhstall ",5]
[null,"6","Zuchtfärsenstall",12,null,18," Zuchtfärsenstall",6]
[null,"7","Rindermaststall",12,null,19," Rindermaststall",7]
[null,"8","Pferdestall, Reithalle",12,null,20," Pferdestall, Reithalle",8]
[null,"9","Schafstall / Ziegenstall",12,null,21," Schafstall / Ziegenstall",9]
[null,"10","Zuchtsauenstall",12,null,22," Zuchtsauenstall",10]
[null,"11","Aufzuchtferkelstall",12,null,23," Aufzuchtferkelstall",11]
[null,"12","Mastschweinestall",12,null,24," Mastschweinestall",12]
[null,"13","Legehennenst.",12,null,25," Legehennenst.",13]
[null,"14","Mastgefügelstall",12,null,26," Mastgefügelstall",14]
[null,"15","Sonst. Ställe",12,null,27," Sonst. Ställe ",15]
[null,"16","Abdeckung bestehender Güllebehälter",12,null,28," Abdeckung bestehender Güllebehälter",16]
[null,"17","Mehrzweckhalle",12,null,29," Mehrzweckhalle ",17]
[null,"18","Lagerhalle für Obst, Wein u. Getreide",12,null,30," Lagerhalle f. Obst, Wein u. Getreide",18]
[null,"19","Verarbeitungs- und Verkaufsräume",12,null,31," Verarbeitungs- und Verkaufsräume",19]
[null,"20","Gewächshaus",12,null,32," Gewächshaus",20]
[null,"21","Baumaßnahme für die Direktvermarktung",12,null,33,"Baul. Maßnahmen der Direktvermarktung",21]
[null,"22","Baumaßnahme für die Pensionstierhaltung",12,null,34,"               der Pensionstierhaltung",22]
[null,"23","Baumaßnahme für die Landschaftspflege",12,null,35,"               der Landschaftspflege",23]
[null,"24","Baumaßnahme für Lohnarbeiten",12,null,36,"               für Lohnarbeit",24]
[null,"25","Baumaßnahme für weitere Dienstleistungen",12,null,37," Baul. Maßn. für weitere Dienstleistungen",25]
[null,"26","Wärmerückgewinnung/-pumpe",12,null,38," Baul. Ma. Wärmerückgewinnung/-pumpe",26]
[null,"27","Umstellungauf auf umweltvertr.Energieträger",12,null,39," Baul. Ma.Umst.auf umweltvertr.Energieträger",27]
[null,"28","Sonst. Baumaßnahmen zur Energieeinsparung",12,null,40," So. Baumaßnahmen zur Energieeinspar.",28]
[null,"29","Energiegewinnung bzw. -produktion",12,null,41," Energiegewinnung bzw. -produktion",29]
[null,"30","Mehrkosten landschaftsbezogenes Bauen",12,null,42," Mehrkost. landschaftsbezogenes Bauen",30]
[null,"31","Sonstige bauliche Anlagen",12,null,43," Sonstige bauliche Anlagen",31]
[null,"32","Erschließung",13,null,45," Erschließung",32]
[null,"33","Dauerkulturen",{"$f":"F293-B293","v":13},null,46," Dauerkulturen",33]
[null,"34","Landzukauf",13,null,47," Landzukauf",33]
[null,"35","Anpflanzung, Eingrünung",13,null,48," Anpflanzung, Eingrünung",34]
[null,"36","frei zum eintragen",13,null,49,null,34]
[null,"37","Wärmerückgewinnung u. -pumpe",14,null,51," Wärmerückgewinnung u. -pumpe",35]
[null,"38","Umstell. auf umweltverträgl. Energieträger",14,null,52," Umstell. auf umweltverträgl. Energieträger",36]
[null,"39","So. Geräte, Einricht. z. Energieeinsparung",14,null,53," So. Geräte, Einricht. z. Energieeinsparung",37]
[null,"40","Energiegewinnung bzw. -produktion",14,null,54," Energiegewinnung bzw. -produktion",38]
[null,"41","Sonstige Maschinen, Geräte, Vorrichtungen",14,null,55," So. Maschinen, Geräte, Vorrichtungen",39]
[null,"42","Geräte und Einrichtung der Direktvermarktung",14,null,56," Geräte und Einrichtung der Direktvermarktung",40]
[null,"43","Baunebenkosten = allg. Aufwendungen",15,null,58,"    Baunebenkosten = allg. Aufwendungen",42]
[null,"44","Betreuungsgebühr = allg. Aufwendungen",15,null,59,"    Betreuungsgebühr = allg. Aufwendungen",43]
[null,"45","Sonstige allgemeine Aufwendungen",15,null,60,"    Sonstige allgemeine Aufwendungen",44]
[null,"46","Wohnhaus",15,null,61," Wohnhaus",45]
[null,"47","Tieraufstockung",15,null,62," Tieraufstockung",46]
[null,"48","Lieferrechte",15,null,63," Lieferrechte",47]
[null,"49","Umlaufvermögen",15,null,64," Umlaufvermögen",48]
[null,"50","Überbrückungsbedarf",15,null,65," Überbrückungsbedarf",49]
[null,"51","Ablösung von Verbindlichkeiten",15,null,66," Ablösung von Verbindlichkeiten",50]
[null,"52","Finanzierungskosten",15,null,67," Finanzierungskosten",51]
[null,"53","Sonstiges",15,null,68," Sonstiges",52]
[]
[]
[]
[]
[null,"Schlüssel Rechtsform",null,null,null,null,"aus IK:"]
["",{"$f":"VLOOKUP(A319,C319:D327,2,1)","v":{"$error":"#N/A"}},"Einzelunternehmen",1,null,null,"Einzelunternehmen",1]
[null,null,"Familien-GbR",2,null,null,"Familien-GbR",2]
[null,null,"Ehegatten-GbR",3,null,null,"Fremd-GbR",3]
[null,null,"Sonstige GbR",4,null,null,"GmbH & Co",4]
[null,null,"Genossenschaft",5,null,null,"GmbH",5]
[null,null,"GmbH",6,null,null,"Genossenschaft",6]
[null,null,"GmbH & Co, KG",7,null,null,"Aktiengesellschaft",7]
[null,null,"e.V.",8,null,null,"Sonstiges",8]
[null,null,"Sonstiges",9,null,null,"sonstige Personengesellschaft (aus BVPlan)",21]
[null,null,null,null,null,null,"juristische Person (aus BVPlan)",22]